Workbook

Sheet PORTADA
B14: www.acfmsc.com
G145: Val(R-1,C2)
K198: Len@25
P325: 67010623

Sheet MENU (hidden)
B6: Importar archivos XML emitidos (ingresos, egresos) | C6: CFDIE | F6: Formato pago provisional persona física actividad empresarial y profesional | G6: PP PFAEP
B7: Importar archivos XML emitidos con complemento de pago | C7: RPAGOSE | F7: Formato pago provisional de ISR persona física arrendamiento de inmuebles | G7: PP PFA
B8: Importar archivos XML recibidos (ingresos, egresos) | C8: CFDIR | F8: Formato pago provisional de ISR plataformas tecnológicas | G8: PP PLATA
B9: Importar archivos XML recibidos con complemento de pago | C9: RPAGOSR | F9: Formato pago provisional RESICO | G9: PP RESICO
B10: Ingresos acumulables | C10: INGRESOS | F10: Determinación del pago provisional cuando se sale del régime de RESICO | G10: PF RESICO
B11: Motivos de cancelación de los CFDI | C11: MCANCELA | F11: Formato del pago mensual de IVA persona física actividad empresarial y profesional, y arrendamiento de inmuebles | G11: IVA
B12: Fundamentos legales | C12: FUNDAMENTO1 | F12: Formato del pago mensual de IVA plataformas tecnológicas | G12: IVAP
B13: Importar archivos XML de nómina | C13: NOMINA | F13: Formato pago mensual de IVA RESICO | G13: IVAR
B14: Concentrado de información de nómina | C14: CONCENTRADO | F14: Formato CFDI | G14: FCFDI
B15: Determinación del factor de no deducibles de los exentos | C15: FACTORND | F15: Determinación de la depreciación fiscal | G15: DEPRECIACIONF
B16: Deducciones autorizadas | C16: DEDUCCIONES | F16: Fundamentos formato CFDI | G16: FUNDAMENTO
B17: Requisitos de las deducciones autorizadas | C17: REQUISITOS | F17: Tabla de INPC | G17: INPC
B18: No deducibles | C18: NO DEDUCIBLES | F18: Tarifas anexo 8 | G18: TARIFA
B19: Determinación del ISR por tipo de régimen | C19: DISR

Sheet CFDIE (hidden)
F4: IR AL MENÚ
F6: Emisor | I6: Receptor | R6: Trasladados | T6: Retenciones | X6: Aerolíneas
B7: Fecha | C7: Tipo de comprobante | D7: Serie y folio | E7: Folio fiscal | F7: RFC | G7: NOMBRE | H7: Régimen fiscal | I7: RFC | J7: Nombre | K7: Régimen fiscal | L7: USO | M7: Descripción | N7: Objeto de impuesto | O7: Importe | P7: Descuento | Q7: Importe - descuento | R7: IEPS | S7: IVA | T7: ISR | U7: IVA | V7: IEPS | W7: Impuesto sobre hospedaje | X7: TUA | Y7: Otros cargos | Z7: Total del comprobante | AA7: Método de pago | AB7: Forma de pago | AC7: Moneda | AD7: Tipo de cambio | AE7: Importe sin convertir | AF7: Fecha de cancelación | AG7: Tipo de relación | AH7: UUID relacionado | AI7: Ruta del archivo

Sheet RPAGOSE (hidden)
B2: Hoja para importar los XML emitidos con el complemento de recepción de pagos
G4: IR AL MENÚ
V5: Complemento de recepción de pagos
J6: Emisor | M6: Receptor | P6: Campos generales CFDI | AG6: Solo que el pago se reciba en SPEI | AK6: Documentos que se cobran | AU6: Timbre fiscal del complemento de recepción de pagos | AX6: Impuestos trasladados | BF6: Impuestos retenidos
B7: Fecha de emisión | C7: Folio | D7: Serie | E7: Subtotal | F7: Moneda | G7: Total | H7: Tipo de comprobante | I7: Lugar Expedicion | J7: Rfc | K7: Nombre | L7: Régimen fiscal | M7: RFC receptor | N7: Nombre | O7: Régimen fiscal | P7: ClaveProdServ | Q7: Cantidad | R7: Unidad | S7: Descripcion | T7: ValorUnitario | U7: Importe | V7: Fecha de pago | W7: Forma de pago | X7: MonedaP | Y7: TipoCambioP | Z7: Monto | AA7: NumOperacion | AB7: RfcEmisorCtaOrd | AC7: NomBancoOrdExt | AD7: CtaOrdenante | AE7: RfcEmisorCtaBen | AF7: CtaBeneficiario | AG7: TipoCadPago | AH7: CertPago | AI7: CadPago | AJ7: SelloPago | AK7: IdDocumento | AL7: Serie | AM7: Folio | AN7: MonedaDR | AO7: TipoCambioDR | AP7: MetodoDePagoDR | AQ7: NumParcialidad | AR7: ImpSaldoAnt | AS7: ImpPagado | AT7: ImpSaldoInsoluto | AU7: Fecha de timbrado | AV7: UUID | AW7: Objeto de impuestos DR | AX7: Base para IEPS | AY7: Tipo factor | AZ7: Tasa o cuota | BA7: Total IEPS trasladado del comprobante | BB7: Base para IVA | BC7: Tipo factor | BD7: Tasa o cuota | BE7: Total IVA trasladado del comprobante | BF7: Base retención ISR | BG7: Tipo factor | BH7: Tasa o cuota | BI7: Retención de ISR | BJ7: Base retención IVA | BK7: Tipo factor | BL7: Tasa o cuota | BM7: Retención IVA | BP7: Ruta del archivo | BQ7: Fecha de cancelación
BO8: 0 | BR8: =IFERROR(VLOOKUP(W8,FORMAP,2,FALSE)&" (" &VLOOKUP(W8,FORMAP,3,FALSE)&")","") -> 
BN9: =IFERROR(VLOOKUP(AK9,CFDIE!$E:$L,8,FALSE),"") ->  | BO9: =IFERROR(AS9-BA9-BE9+BI9+BM9,"") -> 0

Sheet CFDIR (hidden)
F4: IR AL MENÚ
F6: Emisor | I6: Receptor | R6: Trasladados | T6: Retenciones | X6: Aerolíneas
B7: Fecha | C7: Tipo de comprobante | D7: Serie y folio | E7: Folio fiscal | F7: RFC | G7: NOMBRE | H7: Régimen fiscal | I7: RFC | J7: Nombre | K7: Régimen fiscal | L7: USO | M7: Descripción | N7: Objeto de impuesto | O7: Importe | P7: Descuento | Q7: Importe - descuento | R7: IEPS | S7: IVA | T7: ISR | U7: IVA | V7: IEPS | W7: Impuesto sobre hospedaje | X7: TUA | Y7: Otros cargos | Z7: Total del comprobante | AA7: Método de pago | AB7: Forma de pago | AC7: Moneda | AD7: Tipo de cambio | AE7: Importe sin convertir | AF7: Fecha de cancelación | AG7: Tipo de relación | AH7: UUID relacionado | AI7: Ruta

Sheet RPAGOSR (hidden)
B2: Hoja para importar los XML emitidos con el complemento de recepción de pagos
G4: IR AL MENÚ
V5: Complemento de recepción de pagos
J6: Emisor | M6: Receptor | P6: Campos generales CFDI | AG6: Solo que el pago se reciba en SPEI | AK6: Documentos que se cobran | AU6: Timbre fiscal del complemento de recepción de pagos | AX6: Impuestos trasladados | BF6: Impuestos retenidos
B7: Fecha de emisión | C7: Folio | D7: Serie | E7: Subtotal | F7: Moneda | G7: Total | H7: Tipo de comprobante | I7: Lugar Expedicion | J7: Rfc | K7: Nombre | L7: Régimen fiscal | M7: RFC receptor | N7: Nombre | O7: Régimen fiscal | P7: ClaveProdServ | Q7: Cantidad | R7: Unidad | S7: Descripcion | T7: ValorUnitario | U7: Importe | V7: Fecha de pago | W7: Forma de pago | X7: MonedaP | Y7: TipoCambioP | Z7: Monto | AA7: NumOperacion | AB7: RfcEmisorCtaOrd | AC7: NomBancoOrdExt | AD7: CtaOrdenante | AE7: RfcEmisorCtaBen | AF7: CtaBeneficiario | AG7: TipoCadPago | AH7: CertPago | AI7: CadPago | AJ7: SelloPago | AK7: IdDocumento | AL7: Serie | AM7: Folio | AN7: MonedaDR | AO7: TipoCambioDR | AP7: MetodoDePagoDR | AQ7: NumParcialidad | AR7: ImpSaldoAnt | AS7: ImpPagado | AT7: ImpSaldoInsoluto | AU7: Fecha de timbrado | AV7: UUID | AW7: Objeto de impuestos DR | AX7: Base para IEPS | AY7: Tipo factor | AZ7: Tasa o cuota | BA7: Total IEPS trasladado del comprobante | BB7: Base para IVA | BC7: Tipo factor | BD7: Tasa o cuota | BE7: Total IVA trasladado del comprobante | BF7: Base retención ISR | BG7: Tipo factor | BH7: Tasa o cuota | BI7: Retención de ISR | BJ7: Base retención IVA | BK7: Tipo factor | BL7: Tasa o cuota | BM7: Retención IVA | BN7: USO del CFDI | BO7: Base de ISR | BP7: Ruta del archivo | BQ7: Fecha de cancelación

Sheet INGRESOS (hidden)
D2: IR AL MENÚ
B3: Persona física actividad empresarial y profesional
B4: DISPOSICIÓN | D4: FUNDAMENTO
B5: Ingresos por actividad empresarial | C5: Ingresos por actividades empresariales, los provenientes de la realización de actividades comerciales, industriales, agrícolas, ganaderas, de pesca o silvícolas | D5: Artículo 100 tercer párrafo fracción I LISR
B6: Artículo 16 CFF.- Se entenderá por actividades empresariales las siguientes: I. Las comerciales que son las que de conformidad con las leyes federales tienen ese carácter y no están comprendidas en las fracciones siguientes. II. Las industriales entendidas como la extracción, conservación o transformación de materias primas, acabado de productos y la elaboración de satisfactores. III. Las agrícolas que comprenden las actividades de siembra, cultivo, cosecha y la primera enajenación de los productos obtenidos, que no hayan sido objeto de transformación industrial. IV. Las ganaderas que son las consistentes en la cría y engorda de ganado, aves de corral y animales, así como la primera enajenación de sus productos, que no hayan sido objeto de transformación industrial. V. Las de pesca que incluyen la cría, cultivo, fomento y cuidado de la reproducción de toda clase de especies marinas y de agua dulce, incluida la acuacultura, así como la captura y extracción de las mismas y la primera enajenación de esos productos, que no hayan sido objeto de transformación industrial. VI. Las silvícolas que son las de cultivo de los bosques o montes, así como la cría, conservación, restauración, fomento y aprovechamiento de la vegetación de los mismos y la primera enajenación de sus productos, que no hayan sido objeto de transformación industrial. Se considera empresa la persona física o moral que realice las actividades a que se refiere este artículo, ya sea directamente, a través de fideicomiso o por conducto de terceros; por establecimiento se entenderá cualquier lugar de negocios en que se desarrollen, parcial o totalmente, las citadas actividades empresariales.
B7: Ingresos por servicios profesionales | C7: Ingresos por la prestación de un servicio profesional, las remuneraciones que deriven de un servicio personal independiente y cuyos ingresos no estén considerados en el Capítulo I de este Título. | D7: Artículo 100 tercer párrafo fracción II LISR
B8: Momento de acumulación | C8: Para los efectos de esta Sección, los ingresos se consideran acumulables en el momento en que sean efectivamente percibidos. | D8: Artículo 102 primer párrafo LISR
C9: Los ingresos se consideran efectivamente percibidos cuando se reciban en efectivo, en bienes o en servicios, aun cuando aquéllos correspondan a anticipos, a depósitos o a cualquier otro concepto, sin importar el nombre con el que se les designe. Igualmente se considera percibido el ingreso cuando el contribuyente reciba títulos de crédito emitidos por una persona distinta de quien efectúa el pago. Cuando se perciban en cheque, se considerará percibido el ingreso en la fecha de cobro del mismo o cuando los contribuyentes transmitan los cheques a un tercero, excepto cuando dicha transmisión sea en procuración. También se entiende que es efectivamente percibido cuando el interés del acreedor queda satisfecho mediante cualquier forma de extinción de las obligaciones. | D9: Artículo 102 segundo párrafo LISR
C10: Tratándose de los ingresos a que se refiere la fracción I del artículo 101 de esta Ley, éstos se considerarán efectivamente percibidos en la fecha en que se convenga la condonación, la quita o la remisión, o en la que se consume la prescripción. | D10: Artículo 102 tercer párrafo LISR
C11: En el caso de enajenación de bienes que se exporten se deberá acumular el ingreso cuando efectivamente se perciba. En el caso de que no se perciba el ingreso dentro de los doce meses siguientes a aquél en el que se realice la exportación, se deberá acumular el ingreso una vez transcurrido dicho plazo. | D11: Artículo 102 cuarto párrafo LISR
B13: Clave a capturar en el campo de régimen fiscal
B14: c_RegimenFiscal | C14: Descripción
B15: 612 | C15: Personas Físicas con Actividades Empresariales y Profesionales | D15: CFDI EMITIDOS
B16: Año | C16: MES | D16: De tipo ingreso con método de pago PUE | E16: Con complemento de pago
B17: 2025 | C17: Enero | D17: 35240 | E17: 0
B18: 2025 | C18: Febrero | D18: 0 | E18: 0
B19: 2025 | C19: Marzo | D19: 0 | E19: 0
B20: 2025 | C20: Abril | D20: 0 | E20: 0
B21: 2025 | C21: Mayo | D21: 0 | E21: 0
B22: 2025 | C22: Junio | D22: 0 | E22: 0
B23: 2025 | C23: Julio | D23: 0 | E23: 0
B24: 2025 | C24: Agosto | D24: 0 | E24: 0
B25: 2025 | C25: Septiembre | D25: 0 | E25: 0
B26: 2025 | C26: Octubre | D26: 0 | E26: 0
B27: 2025 | C27: Noviembre | D27: 0 | E27: 0
B28: 2025 | C28: Diciembre | D28: 0 | E28: 0
B30: DISPOSICIÓN | D30: FUNDAMENTO
B31: Otros ingresos | C31: Condonaciones, quitas o remisiones, de deudas | D31: Artículo 101 fracción I LISR
B32: Otros ingresos | C32: Los provenientes de la enajenación de cuentas y documentos por cobrar y de títulos de crédito distintos de las acciones, relacionados con las actividades | D32: Artículo 101 fracción II LISR
B33: Otros ingresos | C33: Las cantidades que se recuperen por seguros, fianzas o responsabilidades a cargo de terceros, tratándose de pérdidas de bienes del contribuyente afectos a la actividad empresarial o al servicio profesional. | D33: Artículo 101 fracción III LISR
B34: Otros ingresos | C34: Las cantidades que se perciban para efectuar gastos por cuenta de terceros, salvo que dichos gastos sean respaldados con comprobantes fiscales expedidos a nombre de aquél por cuenta de quien se efectúa el gasto. | D34: Artículo 101 fracción IV LISR
B35: Otros ingresos | C35: Los derivados de la enajenación de obras de arte hechas por el contribuyente. | D35: Artículo 101 fracción V LISR
B36: Otros ingresos | C36: Los obtenidos por agentes de instituciones de crédito, de seguros, de fianzas o de valores, por promotores de valores o de administradoras de fondos para el retiro, por los servicios profesionales prestados a dichas instituciones. | D36: Artículo 101 fracción VI LISR
B37: Otros ingresos | C37: Los obtenidos mediante la explotación de una patente aduanal. | D37: Artículo 101 fracción VII LISR
B38: Otros ingresos | C38: Los obtenidos por la explotación de obras escritas, fotografías o dibujos, en libros, periódicos, revistas o en las páginas electrónicas vía Internet, o bien, la reproducción en serie de grabaciones de obras musicales y en general cualquier otro que derive de la explotación de derechos de autor | D38: Artículo 101 fracción VIII LISR
B39: Artículo 93 LISR. No se pagará el impuesto sobre la renta por la obtención de los siguientes ingresos: XXIX. Los que se obtengan, hasta el equivalente de veinte salarios mínimos generales del área geográfica que corresponda al contribuyente elevados al año, por permitir a terceros la publicación de obras escritas de su creación en libros, periódicos o revistas, o bien, la reproducción en serie de grabaciones de obras musicales de su creación, siempre que los libros, periódicos o revistas, así como los bienes en los que se contengan las grabaciones, se destinen para su enajenación al público por la persona que efectúa los pagos por estos conceptos y siempre que el creador de la obra expida por dichos ingresos el comprobante fiscal respectivo. Por el excedente se pagará el impuesto en los términos de este Título. La exención a que se refiere esta fracción no se aplicará en cualquiera de los siguientes casos: a) Cuando quien perciba estos ingresos obtenga también de la persona que los paga ingresos de los señalados en el Capítulo I de este Título. b) Cuando quien perciba estos ingresos sea socio o accionista en más del 10% del capital social de la persona moral que efectúa los pagos. c) Cuando se trate de ingresos que deriven de ideas o frases publicitarias, logotipos, emblemas, sellos distintivos, diseños o modelos industriales, manuales operativos u obras de arte aplicado. No será aplicable lo dispuesto en esta fracción cuando los ingresos se deriven de la explotación de las obras escritas o musicales de su creación en actividades empresariales distintas a la enajenación al público de sus obras, o en la prestación de servicios.
B40: Otros ingresos | C40: Los intereses cobrados derivados de la actividad empresarial o de la prestación de servicios profesionales, sin ajuste alguno. | D40: Artículo 101 fracción IX LISR
B41: Otros ingresos | C41: Las devoluciones que se efectúen o los descuentos o bonificaciones que se reciban, siempre que se hubiese efectuado la deducción correspondiente. | D41: Artículo 101 fracción X LISR
B42: Otros ingresos | C42: La ganancia derivada de la enajenación de activos afectos a la actividad. | D42: Artículo 101 fracción XI LISR
C44: Formato para el pago provisional
C45: Ingresos acumulables
C46: CFDI con método de pago PUE
C47: CFDI con complemento de pago
C48: (-) Ingresos a disminuir del mes
C49: IEPS / ISAN cobrado no trasladado de manera expresa y por separado
C50: Ingresos facturados en los que se determinó ganancia por enajenación
C51: Ingresos facturados pendientes de cancelación con aceptación del receptor
C52: Ingresos facturados en los que se determinó ganancia por fluctuación cambiaria
C53: (+) Ingresos adicionales del mes
C54: Condonaciones, quitas o remisiones
C55: Gastos por cuenta de tercersos sin comprobante fiscal
C56: Intereses cobrados derivados de la actividad empresarial o de la prestación de servicios profesionales
C57: Ganancia por enajenación de activos
C58: Ganancia efectivamente percibida por fluctuación cambiaria
C59: (-) Ingresos exentos
C60: (=) INGRESOS DEL MES | D60: =IFERROR(SUM(D46:D47,D54:D59)-SUM(D49:D52),0) -> 0
C61: INGRESOS DE MESES ANTERIORES
C62: (=) TOTAL DE INGRESOS DEL PERIODO | D62: =SUM(D60:D61) -> 0
B66: Persona física plataformas tecnológicas
B67: DISPOSICIÓN | D67: FUNDAMENTO
B68: Obligación de pagar el impuesto | C68: Están obligados al pago del impuesto establecido en esta Sección, los contribuyentes personas físicas con actividades empresariales que enajenen bienes o presten servicios a través de Internet, mediante plataformas tecnológicas, aplicaciones informáticas y similares que presten los servicios a que se refiere la fracción II del artículo 18-B de la Ley del Impuesto al Valor Agregado, por los ingresos que generen a través de los citados medios por la realización de las actividades mencionadas, incluidos aquellos pagos que reciban por cualquier concepto adicional a través de los mismos. | D68: Artículo 113-A primer párrafo LISR
B69: Artículo 18-B LIVA.- Para los efectos de lo dispuesto en el cuarto párrafo del artículo 16 de la presente Ley, se consideran únicamente los servicios digitales que a continuación se mencionan, cuando éstos se proporcionen mediante aplicaciones o contenidos en formato digital a través de Internet u otra red, fundamentalmente automatizados, pudiendo o no requerir una intervención humana mínima, siempre que por los servicios mencionados se cobre una contraprestación: I. La descarga o acceso a imágenes, películas, texto, información, video, audio, música, juegos, incluyendo los juegos de azar, así como otros contenidos multimedia, ambientes multijugador, la obtención de tonos de móviles, la visualización de noticias en línea, información sobre el tráfico, pronósticos meteorológicos y estadísticas. No se aplicará lo dispuesto en esta fracción a la descarga o acceso a libros, periódicos y revistas electrónicos. II. Los de intermediación entre terceros que sean oferentes de bienes o servicios y los demandantes de los mismos. III. Clubes en línea y páginas de citas. IV. La enseñanza a distancia o de test o ejercicios.
B70: Pago del ISR mediante retención | C70: El impuesto a que se refiere el párrafo anterior, se pagará mediante retención que efectuarán las personas morales residentes en México o residentes en el extranjero con o sin establecimiento permanente en el país, así como las entidades o figuras jurídicas extranjeras que proporcionen, de manera directa o indirecta, el uso de las citadas plataformas tecnológicas, aplicaciones informáticas y similares. | D70: Artículo 113-A segundo párrafo LISR
B71: Retención del ISR | C71: La retención se deberá efectuar sobre el total de los ingresos que efectivamente perciban las personas físicas por conducto de los citados medios a que se refiere el primer párrafo de este artículo, sin incluir el impuesto al valor agregado. Esta retención tendrá el carácter de pago provisional. Al monto total de los ingresos mencionados se le aplicarán las siguientes tasas de retención: I. Tratándose de prestación de servicios de transporte terrestre de pasajeros y de entrega de bienes la retención se hará por el 2.1%. II. Tratándose de prestación de servicios de hospedaje la retención se hará por el 4%. III. Tratándose de enajenación de bienes y prestación de servicios la retención se hará por el 1%. | D71: Artículo 113-A tercer párrafo LISR
B73: Clave a capturar en el camp de régimen fiscal
B74: c_RegimenFiscal | C74: Descripción
B75: 625 | C75: Régimen de las Actividades Empresariales con ingresos a través de Plataformas Tecnológicas | D75: CFDI EMITIDOS
B76: Año | C76: MES | D76: De tipo ingreso con método de pago PUE con forma de pago 01 efectivo | E76: De tipo ingreso con método de pago PUE con forma de pago diferente a 01 efectivo | F76: Con complemento de pago con forma de pago 01 efectivo | G76: Con complemento de pago con forma de pago diferente 01 efectivo
B77: 2025 | C77: Enero | D77: 0 | E77: 10000 | F77: 0 | G77: 0
B78: 2025 | C78: Febrero | D78: 0 | E78: 0 | F78: 0 | G78: 0
B79: 2025 | C79: Marzo | D79: 0 | E79: 0 | F79: 0 | G79: 0
B80: 2025 | C80: Abril | D80: 0 | E80: 0 | F80: 0 | G80: 0
B81: 2025 | C81: Mayo | D81: 0 | E81: 0 | F81: 0 | G81: 0
B82: 2025 | C82: Junio | D82: 0 | E82: 0 | F82: 0 | G82: 0
B83: 2025 | C83: Julio | D83: 0 | E83: 0 | F83: 0 | G83: 0
B84: 2025 | C84: Agosto | D84: 0 | E84: 0 | F84: 0 | G84: 0
B85: 2025 | C85: Septiembre | D85: 0 | E85: 0 | F85: 0 | G85: 0
B86: 2025 | C86: Octubre | D86: 0 | E86: 0 | F86: 0 | G86: 0
B87: 2025 | C87: Noviembre | D87: 0 | E87: 0 | F87: 0 | G87: 0
B88: 2025 | C88: Diciembre | D88: 0 | E88: 0 | F88: 0 | G88: 0
B92: Persona física RESICO
B93: DISPOSICIÓN | D93: FUNDAMENTO
B94: Ingresos | C94: Los contribuyentes personas físicas que realicen únicamente actividades empresariales, profesionales u otorguen el uso o goce temporal de bienes, podrán optar por pagar el impuesto sobre la renta en los términos establecidos en esta Sección, siempre que la totalidad de sus ingresos propios de la actividad o las actividades señaladas que realicen, obtenidos en el ejercicio inmediato anterior, no hubieran excedido de la cantidad de tres millones quinientos mil pesos. | D94: Artículo 113-E primer párrafo LISR
B95: Ejercicio de la opción por el total de las actividades 3.13.3. Para los efectos del artículo 113-E de la Ley del ISR, las personas físicas que opten por tributar conforme al Título IV, Capítulo II, Sección IV del mismo ordenamiento, deberán hacerlo por la totalidad de sus actividades empresariales, profesionales u otorgamiento del uso o goce temporal de bienes. Las personas físicas que de conformidad con el artículo 113-A, primer párrafo de la Ley del ISR, estén obligadas al pago del ISR por los ingresos que generen a través de Internet, mediante plataformas tecnológicas, aplicaciones informáticas y similares que presten los servicios a que se refiere el artículo 18-B, fracción II de la Ley del IVA, por la totalidad o alguna parte de sus actividades económicas y que además obtengan ingresos por actividades empresariales, profesionales u otorgamiento del uso o goce temporal de bienes, no podrán tributar conforme al Título IV, Capítulo II, Sección IV de la misma Ley, por los referidos ingresos. LISR 113-A, 113-E, LIVA 18-B
B96: Ingresos | C96: Los contribuyentes a que se refiere el párrafo anterior que inicien actividades, podrán optar por pagar el impuesto conforme a lo establecido en esta Sección, cuando estimen que sus ingresos del ejercicio no excederán del límite establecido en el párrafo anterior. Cuando en el ejercicio citado realicen operaciones por un periodo menor de doce meses, para determinar el monto a que se refiere el párrafo anterior dividirán los ingresos manifestados entre el número de días que comprende el periodo y el resultado se multiplicará por 365. | D96: Artículo 113-E segundo párrafo LISR
B98: Clave a capturar en el campo de régimen fiscal
B99: c_RegimenFiscal | C99: Descripción
B100: 626 | C100: Régimen Simplificado de Confianza | D100: CFDI EMITIDOS
B101: Año | C101: MES | D101: De tipo ingreso
B102: 2025 | C102: Enero | D102: 3120
B103: 2025 | C103: Febrero | D103: 0
B104: 2025 | C104: Marzo | D104: 0
B105: 2025 | C105: Abril | D105: 0
B106: 2025 | C106: Mayo | D106: 0
B107: 2025 | C107: Junio | D107: 0
B108: 2025 | C108: Julio | D108: 0
B109: 2025 | C109: Agosto | D109: 0
B110: 2025 | C110: Septiembre | D110: 0
B111: 2025 | C111: Octubre | D111: 0
B112: 2025 | C112: Noviembre | D112: 0
B113: 2025 | C113: Diciembre | D113: 0
C114: (=) Total | D114: =SUM(D102:D113) -> 3120
C115: (/) Días del año en que percibio los ingresos | D115: 1
C116: (x) 365 | D116: 365
C117: (=) Ingresos del año para el comparativo de permanencia | D117: =IFERROR(ROUND(D114/D115*D116,0),0) -> 1138800
B119: Clave a capturar en el campo de régimen fiscal
B120: c_RegimenFiscal | C120: Descripción
B121: 626 | C121: Régimen Simplificado de Confianza | D121: CFDI EMITIDOS
B122: Año | C122: MES | D122: De tipo ingreso con método de pago PUE | E122: Con complemento de pago
B123: 2025 | C123: Enero | D123: 3120 | E123: 0
B124: 2025 | C124: Febrero | D124: 0 | E124: 0
B125: 2025 | C125: Marzo | D125: 0 | E125: 0
B126: 2025 | C126: Abril | D126: 0 | E126: 0
B127: 2025 | C127: Mayo | D127: 0 | E127: 0
B128: 2025 | C128: Junio | D128: 0 | E128: 0
B129: 2025 | C129: Julio | D129: 0 | E129: 0
B130: 2025 | C130: Agosto | D130: 0 | E130: 0
B131: 2025 | C131: Septiembre | D131: 0 | E131: 0
B132: 2025 | C132: Octubre | D132: 0 | E132: 0
B133: 2025 | C133: Noviembre | D133: 0 | E133: 0
B134: 2025 | C134: Diciembre | D134: 0 | E134: 0
B138: Persona física arrendamiento de inmuebles
B139: DISPOSICIÓN | D139: FUNDAMENTO
B140: Ingresos | C140: Se consideran ingresos por otorgar el uso o goce temporal de bienes inmuebles, los siguientes: I. Los provenientes del arrendamiento o subarrendamiento y en general por otorgar a título oneroso el uso o goce temporal de bienes inmuebles, en cualquier otra forma. II. Los rendimientos de certificados de participación inmobiliaria no amortizables. | D140: Artículo 114 primer párrafo LISR
B141: Momento de acumulación de los ingresos | C141: Para los efectos de este Capítulo, los ingresos en crédito se declararán y se calculará el impuesto que les corresponda hasta el año de calendario en el que sean cobrados. | D141: Artículo 114 segundo párrafo LISR
B143: Clave a capturar en el campo de régimen fiscal
B144: c_RegimenFiscal | C144: Descripción
B145: 606 | C145: Arrendamiento | D145: CFDI EMITIDOS
B146: Año | C146: MES | D146: De tipo ingreso con método de pago PUE | E146: Con complemento de pago
B147: 2025 | C147: Enero | D147: 1050 | E147: 0
B148: 2025 | C148: Febrero | D148: 0 | E148: 0
B149: 2025 | C149: Marzo | D149: 0 | E149: 0
B150: 2025 | C150: Abril | D150: 0 | E150: 0
B151: 2025 | C151: Mayo | D151: 0 | E151: 0
B152: 2025 | C152: Junio | D152: 0 | E152: 0
B153: 2025 | C153: Julio | D153: 0 | E153: 0
B154: 2025 | C154: Agosto | D154: 0 | E154: 0
B155: 2025 | C155: Septiembre | D155: 0 | E155: 0
B156: 2025 | C156: Octubre | D156: 0 | E156: 0
B157: 2025 | C157: Noviembre | D157: 0 | E157: 0
B158: 2025 | C158: Diciembre | D158: 0 | E158: 0

Sheet MCANCELA (hidden)
C3: IR AL MENÚ
B6: Motivo de la Cancelación | C6: Folio Relacionado
B7: 01 – Comprobante emitido con errores con relación | C7: Si no se modifican los importes no se tendría que presentar declaración complementaria. | D7: Cuando los contribuyentes cancelen comprobantes fiscales digitales por Internet que amparen ingresos, deberán justificar y soportar documentalmente el motivo de dicha cancelación, misma que podrá ser verificada por las autoridades fiscales en el ejercicio de las facultades establecidas en este Código. Fundamento: Artículo 29-A sexto párrafo CFF
B8: 02 – Comprobante emitido con errores sin relación | C8: En este caso si se tendría que presentar declaración complementaria
B9: 03 – No se llevó a cabo la operación | C9: En este caso si se tendría que presentar declaración complementaria
B10: 04 – Operación nominativa relacionada con una factura global | C10: Si se cancelo para emitir un CFDI nominativo, no es necesario presentar declaración complementaria.
B12: Declaraciones complementarias
B13: Las declaraciones que presenten los contribuyentes serán definitivas y sólo se podrán modificar por el propio contribuyente hasta en tres ocasiones, siempre que no se haya iniciado el ejercicio de las facultades de comprobación. Fundamento: Artículo 32 primer párrafo CFF

Sheet FUNDAMENTO1 (hidden)
D3: IR AL MENÚ
B5: DISPOSICIÓN | D5: FUNDAMENTO
B6: Actos de comercio | C6: Todas las adquisiciones, enajenaciones y alquileres verificados con propósito de especulación comercial, de mantenimientos, artículos, muebles o mercaderías, sea en estado natural, sea después de trabajados o labrados; | D6: Artículo 75 fracción I Código de Comercio
B7: Código Civil Federal Artículo 752.- Los bienes son muebles por su naturaleza o por disposición de la ley. Artículo 753.- Son muebles por su naturaleza, los cuerpos que pueden trasladarse de un lugar a otro, ya se muevan por sí mismos, ya por efecto de una fuerza exterior. Artículo 754.- Son bienes muebles por determinación de la ley, las obligaciones y los derechos o acciones que tienen por objeto cosas muebles o cantidades exigibles en virtud de acción personal. Artículo 755.- Por igual razón se reputan muebles las acciones que cada socio tiene en las asociaciones o sociedades, aun cuando a éstas pertenezcan algunos bienes inmuebles. Artículo 756.- Las embarcaciones de todo género son bienes muebles. Artículo 757.- Los materiales procedentes de la demolición de un edificio, y los que se hubieren acopiado para repararlo o para construir uno nuevo, serán muebles mientras no se hayan empleado en la fabricación. Artículo 758.- Los derechos de autor se consideran bienes muebles. Artículo 759.- En general, son bienes muebles, todos los demás no considerados por la ley como inmuebles. Artículo 760.- Cuando en una disposición de la ley o en los actos y contratos se use de las palabras bienes muebles, se comprenderán bajo esa denominación los enumerados en los artículos anteriores.
B8: Actos de comercio | C8: Las compras y ventas de bienes inmuebles, cuando se hagan con dicho propósito de especulación comercial | D8: Artículo 75 fracción II Código de Comercio
B9: Código Civil Federal Artículo 750.- Son bienes inmuebles: I. El suelo y las construcciones adheridas a él; II. Las plantas y árboles, mientras estuvieren unidos a la tierra, y los frutos pendientes de los mismos árboles y plantas mientras no sean separados de ellos por cosechas o cortes regulares; III. Todo lo que esté unido a un inmueble de una manera fija, de modo que no pueda separarse sin deterioro del mismo inmueble o del objeto a él adherido; IV. Las estatuas, relieves, pinturas u otros objetos de ornamentación, colocados en edificios o heredados por el dueño del inmueble, en tal forma que revele el propósito de unirlos de un modo permanente al fundo; V. Los palomares, colmenas, estanques de peces o criaderos análogos, cuando el propietario los conserve con el propósito de mantenerlos unidos a la finca y formando parte de ella de un modo permanente; VI. Las máquinas, vasos, instrumentos o utensilios destinados por el propietario de la finca directa y exclusivamente, a la industria o explotación de la misma; VII. Los abonos destinados al cultivo de una heredad, que estén en las tierras donde hayan de utilizarse, y las semillas necesarias para el cultivo de la finca; VIII. Los aparatos eléctricos y accesorios adheridos al suelo o a los edificios por el dueño de éstos, salvo convenio en contrario; IX. Los manantiales, estanques, aljibes y corrientes de agua, así como los acueductos y las cañerías de cualquiera especie que sirvan para conducir los líquidos o gases a una finca o para extraerlos de ella; X. Los animales que formen el pie de cría en los predios rústicos destinados total o parcialmente al ramo de ganadería; así como las bestias de trabajo indispensables en el cultivo de la finca, mientras están destinadas a ese objeto; XI. Los diques y construcciones que, aun cuando sean flotantes, estén destinados por su objeto y condiciones a permanecer en un punto fijo de un río, lago o costa; XII. Los derechos reales sobre inmuebles; XIII. Las líneas telefónicas y telegráficas y las estaciones radiotelegráficas fijas.
B10: Actos de comercio | C10: Las compras y ventas de porciones, acciones y obligaciones de las sociedades mercantiles | D10: Artículo 75 fracción III Código de Comercio
B11: Actos de comercio | C11: Los contratos relativos y obligaciones del Estado ú otros títulos de crédito corrientes en el comercio | D11: Artículo 75 fracción IV Código de Comercio
B12: Actos de comercio | C12: Las empresas de abastecimientos y suministros; | D12: Artículo 75 fracción V Código de Comercio
B13: Actos de comercio | C13: Las empresas de construcciones, y trabajos públicos y privados; | D13: Artículo 75 fracción VI Código de Comercio
B14: Actos de comercio | C14: Las empresas de fábricas y manufacturas; | D14: Artículo 75 fracción VII Código de Comercio
B15: Actos de comercio | C15: Las empresas de trasportes de personas o cosas, por tierra o por agua; y las empresas de turismo. | D15: Artículo 75 fracción VIII Código de Comercio
B16: Actos de comercio | C16: Las librerías, y las empresas editoriales y tipográficas; | D16: Artículo 75 fracción IX Código de Comercio
B17: Actos de comercio | C17: Las empresas de comisiones, de agencias, de oficinas de negocios comerciales, casas de empeño y establecimientos de ventas en pública almoneda; | D17: Artículo 75 fracción X Código de Comercio
B18: Actos de comercio | C18: Las empresas de espectáculos públicos; | D18: Artículo 75 fracción XI Código de Comercio
B19: Actos de comercio | C19: Las operaciones de comisión mercantil; | D19: Artículo 75 fracción XII Código de Comercio
B20: Actos de comercio | C20: Las operaciones de mediación de negocios mercantiles; | D20: Artículo 75 fracción XIII Código de Comercio
B21: Actos de comercio | C21: Las operaciones de bancos; | D21: Artículo 75 fracción XIV Código de Comercio
B22: Actos de comercio | C22: Los cheques, letras de cambio o remesas de dinero de una plaza a otra, entre toda clase de personas; | D22: Artículo 75 fracción XIX Código de Comercio
B23: Actos de comercio | C23: Todos los contratos relativos al comercio marítimo y a la navegación interior y exterior; | D23: Artículo 75 fracción XV Código de Comercio
B24: Actos de comercio | C24: Los contratos de seguros de toda especie; | D24: Artículo 75 fracción XVI Código de Comercio
B25: Actos de comercio | C25: Los depósitos por causa de comercio; | D25: Artículo 75 fracción XVII Código de Comercio
B26: Actos de comercio | C26: Los depósitos en los almacenes generales y todas las operaciones hechas sobre los certificados de depósito y bonos de prenda librados por los mismos; | D26: Artículo 75 fracción XVIII Código de Comercio
B27: Actos de comercio | C27: Los vales ú otros títulos a la orden o al portador, y las obligaciones de los comerciantes, a no ser que se pruebe que se derivan de una causa extraña al comercio; | D27: Artículo 75 fracción XX Código de Comercio
B28: Actos de comercio | C28: Las obligaciones entre comerciantes y banqueros, si no son de naturaleza esencialmente civil; | D28: Artículo 75 fracción XXI Código de Comercio
B29: Actos de comercio | C29: Los contratos y obligaciones de los empleados de los comerciantes en lo que concierne al comercio del negociante que los tiene a su servicio; | D29: Artículo 75 fracción XXII Código de Comercio
B30: Actos de comercio | C30: La enajenación que el propietario o el cultivador hagan de los productos de su finca o de su cultivo; | D30: Artículo 75 fracción XXIII Código de Comercio
B31: Actos de comercio | C31: Las operaciones contenidas en la Ley General de Títulos y Operaciones de Crédito; | D31: Artículo 75 fracción XXIV Código de Comercio
B32: Servicios profesionales | C32: Los que sin tener el título correspondiente ejerzan profesiones para cuyo ejercicio la ley exija título, además de incurrir en las penas respectivas, no tendrán derecho de cobrar retribución por los servicios profesionales que hayan prestado. | D32: Artículo 2608 Código Civil Federal

Sheet NOMINA (hidden)
I2: IR AL MENÚ
AZ4: Vanta acciones | BB4: Tiempo extra | BF4: Jubilaciones, pensiones, retiro | BK4: Pagos por separación | BP4: Incapacidades
B5: Fecha de emisión | C5: Fecha de timbrado | D5: UUID | E5: Concepto | F5: Serie | G5: Folio | H5: Forma de pago | I5: Metodo de pago | J5: Moneda | K5: Registro patronal | L5: Nombre del patron | M5: Riesgo de puesto | N5: Concepto riesgo de puesto (este dato no pertenece al XML) | O5: No. De empleado | P5: Nombre del empleado | Q5: Departamento | R5: Puesto | S5: Clave de la entidad federrativa | T5: Estado (este dato no pertenece al XML) | U5: CURP | V5: RFC | W5: No. SS | X5: Fecha inicio relación laboral | Y5: Salario diario integrado | Z5: Salario base de cotización | AA5: Tipo de regimen | AB5: Tipo de régimen (este dato no pertenece al XML) | AC5: Tipo de jornada | AD5: Tipo de jornada (este dato no pertenece al XML) | AE5: Tipo de contrato | AF5: Tipo de contrato (este dato no pertenece al XML) | AG5: Antigüedad | AH5: Fecha inicial pago | AI5: Fecha final pago | AJ5: Fecha de pago | AK5: Periodicidad de pago | AL5: Periodicidad de pago (este dato no pertenece al XML) | AM5: Clave de percepción | AN5: Percepción | AO5: Percepción de acuerdo al catálogo del SAT (este dato no pertenece al XML) | AP5: Percepción exenta | AQ5: Percepción gravado | AR5: Clave de deducción | AS5: Deducción | AT5: Deducción de acuerdo al catálogo del SAT (este dato no pertenece al XML) | AU5: Importe deducción | AV5: Total del comprobante | AW5: Tipo de relación | AX5: UUID tipo de relación | AY5: Subsidio al empleo causado | AZ5: Valor de mercado | BA5: Precio al otorgarse | BB5: Días | BC5: Tipo de horas | BD5: Horas extras | BE5: Importe pagado | BF5: Total en una sola exhibición | BG5: Total parcialidad | BH5: Monto diario | BI5: Ingreso acumulable | BJ5: Ingreso no acumulable | BK5: Total pagado | BL5: No. de años de servicio | BM5: Último sueldo mensual ordinario | BN5: Ingreso acumulable | BO5: Ingreso no acumulable | BP5: Días de incapacidad | BQ5: Tipo de incapacidad | BR5: Importe monetario | BS5: Dìas pagados | BT5: Ruta

Sheet CONCENTRADO (hidden)
C4: Fecha inicial de pago | I4: IR AL MENÚ
C5: Fecha final de pago
B7: Catálogo de percepciones | D7: Régimen 02 | F7: Régimen 03, 04 y 12 | H7: Régimen 13 | J7: Régimen 05, 06, 07, 08, 09, 10, 11
B8: c_TipoPercepcion | C8: Descripción | D8: Gravado | E8: Exento | F8: Gravado | G8: Exento | H8: Gravado | I8: Exento | J8: Gravado | K8: Exento
B9: 1 | C9: Sueldos, Salarios Rayas y Jornales
B10: 2 | C10: Gratificación Anual (Aguinaldo)
B11: 3 | C11: Participación de los Trabajadores en las Utilidades PTU
B12: 4 | C12: Reembolso de Gastos Médicos Dentales y Hospitalarios
B13: 5 | C13: Fondo de Ahorro
B14: 6 | C14: Caja de ahorro
B15: 9 | C15: Contribuciones a Cargo del Trabajador Pagadas por el Patrón
B16: 10 | C16: Premios por puntualidad
B17: 11 | C17: Prima de Seguro de vida
B18: 12 | C18: Seguro de Gastos Médicos Mayores
B19: 13 | C19: Cuotas Sindicales Pagadas por el Patrón
B20: 14 | C20: Subsidios por incapacidad
B21: 15 | C21: Becas para trabajadores y/o hijos
B22: 19 | C22: Horas extra
B23: 20 | C23: Prima dominical
B24: 21 | C24: Prima vacacional
B25: 22 | C25: Prima por antigüedad
B26: 23 | C26: Pagos por separación
B27: 24 | C27: Seguro de retiro
B28: 25 | C28: Indemnizaciones
B29: 26 | C29: Reembolso por funeral
B30: 27 | C30: Cuotas de seguridad social pagadas por el patrón
B31: 28 | C31: Comisiones
B32: 29 | C32: Vales de despensa
B33: 30 | C33: Vales de restaurante
B34: 31 | C34: Vales de gasolina
B35: 32 | C35: Vales de ropa
B36: 33 | C36: Ayuda para renta
B37: 34 | C37: Ayuda para artículos escolares
B38: 35 | C38: Ayuda para anteojos
B39: 36 | C39: Ayuda para transporte
B40: 37 | C40: Ayuda para gastos de funeral
B41: 38 | C41: Otros ingresos por salarios
B42: 39 | C42: Jubilaciones, pensiones o haberes de retiro
B43: 44 | C43: Jubilaciones, pensiones o haberes de retiro en parcialidades
B44: 45 | C44: Ingresos en acciones o títulos valor que representan bienes
B45: 046 | C45: Ingresos asimilados a salarios
B46: 047 | C46: Alimentación diferentes a los establecidos en el Art 94 último párrafo LISR
B47: 48 | C47: Habitación
B48: 49 | C48: Premios por asistencia
B49: 50 | C49: Viáticos
B50: 51 | C50: Pagos por gratificaciones, primas, compensaciones, recompensas u otros a extrabajadores derivados de jubilación en parcialidades
B51: 52 | C51: Pagos que se realicen a extrabajadores que obtengan una jubilación en parcialidades derivados de la ejecución de resoluciones judicial o de un laudo
B52: 53 | C52: Pagos que se realicen a extrabajadores que obtengan una jubilación en una sola exhibición derivados de la ejecución de resoluciones judicial o de un laudo
C53: Totales
B55: Catálogo de deducciones
B56: c_TipoDeduccion | C56: Descripción | D56: Régimen 02 | E56: Régimen 03, 04 y 12 | F56: Régimen 13 | G56: Régimen 05, 06, 07, 08, 09, 10, 11
B57: 1 | C57: Seguridad social
B58: 2 | C58: ISR
B59: 3 | C59: Aportaciones a retiro, cesantía en edad avanzada y vejez.
B60: 4 | C60: Otros
B61: 5 | C61: Aportaciones a Fondo de vivienda
B62: 6 | C62: Descuento por incapacidad
B63: 7 | C63: Pensión alimenticia
B64: 8 | C64: Renta
B65: 9 | C65: Préstamos provenientes del Fondo Nacional de la Vivienda para los Trabajadores
B66: 10 | C66: Pago por crédito de vivienda
B67: 11 | C67: Pago de abonos INFONACOT
B68: 12 | C68: Anticipo de salarios
B69: 13 | C69: Pagos hechos con exceso al trabajador
B70: 14 | C70: Errores
B71: 15 | C71: Pérdidas
B72: 16 | C72: Averías
B73: 17 | C73: Adquisición de artículos producidos por la empresa o establecimiento
B74: 18 | C74: Cuotas para la constitución y fomento de sociedades cooperativas y de cajas de ahorro
B75: 19 | C75: Cuotas sindicales
B76: 20 | C76: Ausencia (Ausentismo)
B77: 21 | C77: Cuotas obrero patronales
B78: 22 | C78: Impuestos Locales
B79: 23 | C79: Aportaciones voluntarias
B80: 24 | C80: Ajuste en Gratificación Anual (Aguinaldo) Exento
B81: 25 | C81: Ajuste en Gratificación Anual (Aguinaldo) Gravado
B82: 26 | C82: Ajuste en Participación de los Trabajadores en las Utilidades PTU Exento
B83: 27 | C83: Ajuste en Participación de los Trabajadores en las Utilidades PTU Gravado
B84: 28 | C84: Ajuste en Reembolso de Gastos Médicos Dentales y Hospitalarios Exento
B85: 29 | C85: Ajuste en Fondo de ahorro Exento
B86: 30 | C86: Ajuste en Caja de ahorro Exento
B87: 31 | C87: Ajuste en Contribuciones a Cargo del Trabajador Pagadas por el Patrón Exento
B88: 32 | C88: Ajuste en Premios por puntualidad Gravado
B89: 33 | C89: Ajuste en Prima de Seguro de vida Exento
B90: 34 | C90: Ajuste en Seguro de Gastos Médicos Mayores Exento
B91: 35 | C91: Ajuste en Cuotas Sindicales Pagadas por el Patrón Exento
B92: 36 | C92: Ajuste en Subsidios por incapacidad Exento
B93: 37 | C93: Ajuste en Becas para trabajadores y/o hijos Exento
B94: 38 | C94: Ajuste en Horas extra Exento
B95: 39 | C95: Ajuste en Horas extra Gravado
B96: 40 | C96: Ajuste en Prima dominical Exento
B97: 41 | C97: Ajuste en Prima dominical Gravado
B98: 42 | C98: Ajuste en Prima vacacional Exento
B99: 43 | C99: Ajuste en Prima vacacional Gravado
B100: 44 | C100: Ajuste en Prima por antigüedad Exento
B101: 45 | C101: Ajuste en Prima por antigüedad Gravado
B102: 46 | C102: Ajuste en Pagos por separación Exento
B103: 47 | C103: Ajuste en Pagos por separación Gravado
B104: 48 | C104: Ajuste en Seguro de retiro Exento
B105: 49 | C105: Ajuste en Indemnizaciones Exento
B106: 50 | C106: Ajuste en Indemnizaciones Gravado
B107: 51 | C107: Ajuste en Reembolso por funeral Exento
B108: 52 | C108: Ajuste en Cuotas de seguridad social pagadas por el patrón Exento
B109: 53 | C109: Ajuste en Comisiones Gravado
B110: 54 | C110: Ajuste en Vales de despensa Exento
B111: 55 | C111: Ajuste en Vales de restaurante Exento
B112: 56 | C112: Ajuste en Vales de gasolina Exento
B113: 57 | C113: Ajuste en Vales de ropa Exento
B114: 58 | C114: Ajuste en Ayuda para renta Exento
B115: 59 | C115: Ajuste en Ayuda para artículos escolares Exento
B116: 60 | C116: Ajuste en Ayuda para anteojos Exento
B117: 61 | C117: Ajuste en Ayuda para transporte Exento
B118: 62 | C118: Ajuste en Ayuda para gastos de funeral Exento
B119: 63 | C119: Ajuste en Otros ingresos por salarios Exento
B120: 64 | C120: Ajuste en Otros ingresos por salarios Gravado
B121: 65 | C121: Ajuste en Jubilaciones, pensiones o haberes de retiro en una sola exhibición Exento
B122: 66 | C122: Ajuste en Jubilaciones, pensiones o haberes de retiro en una sola exhibición Gravado
B123: 67 | C123: Ajuste en Pagos por separación Acumulable
B124: 68 | C124: Ajuste en Pagos por separación No acumulable
B125: 69 | C125: Ajuste en Jubilaciones, pensiones o haberes de retiro en parcialidades Exento
B126: 70 | C126: Ajuste en Jubilaciones, pensiones o haberes de retiro en parcialidades Gravado
B127: 71 | C127: Ajuste en Subsidio para el empleo (efectivamente entregado al trabajador)
B128: 72 | C128: Ajuste en Ingresos en acciones o títulos valor que representan bienes Exento
B129: 73 | C129: Ajuste en Ingresos en acciones o títulos valor que representan bienes Gravado
B130: 74 | C130: Ajuste en Alimentación Exento
B131: 75 | C131: Ajuste en Alimentación Gravado
B132: 76 | C132: Ajuste en Habitación Exento
B133: 77 | C133: Ajuste en Habitación Gravado
B134: 78 | C134: Ajuste en Premios por asistencia
B135: 79 | C135: Ajuste en Pagos distintos a los listados y que no deben considerarse como ingreso por sueldos, salarios o ingresos asimilados.
B136: 80 | C136: Ajuste en Viáticos gravados
B137: 81 | C137: Ajuste en Viáticos (entregados al trabajador)
B138: 082 | C138: Ajuste en Fondo de ahorro Gravado
B139: 083 | C139: Ajuste en Caja de ahorro Gravado
B140: 084 | C140: Ajuste en Prima de Seguro de vida Gravado
B141: 085 | C141: Ajuste en Seguro de Gastos Médicos Mayores Gravado
B142: 086 | C142: Ajuste en Subsidios por incapacidad Gravado
B143: 087 | C143: Ajuste en Becas para trabajadores y/o hijos Gravado
B144: 088 | C144: Ajuste en Seguro de retiro Gravado
B145: 089 | C145: Ajuste en Vales de despensa Gravado
B146: 090 | C146: Ajuste en Vales de restaurante Gravado
B147: 091 | C147: Ajuste en Vales de gasolina Gravado
B148: 092 | C148: Ajuste en Vales de ropa Gravado
B149: 093 | C149: Ajuste en Ayuda para renta Gravado
B150: 094 | C150: Ajuste en Ayuda para artículos escolares Gravado
B151: 095 | C151: Ajuste en Ayuda para anteojos Gravado
B152: 096 | C152: Ajuste en Ayuda para transporte Gravado
B153: 097 | C153: Ajuste en Ayuda para gastos de funeral Gravado
B154: 098 | C154: Ajuste a ingresos asimilados a salarios gravados
B155: 099 | C155: Ajuste a ingresos por sueldos y salarios gravados
B156: 100 | C156: Ajuste en Viáticos exentos
B157: 101 | C157: ISR Retenido de ejercicio anterior
B158: 102 | C158: Ajuste a pagos por gratificaciones, primas, compensaciones, recompensas u otros a extrabajadores derivados de jubilación en parcialidades, gravados
B159: 103 | C159: Ajuste a pagos que se realicen a extrabajadores que obtengan una jubilación en parcialidades derivados de la ejecución de una resolución judicial o de un laudo gravados
B160: 104 | C160: Ajuste a pagos que se realicen a extrabajadores que obtengan una jubilación en parcialidades derivados de la ejecución de una resolución judicial o de un laudo exentos
B161: 105 | C161: Ajuste a pagos que se realicen a extrabajadores que obtengan una jubilación en una sola exhibición derivados de la ejecución de una resolución judicial o de un laudo gravados
B162: 106 | C162: Ajuste a pagos que se realicen a extrabajadores que obtengan una jubilación en una sola exhibición derivados de la ejecución de una resolución judicial o de un laudo exentos
B163: 107 | C163: Ajuste al Subsidio Causado
C164: Totales
B166: Catálogo de otros pagos
B167: c_TipoOtroPago | C167: Descripción | D167: Régimen 02 | E167: Régimen 03, 04 y 12 | F167: Régimen 13 | G167: Régimen 05, 06, 07, 08, 09, 10, 11
B168: O001 | C168: Reintegro de ISR pagado en exceso (siempre que no haya sido enterado al SAT).
B169: O002 | C169: Subsidio para el empleo (efectivamente entregado al trabajador).
B170: O003 | C170: Viáticos (entregados al trabajador).
B171: O004 | C171: Aplicación de saldo a favor por compensación anual.
B172: O005 | C172: Reintegro de ISR retenido en exceso de ejercicio anterior (siempre que no haya sido enterado al SAT).
B173: O006 | C173: Alimentos en bienes (Servicios de comedor y comida) Art 94 último párrafo LISR.
B174: O007 | C174: ISR ajustado por subsidio.
B175: O008 | C175: Subsidio efectivamente entregado que no correspondía (Aplica sólo cuando haya ajuste al cierre de mes en relación con el Apéndice 7 de la guía de llenado de nómina).
B176: O009 | C176: Reembolso de descuentos efectuados para el crédito de vivienda.
B177: 999 | C177: Pagos distintos a los listados y que no deben considerarse como ingreso por sueldos, salarios o ingresos asimilados.
C178: Totales

Sheet FACTORND (hidden)
I2: IR AL MENÚ
E3: Ejercicio 2024 | G3: Ejercicio 2023
B4: c_TipoPercepcion | C4: Descripción | D4: Tipo de régimen | E4: Gravado | F4: Exento | G4: Gravado | H4: Exento | I4: ¿Remuneración o Prestación?
B5: 1 | C5: Sueldos, Salarios Rayas y Jornales | D5: 02 | E5: 389600 | G5: 315000 | I5: Remuneración
B6: 2 | C6: Gratificación Anual (Aguinaldo) | D6: 02 | E6: 68900 | F6: 15000 | G6: 50700 | H6: 12000 | I6: Prestación
B7: 3 | C7: Participación de los Trabajadores en las Utilidades PTU | D7: 02 | I7: Remuneración
B8: 4 | C8: Reembolso de Gastos Médicos Dentales y Hospitalarios | D8: 02 | F8: 38900 | H8: 31500 | I8: Prestación
B9: 5 | C9: Fondo de Ahorro | D9: 02 | F9: 18500 | H9: 17500 | I9: Prestación
B10: 6 | C10: Caja de ahorro | D10: 02 | I10: Prestación
B11: 9 | C11: Contribuciones a Cargo del Trabajador Pagadas por el Patrón | D11: 02 | I11: Remuneración
B12: 10 | C12: Premios por puntualidad | D12: 02 | E12: 8000 | G12: 9000 | I12: Remuneración
B13: 11 | C13: Prima de Seguro de vida | D13: 02 | I13: Prestación
B14: 12 | C14: Seguro de Gastos Médicos Mayores | D14: 02 | I14: Prestación
B15: 13 | C15: Cuotas Sindicales Pagadas por el Patrón | D15: 02 | I15: Remuneración
B16: 14 | C16: Subsidios por incapacidad | D16: 02 | I16: Prestación
B17: 15 | C17: Becas para trabajadores y/o hijos | D17: 02 | I17: Prestación
B18: 19 | C18: Horas extra | D18: 02 | E18: 8000 | F18: 6000 | I18: Remuneración
B19: 20 | C19: Prima dominical | D19: 02 | I19: Prestación
B20: 21 | C20: Prima vacacional | D20: 02 | I20: Prestación
B21: 24 | C21: Seguro de retiro | D21: 02 | I21: Prestación
B22: 26 | C22: Reembolso por funeral | D22: 02 | I22: Prestación
B23: 27 | C23: Cuotas de seguridad social pagadas por el patrón | D23: 02 | I23: Remuneración
B24: 28 | C24: Comisiones | D24: 02 | I24: Remuneración
B25: 29 | C25: Vales de despensa | D25: 02 | F25: 65000 | H25: 37900 | I25: Prestación
B26: 30 | C26: Vales de restaurante | D26: 02 | F26: 19000 | H26: 16000 | I26: Prestación
B27: 31 | C27: Vales de gasolina | D27: 02 | I27: Prestación
B28: 32 | C28: Vales de ropa | D28: 02 | I28: Prestación
B29: 33 | C29: Ayuda para renta | D29: 02 | I29: Prestación
B30: 34 | C30: Ayuda para artículos escolares | D30: 02 | I30: Prestación
B31: 35 | C31: Ayuda para anteojos | D31: 02 | I31: Prestación
B32: 36 | C32: Ayuda para transporte | D32: 02 | I32: Prestación
B33: 37 | C33: Ayuda para gastos de funeral | D33: 02 | I33: Prestación
B34: 38 | C34: Otros ingresos por salarios | D34: 02 | I34: Remuneración | J34: Dependiendo lo que se pague
B35: 047 | C35: Alimentación diferentes a los establecidos en el Art 94 último párrafo LISR | D35: 02 | I35: Prestación
B36: 48 | C36: Habitación | D36: 02 | I36: Prestación
B37: 49 | C37: Premios por asistencia | D37: 02 | I37: Remuneración
B38: 50 | C38: Viáticos | D38: 02 | I38: Remuneración
D39: Totales | E39: =SUM(E5:E38) -> 474500 | F39: =SUM(F5:F38) -> 162400 | G39: =SUM(G5:G38) -> 374700 | H39: =SUM(H5:H38) -> 114900
B41: Los pagos que a su vez sean ingresos exentos para el trabajador, hasta por la cantidad que resulte de aplicar el factor de 0.53 al monto de dichos pagos. El factor a que se refiere este párrafo será del 0.47 cuando las prestaciones otorgadas por los contribuyentes a favor de sus trabajadores que a su vez sean ingresos exentos para dichos trabajadores, en el ejercicio de que se trate, no disminuyan respecto de las otorgadas en el ejercicio fiscal inmediato anterior. Fundamento: Artículo 28 fracción XXX LISR
B43: Procedimiento para cuantificar la proporción de los ingresos exentos respecto del total de las remuneraciones 3.3.1.29. Para los efectos del artículo 28, fracción XXX de la Ley del ISR, para determinar si en el ejercicio disminuyeron las prestaciones otorgadas a favor de los trabajadores que a su vez sean ingresos exentos para dichos trabajadores, respecto de las otorgadas en el ejercicio fiscal inmediato anterior, se estará a lo siguiente: I. Se obtendrá el cociente que resulte de dividir el total de las prestaciones pagadas por el contribuyente a sus trabajadores, efectuadas en el ejercicio, entre el total de las remuneraciones y prestaciones pagadas por el contribuyente a sus trabajadores en el ejercicio.
C45: Ejercicio 2024
C46: Prestaciones pagadas | D46: =IFERROR(SUMIF($I$5:$I$38,"Prestación",$F$5:$F$38),0) -> 156400
C47: (/) Total de remuneraciones y prestaciones pagadas | D47: =IFERROR(E39+F39,0) -> 636900
C48: (=) Cociente | D48: =IFERROR(ROUND(D46/D47,4),"") -> 0.2456
B50: II. Se obtendrá el cociente que resulte de dividir el total de las prestaciones pagadas por el contribuyente a sus trabajadores, efectuadas en el ejercicio inmediato anterior, entre el total de las remuneraciones y prestaciones pagadas por el contribuyente a sus trabajadores, efectuadas en el ejercicio inmediato anterior.
C52: Ejercicio 2023
C53: Prestaciones pagadas | D53: =IFERROR(SUMIF($I$5:$I$38,"Prestación",$H$5:$H$38),0) -> 114900
C54: (/) Total de remuneraciones y prestaciones pagadas | D54: =IFERROR(G39+H39,0) -> 489600
C55: (=) Cociente | D55: =IFERROR(ROUND(D53/D54,4),"") -> 0.2347
B57: III. Cuando el cociente determinado conforme a la fracción I de esta regla sea menor que el cociente que resulte conforme a la fracción II, se entenderá que hubo una disminución de las prestaciones otorgadas por el contribuyente a favor de los trabajadores que a su vez sean ingresos exentos del ISR para dichos trabajadores y por las cuales no podrá deducirse el 53% de los pagos que a su vez sean ingresos exentos para el trabajador.
C59: Factor de no deducibles | D59: =IFERROR(IF(D48>=D55,0.47,0.53),"") -> 0.47
C60: Factor de deducibles | D60: =IFERROR(IF(D59=0.53,0.47,0.53),"") -> 0.53

Sheet DEDUCCIONES (hidden)
D2: IR AL MENÚ
B3: Persona física actividad empresarial y profesional
B4: DISPOSICIÓN | D4: FUNDAMENTO
B5: Devoluciones, descuentos y bonificaciones | C5: Las devoluciones que se reciban o los descuentos o bonificaciones que se hagan, siempre que se hubiese acumulado el ingreso correspondiente. | D5: Artículo 103 primer párrafo fracción I LISR
B6: Adquisición de mercancía | C6: Las adquisiciones de mercancías, así como de materias primas, productos semiterminados o terminados, que utilicen para prestar servicios, para fabricar bienes o para enajenarlos. No serán deducibles conforme a esta fracción los activos fijos, los terrenos, las acciones, partes sociales, obligaciones y otros valores mobiliarios, los títulos valor que representen la propiedad de bienes, excepto certificados de depósito de bienes o mercancías, la moneda extranjera, las piezas de oro o de plata que hubieran tenido el carácter de moneda nacional o extranjera ni las piezas denominadas onzas troy. En el caso de ingresos por enajenación de terrenos y de acciones, se estará a lo dispuesto en los artículos 19 y 22 de esta Ley, respectivamente. | D6: Artículo 103 primer párrafo fracción II LISR
B7: Gastos | C7: Los gastos. | D7: Artículo 103 primer párrafo fracción III LISR
B8: Activos fijos | C8: Las inversiones. | D8: Artículo 103 primer párrafo fracción IV LISR
B9: Intereses pagados | C9: Los intereses pagados derivados de la actividad empresarial o servicio profesional, sin ajuste alguno, así como los que se generen por capitales tomados en préstamo siempre y cuando dichos capitales hayan sido invertidos en los fines de las actividades a que se refiere esta Sección y se obtenga el comprobante fiscal correspondiente. | D9: Artículo 103 primer párrafo fracción V LISR
B10: Cuotas patronales | C10: Las cuotas a cargo de los patrones pagadas al Instituto Mexicano del Seguro Social. | D10: Artículo 103 primer párrafo fracción VI LISR
B11: Impuesto local actividad empresarial o servicios profesionales | C11: Los pagos efectuados por el impuesto local sobre los ingresos por actividades empresariales o servicios profesionales. | D11: Artículo 103 primer párrafo fracción VII LISR
B12: Personas físicas residentes en el extranjero | C12: Tratándose de personas físicas residentes en el extranjero que tengan uno o varios establecimientos permanentes en el país, podrán efectuar las deducciones que correspondan a las actividades del establecimiento permanente, ya sean las erogadas en México o en cualquier otra parte, aun cuando se prorrateen con algún establecimiento ubicado en el extranjero, aplicando al efecto lo dispuesto en el artículo 26 de esta Ley. | D12: Artículo 103 segundo párrafo LISR
B13: No deducibles | C13: Los contribuyentes a que se refiere esta Sección, considerarán los gastos e inversiones no deducibles del ejercicio, en los términos del artículo 28 de esta Ley. | D13: Artículo 103 tercer párrafo LISR
B17: Persona física arrendamiento de inmuebles
B18: DISPOSICIÓN | D18: FUNDAMENTO
B19: Impuesto predial | C19: Los pagos efectuados por el impuesto predial correspondiente al año de calendario sobre dichos inmuebles, así como por las contribuciones locales de mejoras, de planificación o de cooperación para obras públicas que afecten a los mismos y, en su caso, el impuesto local pagado sobre los ingresos por otorgar el uso o goce temporal de bienes inmuebles. | D19: Artículo 115 primer párrafo fracción I LISR
B20: Gastos por mantenimiento | C20: Los gastos de mantenimiento que no impliquen adiciones o mejoras al bien de que se trate y por consumo de agua, siempre que no los paguen quienes usen o gocen del inmueble. | D20: Artículo 115 primer párrafo fracción II LISR
B21: Intereses reales | C21: Los intereses reales pagados por préstamos utilizados para la compra, construcción o mejoras de los bienes inmuebles, siempre y cuando obtenga el comprobante fiscal correspondiente. Se considera interés real el monto en que dichos intereses excedan del ajuste anual por inflación. Para determinar el interés real se aplicará en lo conducente lo dispuesto en el artículo 134 de esta Ley. | D21: Artículo 115 primer párrafo fracción III LISR
B22: Salarios, comisiones y honorarios | C22: Los salarios, comisiones y honorarios pagados, así como los impuestos, cuotas o contribuciones que conforme a esta Ley les corresponda cubrir sobre dichos salarios, efectivamente pagados. | D22: Artículo 115 primer párrafo fracción IV LISR
B23: Primas de seguros | C23: El importe de las primas de seguros que amparen los bienes respectivos. | D23: Artículo 115 primer párrafo fracción V LISR
B24: Inversiones | C24: Las inversiones en construcciones, incluyendo adiciones y mejoras. | D24: Artículo 115 primer párrafo fracción VI LISR
B25: Artículo 195 RLISR. Cuando en el año de calendario las deducciones a que se refiere el artículo 115 de la Ley, sean superiores a los ingresos a que se refiere el Título IV, Capítulo III de la Ley, la diferencia podrá deducirse de los demás ingresos que el contribuyente deba acumular en la declaración anual correspondiente a ese mismo año, excepto de aquéllos a que se refiere el Título IV, Capítulos I y II de la Ley.
B26: Deducción opcional | C26: Los contribuyentes que otorguen el uso o goce temporal de bienes inmuebles podrán optar por deducir el 35% de los ingresos a que se refiere este Capítulo, en substitución de las deducciones a que este artículo se refiere. Quienes ejercen esta opción podrán deducir, además, el monto de las erogaciones por concepto del impuesto predial de dichos inmuebles correspondiente al año de calendario o al periodo durante el cual se obtuvieron los ingresos en el ejercicio según corresponda. | D26: Artículo 115 segundo párrafo LISR
B27: Deducción en subarrendamiento | C27: Tratándose de subarrendamiento sólo se deducirá el importe de las rentas que pague el arrendatario al arrendador. | D27: Artículo 115 tercer párrafo LISR
B28: Uso gratuito | C28: Cuando el contribuyente ocupe parte del bien inmueble del cual derive el ingreso por otorgar el uso o goce temporal del mismo u otorgue su uso o goce temporal de manera gratuita, no podrá deducir la parte de los gastos, así como tampoco el impuesto predial y los derechos de cooperación de obras públicas que correspondan proporcionalmente a la unidad por él ocupada o de la otorgada gratuitamente. En los casos de subarrendamiento, el subarrendador no podrá deducir la parte proporcional del importe de las rentas pagadas que correspondan a la unidad que ocupe o que otorgue gratuitamente. La parte proporcional a que se refiere el párrafo que antecede, se calculará considerando el número de metros cuadrados de construcción de la unidad por él ocupada u otorgada de manera gratuita en relación con el total de metros cuadrados de construcción del bien inmueble. | D28: Artículo 115 cuarto y quinto párrafo LISR
B29: Deducción proporcional | C29: Cuando el uso o goce temporal del bien de que se trate no se hubiese otorgado por todo el ejercicio, las deducciones a que se refieren las fracciones I a V de este artículo, se aplicarán únicamente cuando correspondan al periodo por el cual se otorgó el uso o goce temporal del bien inmueble o a los tres meses inmediatos anteriores al en que se otorgue dicho uso o goce. | D29: Artículo 115 cuarto y séptimo párrafo LISR

Sheet REQUISITOS (hidden)
D2: IR AL MENÚ
B4: Persona física arrendamiento actividad empresarial y profesional
B5: DISPOSICIÓN | D5: FUNDAMENTO
B6: Efectivamente erogados | C6: Que hayan sido efectivamente erogadas en el ejercicio de que se trate. Se consideran efectivamente erogadas cuando el pago haya sido realizado en efectivo, mediante traspasos de cuentas en instituciones de crédito o casas de bolsa, en servicios o en otros bienes que no sean títulos de crédito. Tratándose de pagos con cheque, se considerará efectivamente erogado en la fecha en la que el mismo haya sido cobrado o cuando los contribuyentes transmitan los cheques a un tercero, excepto cuando dicha transmisión sea en procuración. Igualmente, se consideran efectivamente erogadas cuando el contribuyente entregue títulos de crédito suscritos por una persona distinta. También se entiende que es efectivamente erogado cuando el interés del acreedor queda satisfecho mediante cualquier forma de extinción de las obligaciones. | D6: Artículo 105 primer párrafo fracción I primer párrafo LISR
B8: Clave a capturar en el campo de régimen fiscal
B9: c_RegimenFiscal | C9: Descripción
B10: 612 | C10: Personas Físicas con Actividades Empresariales y Profesionales | D10: CFDI EMITIDOS
C11: Bancarizados con clave de uso | D11: G01 | E11: G03 | F11: G01 | G11: G03
B12: Año | C12: MES | D12: De tipo ingreso con método de pago PUE | E12: De tipo ingreso con método de pago PUE | F12: Con complemento de pago | G12: Con complemento de pago
B13: 2025 | C13: Enero | D13: 0 | E13: 17391.53 | F13: 0 | G13: 0
B14: 2025 | C14: Febrero | D14: 0 | E14: 0 | F14: 0 | G14: 0
B15: 2025 | C15: Marzo | D15: 0 | E15: 0 | F15: 0 | G15: 0
B16: 2025 | C16: Abril | D16: 0 | E16: 0 | F16: 0 | G16: 0
B17: 2025 | C17: Mayo | D17: 0 | E17: 0 | F17: 0 | G17: 0
B18: 2025 | C18: Junio | D18: 0 | E18: 0 | F18: 0 | G18: 0
B19: 2025 | C19: Julio | D19: 0 | E19: 0 | F19: 0 | G19: 0
B20: 2025 | C20: Agosto | D20: 0 | E20: 0 | F20: 0 | G20: 0
B21: 2025 | C21: Septiembre | D21: 0 | E21: 0 | F21: 0 | G21: 0
B22: 2025 | C22: Octubre | D22: 0 | E22: 0 | F22: 0 | G22: 0
B23: 2025 | C23: Noviembre | D23: 0 | E23: 0 | F23: 0 | G23: 0
B24: 2025 | C24: Diciembre | D24: 0 | E24: 0 | F24: 0 | G24: 0
B26: Estrictamente indispensables | C26: Que sean estrictamente indispensables para la obtención de los ingresos por los que se está obligado al pago de este impuesto en los términos de esta Sección. | D26: Artículo 105 primer párrafo fracción II primer párrafo LISR
B27: Deducción de inversiones | C27: Que cuando esta Ley permita la deducción de inversiones se proceda en los términos del artículo 104 de esta Ley. Tratándose de contratos de arrendamiento financiero, además deberán cumplirse los requisitos del artículo 38 de esta Ley | D27: Artículo 105 primer párrafo fracción III primer párrafo LISR
B28: Artículo 104 LISR. Los contribuyentes a que se refiere esta Sección determinarán la deducción por inversiones aplicando lo dispuesto en la Sección II del Capítulo II del Título II de esta Ley. Para estos efectos, se consideran inversiones las señaladas en el artículo 32 de esta Ley. Para los efectos de este artículo, los por cientos de deducción se aplicarán sobre el monto original de la inversión, aun cuando ésta no se haya pagado en su totalidad en el ejercicio en que proceda su deducción. Cuando no se pueda separar el monto original de la inversión de los intereses que en su caso se paguen por el financiamiento, el por ciento que corresponda se aplicará sobre el monto total, en cuyo caso, los intereses no podrán deducirse en los términos de la fracción V del artículo 103 de esta Ley.
B29: Que se resten una sola vez | C29: Que se resten una sola vez, aun cuando estén relacionadas con la obtención de diversos ingresos. | D29: Artículo 105 primer párrafo fracción IV primer párrafo LISR
B30: Seguros y fianzas | C30: Que los pagos de primas por seguros o fianzas se hagan conforme a las leyes de la materia y correspondan a conceptos que esta Ley señala como deducibles o que en otras leyes se establezca la obligación de contratarlos y siempre que, tratándose de seguros, durante la vigencia de la póliza no se otorguen préstamos por parte de la aseguradora, a persona alguna, con garantía de las sumas aseguradas, de las primas pagadas o de las reservas matemáticas. | D30: Artículo 105 primer párrafo fracción V primer párrafo LISR
B31: Pago a plazos | C31: Cuando el pago se realice a plazos, la deducción procederá por el monto de las parcialidades efectivamente pagadas en el mes o en el ejercicio que corresponda, excepto tratándose de las deducciones a que se refiere el artículo 104 de esta Ley. | D31: Artículo 105 primer párrafo fracción VI primer párrafo LISR
B32: Revaluación | C32: Que tratándose de las inversiones no se les dé efectos fiscales a su revaluación. | D32: Artículo 105 primer párrafo fracción VII primer párrafo LISR
B33: Plazo para reunir los requisitos | C33: Que al realizar las operaciones correspondientes o a más tardar el último día del ejercicio, se reúnan los requisitos que para cada deducción en particular establece esta Ley. Tratándose únicamente de los comprobantes fiscales a que se refiere el primer párrafo de la fracción III del artículo 27 de esta Ley, estos se obtengan a más tardar el día en que el contribuyente deba presentar su declaración del ejercicio y la fecha de expedición de dicho comprobante fiscal deberá corresponder al ejercicio en el que se efectúa la deducción. | D33: Artículo 105 primer párrafo fracción VIII primer párrafo LISR
B34: Requisitos de personas morales | C34: Para los efectos de esta sección, se estará a lo dispuesto en el artículo 27, fracciones III, IV, V, VI, X, XI, XIII, XIV, XVII, XVIII, XIX y XXI de esta Ley. | D34: Artículo 105 segundo párrafo LISR
B35: Contar con CFDI y pagos mayores a $2,000.00 | C35: Estar amparadas con un comprobante fiscal y que los pagos cuyo monto exceda de $2,000.00 se efectúen mediante transferencia electrónica de fondos desde cuentas abiertas a nombre del contribuyente en instituciones que componen el sistema financiero y las entidades que para tal efecto autorice el Banco de México; cheque nominativo de la cuenta del contribuyente, tarjeta de crédito, de débito, de servicios, o los denominados monederos electrónicos autorizados por el Servicio de Administración Tributaria. | D35: Artículo 27 primer párrafo fracción III primer párrafo LISR
B36: Pagos en efectivo de sueldos Artículo 43 RCFF. Para efectos del artículo 27, fracción III de la Ley, las erogaciones efectuadas por salarios y en general por la prestación de un servicio personal subordinado a que se refiere el artículo 94 de la Ley, pagadas en efectivo podrán ser deducibles, siempre que además de cumplir con todos los requisitos que señalan las disposiciones fiscales para la deducibilidad de dicho concepto, se cumpla con la obligación inherente a la emisión del comprobante fiscal correspondiente por concepto de nómina. Requisitos de deducciones que se extingan con la entrega de dinero 3.3.1.3. Para los efectos del artículo 27, fracción III de la Ley del ISR, se considera que el requisito de deducibilidad consistente en que los pagos cuyo monto exceda de $2,000.00 (dos mil pesos 00/100 M.N.), se efectúen mediante cheque nominativo del contribuyente, tarjeta de crédito, de débito o de servicios, o a través de monederos electrónicos autorizados por el SAT, solo es aplicable a las obligaciones que se cumplan o se extingan con la entrega de una cantidad en dinero, por lo que están exceptuados aquellos casos en los cuales el interés del acreedor queda satisfecho mediante cualquier otra forma de extinción de las obligaciones que den lugar a las contraprestaciones. LISR 27
B37: Pago de combustibles | C37: Tratándose de la adquisición de combustibles para vehículos marítimos, aéreos y terrestres, el pago deberá efectuarse en la forma señalada en el párrafo anterior, aun cuando la contraprestación de dichas adquisiciones no excedan de $2,000.00 y en el comprobante fiscal deberá constar la información del permiso vigente, expedido en los términos de la Ley de Hidrocarburos al proveedor del combustible y que, en su caso, dicho permiso no se encuentre suspendido, al momento de la expedición del comprobante fiscal. | D37: Artículo 27 primer párrafo fracción III segundo párrafo LISR
B38: Deducción de combustibles para vehículos marítimos, aéreos y terrestres, adquiridos a través de monederos electrónicos autorizados por el SAT 3.3.1.7. Para los efectos del artículo 27, fracción III, primer y segundo párrafos de la Ley del ISR, las personas físicas y morales que adquieran combustibles para vehículos marítimos, aéreos y terrestres, a través de los monederos electrónicos que al efecto autorice el SAT, podrán comprobar la erogación de las comisiones y otros cargos que cobre el emisor del monedero electrónico por sus servicios, así como el pago por la adquisición de combustibles, con el CFDI y el complemento de estado de cuenta de combustibles para monederos electrónicos autorizados por el SAT, respectivamente, que expidan los emisores autorizados en términos de la regla 3.3.1.10., fracción III, por lo que las estaciones de servicio no deberán emitir el CFDI a los clientes adquirentes de combustibles, por las operaciones que se realicen a través de monederos electrónicos autorizados por el SAT. La deducción por la adquisición de combustibles, así como el acreditamiento de los impuestos trasladados podrá realizarse hasta que el contribuyente adquirente del combustible, cuente con el CFDI y el complemento a que se refiere el párrafo anterior y hasta por el monto que ampare el citado complemento. ................................
B39: Registros contables | C39: Estar debidamente registradas en contabilidad y que sean restadas una sola vez. | D39: Artículo 27 primer párrafo fracción IV LISR
B40: Artículo 44 RCFF. Para efectos del artículo 27, fracción IV de la Ley, se entenderá que se cumple con el requisito de que las deducciones estén debidamente registradas en contabilidad inclusive cuando se lleven en cuentas de orden.
B41: Cumplir en materia de retención | C41: Cumplir con las obligaciones establecidas en esta Ley y las demás disposiciones fiscales en materia de retención y entero de impuestos a cargo de terceros o que, en su caso, se recabe de éstos copia de los documentos en que conste el pago de dichos impuestos. Tratándose de pagos al extranjero, éstos sólo se podrán deducir siempre que el contribuyente proporcione la información a que esté obligado en los términos del artículo 76 de esta Ley. | D41: Artículo 27 primer párrafo fracción V primer párrafo LISR
B42: Deducción de salarios | C42: Los pagos que a la vez sean ingresos en los términos del Capítulo I del Título IV, de esta Ley, se podrán deducir siempre que las erogaciones por concepto de remuneración, las retenciones correspondientes y las deducciones del impuesto local por salarios y, en general, por la prestación de un servicio personal independiente, consten en comprobantes fiscales emitidos en términos del Código Fiscal de la Federación y se cumpla con las obligaciones a que se refiere el artículo 99, fracciones I, II, III y V de la presente Ley, así como las disposiciones que, en su caso, regulen el subsidio para el empleo y los contribuyentes cumplan con la obligación de inscribir a los trabajadores en el Instituto Mexicano del Seguro Social cuando estén obligados a ello, en los términos de las leyes de seguridad social. | D42: Artículo 27 primer párrafo fracción V segundo párrafo LISR
B43: Servicios o ejecución de obras especializados | C43: Tratándose de la prestación de servicios especializados o de la ejecución de obras especializadas a que se refiere el artículo 15-D, tercer párrafo del Código Fiscal de la Federación, el contratante deberá verificar cuando se efectúe el pago de la contraprestación por el servicio recibido, que el contratista cuente con el registro a que se refiere el artículo 15 de la Ley Federal del Trabajo, asimismo, deberá obtener del contratista copia de los comprobantes fiscales por concepto de pago de salarios de los trabajadores con los que le hayan proporcionado el servicio o ejecutado la obra correspondiente, del recibo de pago expedido por institución bancaria por la declaración de entero de las retenciones de impuestos efectuadas a dichos trabajadores, del pago de las cuotas obrero patronales al Instituto Mexicano del Seguro Social, así como del pago de las aportaciones al Instituto del Fondo Nacional de la Vivienda para los Trabajadores. El contratista estará obligado a entregar al contratante los comprobantes y la información a que se refiere este párrafo. | D43: Artículo 27 primer párrafo fracción V tercer párrafo LISR
B44: Desglose de IVA | C44: Que cuando los pagos cuya deducción se pretenda realizar se hagan a contribuyentes que causen el impuesto al valor agregado, dicho impuesto se traslade en forma expresa y por separado en el comprobante fiscal correspondiente. Asimismo, deberán cumplir con la obligación de retención y entero del impuesto al valor agregado que, en su caso, se establezca en la Ley de la materia. En los casos en los que las disposiciones fiscales establezcan la obligación de adherir marbetes o precintos en los envases y recipientes que contengan los productos que se adquieran, la deducción a que se refiere la fracción II del artículo 25 de esta Ley, sólo podrá efectuarse cuando dichos productos tengan adherido el marbete o precinto correspondiente. | D44: Artículo 27 primer párrafo fracción VI LISR
B45: Asistencia técnica | C45: Que en los casos de asistencia técnica, de transferencia de tecnología o de regalías, se compruebe ante las autoridades fiscales que quien proporciona los conocimientos cuenta con elementos técnicos propios para ello; que se preste en forma directa y no a través de terceros, excepto cuando se trate de los supuestos a que se refiere el artículo 15-D, tercer párrafo del Código Fiscal de la Federación, y que no consista en la simple posibilidad de obtenerla, sino en servicios que efectivamente se lleven a cabo. | D45: Artículo 27 primer párrafo fracción X LISR
B46: Gastos de previsión social | C46: Que cuando se trate de gastos de previsión social, las prestaciones correspondientes se otorguen en forma general en beneficio de todos los trabajadores. Tratándose de vales de despensa otorgados a los trabajadores, serán deducibles siempre que su entrega se realice a través de los monederos electrónicos que al efecto autorice el Servicio de Administración Tributaria. Para los efectos del párrafo anterior, tratándose de trabajadores sindicalizados se considera que las prestaciones de previsión social se otorgan de manera general cuando las mismas se establecen de acuerdo a los contratos colectivos de trabajo o contratos ley. Cuando una persona moral tenga dos o más sindicatos, se considera que las prestaciones de previsión social se otorgan de manera general siempre que se otorguen de acuerdo con los contratos colectivos de trabajo o contratos ley y sean las mismas para todos los trabajadores del mismo sindicato, aun cuando éstas sean distintas en relación con las otorgadas a los trabajadores de otros sindicatos de la propia persona moral, de acuerdo con sus contratos colectivos de trabajo o contratos ley. En el caso de las aportaciones a los fondos de ahorro, éstas sólo serán deducibles cuando, además de ser generales en los términos de los párrafos anteriores, el monto de las aportaciones efectuadas por el contribuyente sea igual al monto aportado por los trabajadores, la aportación del contribuyente no exceda del trece por ciento del salario del trabajador, sin que en ningún caso dicha aportación exceda del monto equivalente de 1.3 veces el salario mínimo general elevado al año y siempre que se cumplan los requisitos de permanencia que se establezcan en el Reglamento de esta Ley. Los pagos de primas de seguros de vida que se otorguen en beneficio de los trabajadores, serán deducibles sólo cuando los beneficios de dichos seguros cubran la muerte del titular o en los casos de invalidez o incapacidad del titular para realizar un trabajo personal remunerado de conformidad con las leyes de seguridad social, que se entreguen como pago único o en las parcialidades que al efecto acuerden las partes. Serán deducibles los pagos de primas de seguros de gastos médicos que efectúe el contribuyente en beneficio de los trabajadores. Tratándose de las prestaciones de previsión social a que se refiere el párrafo anterior, se considera que éstas son generales cuando sean las mismas para todos los trabajadores de un mismo sindicato o para todos los trabajadores no sindicalizados, aun cuando dichas prestaciones sólo se otorguen a los trabajadores sindicalizados o a los trabajadores no sindicalizados. | D46: Artículo 27 primer párrafo fracción XI LISR
B47: Costo de adquisición declarado | C47: Que el costo de adquisición declarado o los intereses que se deriven de créditos recibidos por el contribuyente, correspondan a los de mercado. Cuando excedan del precio de mercado no será deducible el excedente. | D47: Artículo 27 primer párrafo fracción XIII LISR
B48: Mercancía de importación | C48: Que en el caso de adquisición de mercancías de importación, se compruebe que se cumplieron los requisitos legales para su importación. Se considerará como monto de dicha adquisición el que haya sido declarado con motivo de la importación. | D48: Artículo 27 primer párrafo fracción XIV LISR
B49: Pago a comisionistas residentes en el extranjero | C49: Que tratándose de pagos efectuados a comisionistas y mediadores residentes en el extranjero, se cumpla con los requisitos de información y documentación que señale el Reglamento de esta Ley. | D49: Artículo 27 primer párrafo fracción XVII LISR
B50: Plazo para reunir los requisitos | C50: Que al realizar las operaciones correspondientes o a más tardar el último día del ejercicio se reúnan los requisitos que para cada deducción en particular establece esta Ley. Tratándose del comprobante fiscal a que se refiere el primer párrafo de la fracción III de este artículo, éste se obtenga a más tardar el día en que el contribuyente deba presentar su declaración. Respecto de la documentación comprobatoria de las retenciones y de los pagos a que se refieren las fracciones V y VI de este artículo, respectivamente, los mismos se realicen en los plazos que al efecto establecen las disposiciones fiscales, y la documentación comprobatoria se obtenga en dicha fecha. Tratándose de las declaraciones informativas a que se refieren los artículos 76 de esta Ley, y 32, fracciones V y VIII de la Ley del Impuesto al Valor Agregado, éstas se deberán presentar en los plazos que al efecto establece el citado artículo 76 y contar a partir de esa fecha con los comprobantes fiscales correspondientes. Además, la fecha de expedición de los comprobantes fiscales de un gasto deducible deberá corresponder al ejercicio por el que se efectúa la deducción. | D50: Artículo 27 primer párrafo fracción XVIII primer párrafo LISR
B51: Deducción de anticipo de gastos | C51: Tratándose de anticipos por los gastos a que se refiere la fracción III del artículo 25 de esta Ley, éstos serán deducibles en el ejercicio en el que se efectúen, siempre que se cuente con el comprobante fiscal del anticipo en el mismo ejercicio en el que se pagó y con el comprobante fiscal que ampare la totalidad de la operación por la que se efectuó el anticipo, a más tardar el último día del ejercicio siguiente a aquél en que se dio el anticipo. La deducción del anticipo en el ejercicio en el que se pague será por el monto del mismo y, en el ejercicio en el que se reciba el bien o el servicio, la deducción será por la diferencia entre el valor total consignado en el comprobante fiscal y el monto del anticipo. En todo caso para efectuar esta deducción, se deberán cumplir con los demás requisitos que establezcan las disposiciones fiscales. | D51: Artículo 27 primer párrafo fracción XVIII segundo párrafo LISR
B52: Declaraciones informativas | C52: Cuando los contribuyentes presenten las declaraciones informativas a que se refiere el artículo 76 de esta Ley a requerimiento de la autoridad fiscal, no se considerará incumplido el requisito a que se refiere el primer párrafo de esta fracción, siempre que se presenten dichas declaraciones dentro de un plazo máximo de 60 días contados a partir de la fecha en la que se notifique el mismo. | D52: Artículo 27 primer párrafo fracción XVIII tercer párrafo LISR
B53: Trabajadores con derecho al subsidio al empleo | C53: Que tratándose de pagos efectuados por concepto de salarios y en general por la prestación de un servicio personal subordinado a trabajadores que tengan derecho al subsidio para el empleo, efectivamente se entreguen las cantidades que por dicho subsidio les correspondan a sus trabajadores y se dé cumplimiento a los requisitos a que se refieren los preceptos que lo regulan, salvo cuando no se esté obligado a ello en términos de las citadas disposiciones. | D53: Artículo 27 primer párrafo fracción XIX LISR
B54: Previsión social socios coperativistas | C54: Que tratándose de gastos que conforme a la Ley General de Sociedades Cooperativas se generen como parte del fondo de previsión social a que se refiere el artículo 58 de dicho ordenamiento y se otorguen a los socios cooperativistas, los mismos serán deducibles cuando se disponga de los recursos del fondo correspondiente. ................................. | D54: Artículo 27 primer párrafo fracción XXI LISR
B57: Persona física arrendamiento de inmuebles
B59: DISPOSICIÓN | D59: FUNDAMENTO
B60: Estrictamente indispensables | C60: Que sean estrictamente indispensables para la obtención de los ingresos por los que se está obligado al pago de este impuesto. | D60: Artículo 147 fracción I LISR
B61: Deducción de inversiones | C61: Que cuando esta Ley permita la deducción de inversiones se proceda en los términos del artículo 149 de la misma. Tratándose de contratos de arrendamiento financiero deberá estarse a lo dispuesto por el artículo 38 de esta Ley. | D61: Artículo 147 fracción II LISR
B62: Pagos mayores a $2,000.00 | C62: Estar amparada con el comprobante fiscal y que los pagos cuya contraprestación exceda de $2,000.00, se efectúen mediante transferencia electrónicas de fondos desde cuentas abiertas a nombre del contribuyente en instituciones que componen el sistema financiero y las entidades que para tal efecto autorice el Banco de México; cheque nominativo de la cuenta del contribuyente, tarjeta de crédito, débito, de servicios, o a través de los denominados monederos electrónicos autorizados por el Servicio de Administración Tributaria. | D62: Artículo 147 fracción IV LISR
B63: Debidamente registrados en contabilidad | C63: Que estén debidamente registradas en contabilidad. | D63: Artículo 147 fracción V LISR
B64: Retención y enterio de impuestos | C64: Que se cumplan las obligaciones establecidas en esta Ley en materia de retención y entero de impuestos a cargo de terceros o que, en su caso, se recabe de éstos copia de los documentos en que conste el pago de dichos impuestos. Tratándose de pagos al extranjero, sólo se podrán deducir siempre que el contribuyente proporcione la información a que esté obligado en los términos del artículo 76, fracción VI de esta Ley. | D64: Artículo 147 fracción VII primer párrafo LISR
B65: Ingresos por salarios | C65: Los pagos que a la vez sean ingresos en los términos del Capítulo I del Título IV, de esta Ley, se podrán deducir siempre que las erogaciones por concepto de remuneración, las retenciones correspondientes y las deducciones del impuesto local por salarios y en general por la prestación de un servicio personal independiente respectivas, conste en comprobante fiscal y se cumpla con las obligaciones a que se refiere el artículo 99, fracciones I, II y V de la misma, así como las disposiciones que, en su caso, regulen el subsidio para el empleo y los contribuyentes cumplan con la obligación de inscribir a los trabajadores en el Instituto Mexicano del Seguro Social cuando estén obligados a ello, en los términos de las leyes de seguridad social. | D65: Artículo 147 fracción VII segundo párrafo LISR
B66: Desglose del IVA en el CFDI | C66: Que cuando los pagos cuya deducción se pretenda, se hagan a contribuyentes que causen el impuesto al valor agregado, dicho impuesto se traslade en forma expresa y por separado en el comprobante fiscal. | D66: Artículo 147 fracción XIV segundo párrafo LISR
B67: Efectivamente erogadas | C67: Que hayan sido efectivamente erogadas en el ejercicio de que se trate. | D67: Artículo 147 fracción IX LISR
B69: Clave a capturar en el campo de régimen fiscal
B70: c_RegimenFiscal | C70: Descripción
B71: 606 | C71: Arrendamiento | D71: CFDI EMITIDOS
C72: Bancarizados con clave de uso | D72: G01 | E72: G03 | F72: G01 | G72: G03
B73: Año | C73: MES | D73: De tipo ingreso con método de pago PUE | E73: De tipo ingreso con método de pago PUE | F73: Con complemento de pago | G73: Con complemento de pago
B74: 2025 | C74: Enero | D74: 0 | E74: 1260 | F74: 0 | G74: 0
B75: 2025 | C75: Febrero | D75: 0 | E75: 0 | F75: 0 | G75: 0
B76: 2025 | C76: Marzo | D76: 0 | E76: 0 | F76: 0 | G76: 0
B77: 2025 | C77: Abril | D77: 0 | E77: 0 | F77: 0 | G77: 0
B78: 2025 | C78: Mayo | D78: 0 | E78: 0 | F78: 0 | G78: 0
B79: 2025 | C79: Junio | D79: 0 | E79: 0 | F79: 0 | G79: 0
B80: 2025 | C80: Julio | D80: 0 | E80: 0 | F80: 0 | G80: 0
B81: 2025 | C81: Agosto | D81: 0 | E81: 0 | F81: 0 | G81: 0
B82: 2025 | C82: Septiembre | D82: 0 | E82: 0 | F82: 0 | G82: 0
B83: 2025 | C83: Octubre | D83: 0 | E83: 0 | F83: 0 | G83: 0
B84: 2025 | C84: Noviembre | D84: 0 | E84: 0 | F84: 0 | G84: 0
B85: 2025 | C85: Diciembre | D85: 0 | E85: 0 | F85: 0 | G85: 0
B88: Primas de seguros y fianzas | C88: Que los pagos de primas por seguros o fianzas se hagan conforme a las leyes de la materia y correspondan a conceptos que esta Ley señala como deducibles o que en otras leyes se establezca la obligación de contratarlos y siempre que, tratándose de seguros, durante la vigencia de la póliza no se otorguen préstamos por parte de la aseguradora, a persona alguna, con garantía de las sumas aseguradas, de las primas pagadas o de las reservas matemáticas. | D88: Artículo 147 fracción VI LISR
B89: Plazo para reunir los requisitos | C89: Que al realizar las operaciones correspondientes o a más tardar el último día del ejercicio, se reúnan los requisitos que para cada deducción en lo particular establece esta Ley. Tratándose únicamente del comprobante fiscal a que se refiere el primer párrafo de la fracción IV de este artículo, éste se obtenga a más tardar el día en que el contribuyente deba presentar su declaración del ejercicio y la fecha de expedición del comprobante fiscal deberá corresponder al ejercicio en el que se efectúa la deducción. Tratándose de las declaraciones informativas a que se refieren los artículos 76 de esta Ley y 32, fracciones V y VIII de la Ley del Impuesto al Valor Agregado, éstas se deberán presentar en los plazos que al efecto establece el citado artículo 76 y contar a partir de esa fecha con los comprobantes fiscales correspondientes. | D89: Artículo 147 fracción VIII LISR
B90: Pago a trabajadores con subsidio al empleo | C90: Que tratándose de pagos efectuados por concepto de salarios y en general por la prestación de un servicio personal subordinado a trabajadores que tengan derecho al subsidio para el empleo, efectivamente se entreguen las cantidades que por dicho subsidio les correspondan a sus trabajadores y se dé cumplimiento a los requisitos a que se refieren los preceptos que, en su caso, regulen el subsidio para el empleo, salvo cuando no se esté obligado a ello en los términos de las disposiciones citadas. | D90: Artículo 147 fracción XV LISR

Sheet NO DEDUCIBLES (hidden)
D2: IR AL MENÚ
B3: Persona física actividad empresarial y profesional
B5: No deducibles artículo 28 LISR
B6: Fracción | C6: Disposición
B7: I. ISR propio y/o retenido a terceros, subsidio al empleo entregado a los trabajadores. | C7: Los pagos por impuesto sobre la renta a cargo del propio contribuyente o de terceros ni los de contribuciones en la parte subsidiada o que originalmente correspondan a terceros, conforme a las disposiciones relativas, excepto tratándose de aportaciones pagadas al Instituto Mexicano del Seguro Social a cargo de los patrones, incluidas las previstas en la Ley del Seguro de Desempleo.
B8: II. Gastos e inversiones | C8: Los gastos e inversiones, en la proporción que representen los ingresos exentos respecto del total de ingresos del contribuyente. Los gastos que se realicen en relación con las inversiones que no sean deducibles conforme a este Capítulo. En el caso de automóviles y aviones, se podrán deducir en la proporción que represente el monto original de la inversión deducible a que se refiere el artículo 36 de esta Ley, respecto del valor de adquisición de los mismos.
B9: III. Atenciones a clientes | C9: Los obsequios, atenciones y otros gastos de naturaleza análoga con excepción de aquéllos que estén directamente relacionados con la enajenación de productos o la prestación de servicios y que sean ofrecidos a los clientes en forma general.
B10: IV. Gastos de representación | C10: Los gastos de representación
B11: V. Viáticos | C11: Cuando no se destinen a la alimentación, hospedaje, transporte, renta de automóviles y no se eroguen por trabajadores o persona física servicios profesionales y no se eroguen fuera de la faja de 50 kilómetros que circunda el establecimiento del contribuyente.
B12: VI. Sanciones e indemnizaciones. | C12: Las sanciones, las indemnizaciones por daños y perjuicios o las penas convencionales. Las indemnizaciones por daños y perjuicios y las penas convencionales, podrán deducirse cuando la ley imponga la obligación de pagarlas por provenir de riesgos creados, responsabilidad objetiva, caso fortuito, fuerza mayor o por actos de terceros, salvo que los daños y los perjuicios o la causa que dio origen a la pena convencional, se hayan originado por culpa imputable al contribuyente.
B13: VII. Intereses por personas morales no lucrativas. | C13: Los intereses devengados por préstamos o por adquisición, de valores a cargo del Gobierno Federal inscritos en el Registro Nacional de Valores, así como tratándose de títulos de crédito o de créditos de los señalados en el artículo 8 de esta Ley, cuando el préstamo o la adquisición se hubiera efectuado de personas físicas o personas morales con fines no lucrativos, excepto instituciones de crédito y casas de bolsa residentes en el país.
B14: VIII. Provisiones de activo y pasivo. | C14: Las provisiones para la creación o el incremento de reservas complementarias de activo o de pasivo que se constituyan con cargo a las adquisiciones o gastos del ejercicio, con excepción de las relacionadas con las gratificaciones a los trabajadores correspondientes al ejercicio.
B15: IX. Reservas por indemnizaciones. | C15: Las reservas que se creen para indemnizaciones al personal, para pagos de antigüedad o cualquier otra de naturaleza análoga, con excepción de las que se constituyan en los términos de esta Ley.
B16: X. Primas o sobreprecio por reembolso de acciones. | C16: Las primas o sobreprecio sobre el valor nominal que el contribuyente pague por el reembolso de las acciones que emita.
B17: XI. Pérdida por enajenación de bienes, caso fortuito o fuerza mayor. | C17: Las pérdidas por caso fortuito, fuerza mayor o por enajenación de bienes, cuando el valor de adquisición de los mismos no corresponda al de mercado en el momento en que se adquirieron dichos bienes por el enajenante.
B18: XII. Crédito comercial | C18: El crédito comercial, aun cuando sea adquirido de terceros.
B19: XIII. Uso o goce temporal de aviones, embarcaciones, automóviles. | C19: Los pagos por el uso o goce temporal de aviones y embarcaciones, que no tengan concesión o permiso del Gobierno Federal para ser explotados comercialmente.
C20: Tratándose de pagos por el uso o goce temporal de casas habitación, sólo serán deducibles en los casos en que reúnan los requisitos que señale el Reglamento de esta Ley. Las casas de recreo, en ningún caso serán deducibles.
C21: Tratándose de automóviles, sólo serán deducibles los pagos efectuados por el uso o goce temporal de automóviles hasta por un monto que no exceda de $200.00, diarios por automóvil o $285.00, diarios por automóvil cuya propulsión sea a través de baterías eléctricas recargables, así como por automóviles eléctricos que además cuenten con motor de combustión interna o con motor accionado por hidrógeno, siempre que además de cumplir con los requisitos que para la deducción de automóviles establece la fracción II del artículo 36 de esta Ley, los mismos sean estrictamente indispensables para la actividad del contribuyente. Lo dispuesto en este párrafo no será aplicable tratándose de arrendadoras, siempre que los destinen exclusivamente al arrendamiento durante todo el periodo en el que le sea otorgado su uso o goce temporal.
B22: XIV. Pérdida de inversiones no deducibles. | C22: Las pérdidas derivadas de la enajenación, así como por caso fortuito o fuerza mayor, de los activos cuya inversión no es deducible conforme a lo dispuesto por esta Ley. Tratándose de aviones, las pérdidas derivadas de su enajenación, así como por caso fortuito o fuerza mayor, sólo serán deducibles en la parte proporcional en la que se haya podido deducir el monto original de la inversión. La pérdida se determinará conforme a lo dispuesto por el artículo 31 de esta Ley.
B23: XV. IVA e IEPS | C23: Los pagos por concepto de impuesto al valor agregado o del impuesto especial sobre producción y servicios, que el contribuyente hubiese efectuado y el que le hubieran trasladado. No se aplicará lo dispuesto en esta fracción, cuando el contribuyente no tenga derecho a acreditar los mencionados impuestos que le hubieran sido trasladados o que hubiese pagado con motivo de la importación de bienes o servicios, que correspondan a gastos o inversiones deducibles en los términos de esta Ley. Tampoco será deducible el impuesto al valor agregado ni el impuesto especial sobre producción y servicios, que le hubieran trasladado al contribuyente ni el que hubiese pagado con motivo de la importación de bienes o servicios, cuando la erogación que dio origen al traslado o al pago no sea deducible en los términos de esta Ley.
B24: XVI. Pérdidas por fusión de sociedades. | C24: Las pérdidas que deriven de fusión, de reducción de capital o de liquidación de sociedades, en las que el contribuyente hubiera adquirido acciones, partes sociales o certificados de aportación patrimonial de las sociedades nacionales de crédito.
B25: XVII. Pérdida por enajenación de acciones. | C25: Las pérdidas que provengan de la enajenación de acciones y de otros títulos valor cuyo rendimiento no sea interés en los términos del artículo 8 de esta Ley. Tampoco serán deducibles las pérdidas financieras que provengan de operaciones financieras derivadas de capital referidas a acciones o índices accionarios.
B26: XVIII. Gastos del extranjero a prorrata. | C26: Los gastos que se hagan en el extranjero a prorrata con quienes no sean contribuyentes del impuesto sobre la renta en los términos de los Títulos II o IV de esta Ley.
B27: XIX. Pérdidas en operaciones financieras derivadas. | C27: Las pérdidas que se obtengan en las operaciones financieras derivadas y en las operaciones a las que se refiere el artículo 21 de esta Ley, cuando se celebren con personas físicas o morales residentes en México o en el extranjero, que sean partes relacionadas en los términos del artículo 179 de esta Ley, cuando los términos convenidos no correspondan a los que se hubieren pactado con o entre partes independientes en operaciones comparables.
B28: XX. Consumo en restaurantes. | C28: El 91.5% de los consumos en restaurantes. Para que proceda la deducción de la diferencia, el pago deberá hacerse invariablemente mediante tarjeta de crédito, de débito o de servicios, o a través de los monederos electrónicos que al efecto autorice el Servicio de Administración Tributaria. Serán deducibles al 100% los consumos en restaurantes que reúnan los requisitos de la fracción V de este artículo sin que se excedan los límites establecidos en dicha fracción. En ningún caso los consumos en bares serán deducibles.
B29: XXI. Gastos en comedores que no se encuentren a disposición de todos los trabajadores. | C29: Los gastos en comedores que por su naturaleza no estén a disposición de todos los trabajadores de la empresa y aun cuando lo estén, éstos excedan de un monto equivalente a un salario mínimo general diario del área geográfica del contribuyente por cada trabajador que haga uso de los mismos y por cada día en que se preste el servicio, adicionado con las cuotas de recuperación que pague el trabajador por este concepto.
C30: El límite que establece esta fracción no incluye los gastos relacionados con la prestación del servicio de comedor como son, el mantenimiento de laboratorios o especialistas que estudien la calidad e idoneidad de los alimentos servidos en los comedores a que se refiere el párrafo anterior.
B31: XXII. Pagos por servicios aduaneros. | C31: Los pagos por servicios aduaneros, distintos de los honorarios de agentes aduanales y de los gastos en que incurran dichos agentes o la persona moral constituida por dichos agentes aduanales en los términos de la Ley Aduanera.
B32: XXIII. Pagos realizados a partes relacionadas en ingresos sujetos a regímenes fiscales preferentes. | C32: Los pagos realizados a partes relacionadas o a través de un acuerdo estructurado, cuando los ingresos de su contraparte estén sujetos a regímenes fiscales preferentes.
B33: XXIV. Pagos de cantidades iniciales. | C33: Los pagos de cantidades iniciales por el derecho de adquirir o vender, bienes, divisas, acciones u otros títulos valor que no coticen en mercados reconocidos, de acuerdo con lo establecido por el artículo 16-C del Código Fiscal de la Federación, y que no se hubiera ejercido, siempre que se trate de partes contratantes que sean relacionadas en los términos del artículo 179 de esta Ley.
B34: XXV. Restitución. | C34: La restitución efectuada por el prestatario por un monto equivalente a los derechos patrimoniales de los títulos recibidos en préstamo, cuando dichos derechos sean cobrados por los prestatarios de los títulos.
B35: XXVI. PTU pagada | C35: Las cantidades que tengan el carácter de participación en la utilidad del contribuyente o estén condicionadas a la obtención de ésta, ya sea que correspondan a trabajadores, a miembros del consejo de administración, a obligacionistas o a otros.
B36: XXVII. Intereses que deriven del monto de la duda. | C36: Los intereses que deriven del monto de las deudas del contribuyente que excedan del triple de su capital contable que provengan de deudas contraídas con partes relacionadas residentes en el extranjero en los términos del artículo 179 de esta Ley.
B37: XXVIII. Anticipos distintos de gastos. | C37: Los anticipos por las adquisiciones de las mercancías, materias primas, productos semiterminados y terminados o por los gastos relacionados directa o indirectamente con la producción o la prestación de servicios a que se refiere el artículo 39 de esta Ley. Dichos anticipos tampoco formarán parte del costo de lo vendido a que se refiere la fracción II del artículo 25 de esta Ley.
C38: Para los efectos de esta fracción, el monto total de las adquisiciones o de los gastos, se deducirán en los términos de la Sección III del Título II de esta Ley, siempre que se cuente con el comprobante fiscal que ampare la totalidad de la operación por la que se efectuó el anticipo.
B39: XXIX. Pagos que sean deducibles para miembros de un mismo grupo. | C39: Los pagos que efectúe el contribuyente que también sean deducibles para un miembro del mismo grupo, o para el mismo contribuyente en un país o jurisdicción en donde también sea considerado residente fiscal. Si el contribuyente es un residente en el extranjero con establecimiento permanente en territorio nacional, esta fracción también será aplicable cuando el pago sea deducible para el residente en el extranjero en su país o jurisdicción de residencia fiscal.
B40: XXX. Ingresos exentos de los trabajadores. | C40: Los pagos que a su vez sean ingresos exentos para el trabajador, hasta por la cantidad que resulte de aplicar el factor de 0.53 al monto de dichos pagos. El factor a que se refiere este párrafo será del 0.47 cuando las prestaciones otorgadas por los contribuyentes a favor de sus trabajadores que a su vez sean ingresos exentos para dichos trabajadores, en el ejercicio de que se trate, no disminuyan respecto de las otorgadas en el ejercicio fiscal inmediato anterior.
B41: XXXI.- Derogado
B42: XXXII. Intereses netos del ejercicio | C42: Los intereses netos del ejercicio que excedan del monto que resulte de multiplicar la utilidad fiscal ajustada por el 30%.
B43: XXXIII.- Subcontratación de personal. | C43: Los pagos que se realicen en los supuestos señalados en el artículo 15-D, primer y segundo párrafos del Código Fiscal de la Federación.
B47: Persona física arrendamiento de inmuebles
B49: Artículo 148 LISR
B50: Fracción | C50: Disposición
B51: I. ISR propio y/o retenido a terceros, subsidio al empleo entregado a los trabajadores. | C51: Los pagos por impuesto sobre la renta a cargo del propio contribuyente o de terceros ni los de contribuciones en la parte subsidiada o que originalmente correspondan a terceros, conforme a las disposiciones relativas, excepto tratándose de aportaciones pagadas al Instituto Mexicano del Seguro Social a cargo de los patrones. Tampoco serán deducibles las cantidades provenientes del subsidio para el empleo que entregue el contribuyente, en su carácter de retenedor, a las personas que le presten servicios personales subordinados ni los accesorios de las contribuciones, a excepción de los recargos que el contribuyente hubiere pagado efectivamente, inclusive mediante compensación.
B52: II. Inversiones en casa habitación | C52: Las inversiones en casas habitación, en comedores que por su naturaleza no estén a disposición de todos los trabajadores de la empresa, en aviones y embarcaciones, que no tengan concesión o permiso del Gobierno Federal para ser explotados comercialmente ni los pagos por el uso o goce temporal de dichos bienes.
B53: III. Uso o goce temporal de automóviles | C53: En ningún caso serán deducibles las inversiones o los pagos por el uso o goce temporal de automóviles
B54: IV. Donativos y gastos de representación | C54: Los donativos y gastos de representación
B55: V. Sanciones e indemnizaciones. | C55: Las sanciones, indemnizaciones por daños y perjuicios o las penas convencionales. Las indemnizaciones por daños y perjuicios y las penas convencionales, podrán deducirse cuando la Ley imponga la obligación de pagarlas por provenir de riesgos creados, responsabilidad objetiva, caso fortuito, fuerza mayor o por actos de terceros, salvo que los daños y los perjuicios o la causa que dio origen a la pena convencional, se haya originado por culpa imputable al contribuyente
B56: VI. Salarios, comisiones y honorarios | C56: Los salarios, comisiones y honorarios, pagados por quien concede el uso o goce temporal de bienes inmuebles en un año de calendario, en el monto en que excedan, en su conjunto, del 10% de los ingresos anuales obtenidos por conceder el uso o goce temporal de bienes inmuebles.
B57: VII. Intereses pagados que correspondan a inversiones que no generen ingresos | C57: Los intereses pagados por el contribuyente que correspondan a inversiones de las que no se estén derivando ingresos acumulables por los que se pueda efectuar esta deducción. En el caso de capitales tomados en préstamo para la adquisición de inversiones o la realización de gastos o cuando las inversiones o gastos se efectúen a crédito, y dichas inversiones o gastos no sean deducibles para los efectos de esta Ley, los intereses que se deriven de los capitales tomados en préstamo o de las operaciones a crédito, tampoco serán deducibles. Si las inversiones o los gastos, fueran parcialmente deducibles, los intereses sólo serán deducibles en esa proporción, incluso los determinados conforme a lo previsto en el artículo 44 de esta Ley. Para los efectos de lo dispuesto en esta fracción, se considera pago de interés las cantidades que por concepto de impuestos, derechos o que por cualquier otro concepto se paguen por cuenta de quien obtiene el interés, o bien cualquier otro pago, en efectivo o en especie, que se haga por cualquier concepto a quien perciba el interés, siempre que dicho pago derive del mismo contrato que dio origen al pago de intereses.
B58: VIII. IVA e IEPS | C58: Los pagos por conceptos de impuesto al valor agregado o del impuesto especial sobre producción y servicios que el contribuyente hubiese efectuado y el que le hubieran trasladado. No se aplicará lo dispuesto en esta fracción, cuando el contribuyente no tenga derecho al acreditamiento de los mencionados impuestos que le hubieran sido trasladados o que se hubiese pagado con motivo de la importación de bienes o servicios, que corresponden a gastos o inversiones deducibles en los términos de esta Ley. Tampoco será deducible el impuesto al valor agregado o el impuesto especial sobre producción y servicios, trasladado al contribuyente o el que él hubiese pagado con motivo de la importación de bienes o servicios, cuando la erogación que dio origen al traslado o al pago no sea deducible en los términos de esta Ley.
B59: IX. Pérdida de inversiones no deducibles. | C59: Las pérdidas derivadas de la enajenación, así como por caso fortuito o fuerza mayor, de los activos cuya inversión no es deducible conforme a lo dispuesto por esta Ley. Tampoco será deducible la pérdida derivada de la enajenación de títulos valor, siempre que sean de los que se coloquen entre el gran público inversionista, conforme a las reglas generales que al efecto expida el Servicio de Administración Tributaria.
B60: X. Gastos relacionados con inversiones no deducibles | C60: Los gastos que se realicen en relación con las inversiones que no sean deducibles conforme a este Título.
B61: XI. Pérdidas en operaciones financieras derivadas | C61: Las pérdidas que se obtengan en las operaciones financieras derivadas y en las operaciones a las que se refiere el artículo 21 de esta Ley, cuando se celebren con personas físicas o morales residentes en México o en el extranjero, que sean partes relacionadas en los términos del artículo 90 de esta Ley, cuando los términos convenidos no correspondan a los que se hubieren pactado con o entre partes independientes en operaciones comparables.
B62: XII. Consumos en bares y restaurantes | C62: Los consumos en bares o restaurantes. Tampoco serán deducibles los gastos en comedores que por su naturaleza no estén a disposición de todos los trabajadores de la empresa y aun cuando lo estén, éstos excedan de un monto equivalente a un salario mínimo general diario del área geográfica del contribuyente por cada trabajador que haga uso de los mismos y por cada día en que se preste el servicio, adicionado con las cuotas de recuperación que pague el trabajador por este concepto. El límite que establece esta fracción no incluye los gastos relacionados con la prestación de servicio de comedor como son, el mantenimiento de laboratorios o especialistas que estudien la calidad e idoneidad de los alimentos servidos en los comedores a que se refiere el párrafo anterior.
B63: XIII. Pagos por servicios aduaneros. | C63: Los pagos por servicios aduaneros, distintos de los honorarios de agentes aduanales y de los gastos en que incurran dichos agentes o la persona moral constituida por dichos agentes aduanales en los términos de la Ley Aduanera.
B64: XIV. Pagos de cantidades iniciales. | C64: Los pagos de cantidades iniciales por el derecho de adquirir o vender, bienes, divisas, acciones u otros títulos valor que no coticen en mercados reconocidos, de acuerdo con lo establecido por el artículo 16-C del Código Fiscal de la Federación, y que no se hubiera ejercido, siempre que se trate de partes contratantes que sean relacionadas en los términos del artículo 179 de esta Ley.
B65: XV. Restitución. | C65: La restitución efectuada por el prestatario por un monto equivalente a los derechos patrimoniales de los títulos recibidos en préstamo.
B66: XVI. PTU | C66: Las cantidades que tengan el carácter de participación en la utilidad del contribuyente o estén condicionadas a la obtención de ésta, ya sea que correspondan a trabajadores, a miembros del consejo de administración, a obligacionistas o a otros.

Sheet DISR (hidden)
B5: Fecha inicial de cálculo
B6: Fecha final de cálculo | F6: IR AL MENÚ
B7: Deducción en caso de arrendamiento
B8: ¿Plataformas tecnólogicas es pago definitivo?
C10: 606 | D10: 612 | E10: 625 | F10: 626
B11: Ingresos acumulables | C11: Arrendamiento | D11: Actividad empresarial y profesional | E11: Plataformas tecnólogicas | F11: Régimen Simplificado de Confianza
B12: CFDI emitidos de tipo ingreso con método de pago PUE
B13: (+) CFDI emitidos con complemento de pago
B14: (+) Ganancia en venta de activo fijo
B15: (+) Intereses
B16: (+) Otros
B17: (-) Aplicación de anticipos en el mismo CFDI de ingreso
B18: (=) Total de ingresos acumulables
C20: 606 | D20: 612 | E20: 625 | F20: 626
B21: Deducciones autorizadas | C21: Arrendamiento | D21: Actividad empresarial y profesional | E21: Plataformas tecnólogicas | F21: Régimen Simplificado de Confianza
B22: CFDI emitidos de tipo ingreso con método de pago PUE
B23: (+) CFDI emitidos con complemento de pago
B24: (+) Pérdida en venta de activo fijo
B25: (+) Depreciación fiscal
B26: (+) Otras deducciones
B27: (+) CFDI de tipo egreso emitidos con método de pago PUE
B28: (-) No deducibles
B29: (-) CFDI de tipo egreso recibidos
B30: (=) Total de deducciones autorizadas
B32: =IF(C7="Opcional","35% del ingreso","") -> 
B33: =IF(C7="Opcional","Impuesto predial","") -> 
B35: (=) Utilidad fiscal antes de PTU
B36: (-) PTU pagada
B37: (-) Pérdidas fiscales pendientes de aplicar
B38: (=) Utilidad fiscal
B39: ISR causado
B40: (-) Retenciones de ISR
B41: (-) Pagos provisionales pagados
B42: (=) ISR por pagar

Sheet PP PFAEP (hidden)
J3: IR AL MENÚ
C4: Año de cálculo | D4: 2025
C6: INGRESOS | D6: Enero | E6: Febrero | F6: Marzo | G6: Abril | H6: Mayo | I6: Junio | J6: Julio | K6: Agosto | L6: Septiembre | M6: Octubre | N6: Noviembre | O6: Diciembre
C7: Ingresos acumulables
C8: CFDI con método de pago PUE
C9: CFDI con complemento de pago
C10: (-) Ingresos a disminuir del mes
C11: IEPS / ISAN cobrado no trasladado de manera expresa y por separado
C12: Ingresos facturados en los que se determinó ganancia por enajenación
C13: Ingresos facturados pendientes de cancelación con aceptación del receptor
C14: Ingresos facturados en los que se determinó ganancia por fluctuación cambiaria
C15: (+) Ingresos adicionales del mes
C16: Condonaciones, quitas o remisiones
C17: Gastos por cuenta de tercersos sin comprobante fiscal
C18: Intereses cobrados derivados de la actividad empresarial o de la prestación de servicios profesionales
C19: Ganancia por enajenación de activos
C20: Ganancia efectivamente percibida por fluctuación cambiaria
C21: (-) Ingresos exentos
C22: (=) INGRESOS DEL MES | D22: =IFERROR(SUM(D8:D9,D16:D20)-SUM(D11:D14,D21),0) -> 0 | E22: =IFERROR(SUM(E8:E9,E16:E20)-SUM(E11:E14,E21),0) -> 0 | F22: 0 | G22: 0 | H22: 0 | I22: 0 | J22: 0 | K22: 0 | L22: 0 | M22: 0 | N22: 0 | O22: 0
C23: INGRESOS DE MESES ANTERIORES | D23: 0 | E23: =SUM($D$22:D22) -> 0 | F23: =SUM($D$22:E22) -> 0 | G23: =SUM($D$22:F22) -> 0 | H23: =SUM($D$22:G22) -> 0 | I23: =SUM($D$22:H22) -> 0 | J23: =SUM($D$22:I22) -> 0 | K23: =SUM($D$22:J22) -> 0 | L23: =SUM($D$22:K22) -> 0 | M23: =SUM($D$22:L22) -> 0 | N23: =SUM($D$22:M22) -> 0 | O23: =SUM($D$22:N22) -> 0
C24: (=) TOTAL DE INGRESOS DEL PERIODO | D24: =SUM(D22:D23) -> 0 | E24: =SUM(E22:E23) -> 0 | F24: 0 | G24: 0 | H24: 0 | I24: 0 | J24: 0 | K24: 0 | L24: 0 | M24: 0 | N24: 0 | O24: 0
C26: DEDUCCIONES AUTORIZADAS
C27: Gastos de nómina del periodo no considerados en el prellenado
C28: Salarios régimen 02 Gravado | D28: =CONCENTRADO!D53 -> 0
C29: (-) PTU pagada
C30: (-) Víaticos
C31: (-) Ajuste a gravados
C32: Total de sueldos gravados | D32: =IFERROR(D28-D29-D30-D31,0) -> 0 | E32: =IFERROR(E28-E29-E30-E31,0) -> 0 | F32: 0 | G32: 0 | H32: 0 | I32: 0 | J32: 0 | K32: 0 | L32: 0 | M32: 0 | N32: 0 | O32: 0
C33: Salarios régimen 02 Exento | D33: =CONCENTRADO!E53 -> 0
C34: (-) PTU pagada
C35: (-) Víaticos
C36: (-) Ajuste a Exento
C37: Total de sueldos exentos | D37: =IFERROR(D33-D34-D35-D36,0) -> 0 | E37: =IFERROR(E33-E34-E35-E36,0) -> 0 | F37: 0 | G37: 0 | H37: 0 | I37: 0 | J37: 0 | K37: 0 | L37: 0 | M37: 0 | N37: 0 | O37: 0
C38: (x) Factor de no deducibles | D38: 0.53
C39: (=) Nómina no deducible de los exentos | D39: =IFERROR(D37*D38,0) -> 0 | E39: =IFERROR(E37*E38,0) -> 0 | F39: 0 | G39: 0 | H39: 0 | I39: 0 | J39: 0 | K39: 0 | L39: 0 | M39: 0 | N39: 0 | O39: 0
C40: Salarios régimen 13 Gravado
C41: Salarios régimen 13 Exento
C42: (x) Factor de no deducibles
C43: Total régimen 13 no deducible | D43: =IFERROR(D41*D42,0) -> 0 | E43: =IFERROR(E41*E42,0) -> 0 | F43: 0 | G43: 0 | H43: 0 | I43: 0 | J43: 0 | K43: 0 | L43: 0 | M43: 0 | N43: 0 | O43: 0
C44: Impuesto sobre nómina
C45: Cuotas obrero patronales
C46: INFONAVIT
C47: Otros
C48: (+) Compras y gastos facturados del mes
C49: CFDI recibidos con método de pago PUE bancarizados
C50: Con clave de uso G01 (Adquisición de mercancía)
C51: 02 Cheque nominativo
C52: 03 Transferencia electrónica de fondos | D52: 25000
C53: 04 Tarjeta de crédito
C54: 05 Monedero electrónico
C55: 06 Dinero electrónico
C56: 28 Tarjeta de débito
C57: 29 Tarjeta de servicios
C58: Con clave de uso G03 (Gastos en general)
C59: 02 Cheque nominativo
C60: 03 Transferencia electrónica de fondos
C61: 04 Tarjeta de crédito
C62: 05 Monedero electrónico
C63: 06 Dinero electrónico
C64: 28 Tarjeta de débito
C65: 29 Tarjeta de servicios
C66: CFDI recibidos con complemento de pago
C67: Con clave de uso G01 (Adquisición de mercancía)
C68: 02 Cheque nominativo
C69: 03 Transferencia electrónica de fondos
C70: 04 Tarjeta de crédito
C71: 05 Monedero electrónico
C72: 06 Dinero electrónico
C73: 28 Tarjeta de débito
C74: 29 Tarjeta de servicios
C75: Con clave de uso G03 (Gastos en general)
C76: 02 Cheque nominativo
C77: 03 Transferencia electrónica de fondos
C78: 04 Tarjeta de crédito
C79: 05 Monedero electrónico
C80: 06 Dinero electrónico
C81: 28 Tarjeta de débito
C82: 29 Tarjeta de servicios
C83: (+) Devoluciones, descuentos y bonificaciones facturadas del mes
C84: (-) Compras y gastos no deducibles del mes | D84: 6500
C85: (+) Compras y gastos del mes no considerados en el pre llenado
C86: (-) Facturas de egresos recibidas por compras y gastos del mes
C87: (=) Compras y gasto del mes | D87: =IFERROR(SUM(D32,D39,D40,D43,D44:D47,D51:D83,D85)-D84-D86,0) -> 18500 | E87: =IFERROR(SUM(E32,E39,E40,E43,E44:E47,E51:E83,E85)-E84-E86,0) -> 0 | F87: 0 | G87: 0 | H87: 0 | I87: 0 | J87: 0 | K87: 0 | L87: 0 | M87: 0 | N87: 0 | O87: 0
C88: (+) Deducción de inversiones
C89: (+) Deducción inmeditata de inversiones
C90: (=) TOTAL DE DEDUCCIONES AUTORIZADAS DEL MES | D90: =SUM(D87:D89) -> 18500 | E90: =SUM(E87:E89) -> 0 | F90: 0 | G90: 0 | H90: 0 | I90: 0 | J90: 0 | K90: 0 | L90: 0 | M90: 0 | N90: 0 | O90: 0
C91: TOTAL DE DEDUCCIONES DE MESES ANTERIORES | D91: 0 | E91: =SUM($D$90:D90) -> 18500 | F91: =SUM($D$90:E90) -> 18500 | G91: =SUM($D$90:F90) -> 18500 | H91: =SUM($D$90:G90) -> 18500 | I91: =SUM($D$90:H90) -> 18500 | J91: =SUM($D$90:I90) -> 18500 | K91: =SUM($D$90:J90) -> 18500 | L91: =SUM($D$90:K90) -> 18500 | M91: =SUM($D$90:L90) -> 18500 | N91: =SUM($D$90:M90) -> 18500 | O91: =SUM($D$90:N90) -> 18500
C92: (=) TOTAL DE DEDUCCIONES AUTORIZADAS DEL PERIODO | D92: =SUM(D90:D91) -> 18500 | E92: =SUM(E90:E91) -> 18500 | F92: 18500 | G92: 18500 | H92: 18500 | I92: 18500 | J92: 18500 | K92: 18500 | L92: 18500 | M92: 18500 | N92: 18500 | O92: 18500
C93: (+) Facilidades administrativas o estímulos por aplicar | D93: =SUM(D94:D99) -> 0 | E93: =SUM(E94:E99) -> 0 | F93: 0 | G93: 0 | H93: 0 | I93: 0 | J93: 0 | K93: 0 | L93: 0 | M93: 0 | N93: 0 | O93: 0
C94: Estímulo por cantratar adultos mayores (25% del salario pagado)
C95: Deducción del 25% del salario pagado por la contratqación de personas que padezcan discapacidad
C96: Deducción adicional por enajenación de libros, periódicos y revistas
C97: Deducción equivalente hata 8% de ingresos propios sin documentación que reúna requisitos fiscales para contribuyentes dedicadas exclusivamente al autotransporte
C98: Deducción del costo de adquisición de terrenos por contribuyentes dedicados a la construcciòn y desarrollos inmobiliarios
C99: Deducción de donativos realizados a organismos públicos descentralizados del Gobierno Federal
C100: Total de deducciones autorizadas | D100: =IFERROR(D92+D93,0) -> 18500 | E100: =IFERROR(E92+E93,0) -> 18500 | F100: 18500 | G100: 18500 | H100: 18500 | I100: 18500 | J100: 18500 | K100: 18500 | L100: 18500 | M100: 18500 | N100: 18500 | O100: 18500
C102: DETERMINACIÓN
C103: Total de ingresos del periodo | D103: =D24 -> 0 | E103: =E24 -> 0 | F103: 0 | G103: 0 | H103: 0 | I103: 0 | J103: 0 | K103: 0 | L103: 0 | M103: 0 | N103: 0 | O103: 0
C104: Total de deducciones autorizadas | D104: =D100 -> 18500 | E104: =E100 -> 18500 | F104: 18500 | G104: 18500 | H104: 18500 | I104: 18500 | J104: 18500 | K104: 18500 | L104: 18500 | M104: 18500 | N104: 18500 | O104: 18500
C105: (-) PTU pagada
C106: (-) Pérdidas fiscales de ejercicios anetriores que se aplican en el periodo
C107: (=) Base gravable | D107: =IFERROR(IF(D103>=SUM(D104:D106),D103-SUM(D104:D106),0),0) -> 0 | E107: =IFERROR(IF(E103>=SUM(E104:E106),E103-SUM(E104:E106),0),0) -> 0 | F107: 0 | G107: 0 | H107: 0 | I107: 0 | J107: 0 | K107: 0 | L107: 0 | M107: 0 | N107: 0 | O107: 0
C108: Impuesto causado | D108: =IFERROR(ROUND(((D107-VLOOKUP(D107,INDIRECT("T"&D$6),1))*VLOOKUP(D107,INDIRECT("T"&D$6),4)%)+VLOOKUP(D107,INDIRECT("T"&D$6),3),0),0) -> 0 | E108: =IFERROR(ROUND(((E107-VLOOKUP(E107,INDIRECT("T"&E$6),1))*VLOOKUP(E107,INDIRECT("T"&E$6),4)%)+VLOOKUP(E107,INDIRECT("T"&E$6),3),0),0) -> 0 | F108: 0 | G108: 0 | H108: 0 | I108: 0 | J108: 0 | K108: 0 | L108: 0 | M108: 0 | N108: 0 | O108: 0
C109: (-) Estímulos por aplicar | D109: =SUM(D110:D117) -> 0 | E109: =SUM(E110:E117) -> 0 | F109: 0 | G109: 0 | H109: 0 | I109: 0 | J109: 0 | K109: 0 | L109: 0 | M109: 0 | N109: 0 | O109: 0
C110: Producción cinematográfica
C111: Estímulo a proyectos de inversión en las artes
C112: Crédito IEPS diéses automotriz para transporte público de personas
C113: Crédito IEPS diéses automotriz para transporte público de carga
C114: Crédito IEPS diéses automotriz para transporte público de trurístico
C115: Crédito 50% en el pago de peaje para trnansporte público de personas
C116: Crédito 50% en el pago de peaje para trnansporte público de carga
C117: Crédito 50% en el pago de peaje para trnansporte público de trurístico
C118: (=) Impuesto del periodo | D118: =IFERROR(IF(D108>=D109,D108-D109,0),0) -> 0 | E118: =IFERROR(IF(E108>=E109,E108-E109,0),0) -> 0 | F118: 0 | G118: 0 | H118: 0 | I118: 0 | J118: 0 | K118: 0 | L118: 0 | M118: 0 | N118: 0 | O118: 0
C119: (-) Pagos provisionales efectuados con anterioridas | D119: =IFERROR(D120,0) -> 0 | E119: =IFERROR(E120,0) -> 0 | F119: 0 | G119: 0 | H119: 0 | I119: 0 | J119: 0 | K119: 0 | L119: 0 | M119: 0 | N119: 0 | O119: 0
C120: Impuesto a cargo | D120: 0
C121: Estatus
C122: No. de operación de la declaración
C123: Fecha de presentación de la declaración
C124: (-) Total de ISR retenido | D124: =IFERROR(D129+D130,0) -> 0 | E124: =IFERROR(E129+E130,0) -> 0 | F124: 0 | G124: 0 | H124: 0 | I124: 0 | J124: 0 | K124: 0 | L124: 0 | M124: 0 | N124: 0 | O124: 0
C125: ISR retenido
C126: Estatus
C127: No. de operación de la declaración
C128: Fecha de presentación de la declaración
C129: ISR retenido de meses anetriores, solo declraciones pagadas | D129: =IFERROR(SUM($C$130:C130),0) -> 0 | E129: =IFERROR(SUM($C$130:D130),0) -> 0 | F129: =IFERROR(SUM($C$130:E130),0) -> 0 | G129: =IFERROR(SUM($C$130:F130),0) -> 0 | H129: =IFERROR(SUM($C$130:G130),0) -> 0 | I129: =IFERROR(SUM($C$130:H130),0) -> 0 | J129: =IFERROR(SUM($C$130:I130),0) -> 0 | K129: =IFERROR(SUM($C$130:J130),0) -> 0 | L129: =IFERROR(SUM($C$130:K130),0) -> 0 | M129: =IFERROR(SUM($C$130:L130),0) -> 0 | N129: =IFERROR(SUM($C$130:M130),0) -> 0 | O129: =IFERROR(SUM($C$130:N130),0) -> 0
C130: ISR retenido del mes
C131: (=) Impuesto a cargo | D131: =IFERROR(IF(D118>=(D119+D124),D118-D119-D124,0),0) -> 0 | E131: =IFERROR(IF(E118>=(E119+E124),E118-E119-E124,0),0) -> 0 | F131: 0 | G131: 0 | H131: 0 | I131: 0 | J131: 0 | K131: 0 | L131: 0 | M131: 0 | N131: 0 | O131: 0
C133: PAGO
C134: A cargo | D134: =D131 -> 0 | E134: =E131 -> 0 | F134: 0 | G134: 0 | H134: 0 | I134: 0 | J134: 0 | K134: 0 | L134: 0 | M134: 0 | N134: 0 | O134: 0
C135: (-) Subsidio para el empleo
C136: (-) Compensaciones
C137: Tipo
C138: Periodicidad
C139: Periodo
C140: Ejercicio
C141: Fecha de causación (dd-mm-aaaa)
C142: No. de operación
C143: Concepto
C144: Tipo de declaración
C145: No. de operación
C146: Monto del saldo a favor original
C147: Fecha en que se preentó la declaración del saldo a favor (dd-mm-aaaa)
C148: Remanente histórico antes de la aplicación
C149: Remanente actualizado antes de la aplicación
C150: (-) Estímulos al impuesto a cargo
C151: Total de aplicaciones | D151: =IFERROR(D135+D136+D150,0) -> 0 | E151: =IFERROR(E135+E136+E150,0) -> 0 | F151: 0 | G151: 0 | H151: 0 | I151: 0 | J151: 0 | K151: 0 | L151: 0 | M151: 0 | N151: 0 | O151: 0
C153: Total de contribuciones | D153: =D134 -> 0 | E153: =E134 -> 0 | F153: 0 | G153: 0 | H153: 0 | I153: 0 | J153: 0 | K153: 0 | L153: 0 | M153: 0 | N153: 0 | O153: 0
C154: (-) Total de aplicaciones | D154: =D151 -> 0 | E154: =E151 -> 0 | F154: 0 | G154: 0 | H154: 0 | I154: 0 | J154: 0 | K154: 0 | L154: 0 | M154: 0 | N154: 0 | O154: 0
C155: (=) Cantidad a cargo | D155: =IFERROR(IF(D153>=D154,D153-D154,0),0) -> 0 | E155: =IFERROR(IF(E153>=E154,E153-E154,0),0) -> 0 | F155: 0 | G155: 0 | H155: 0 | I155: 0 | J155: 0 | K155: 0 | L155: 0 | M155: 0 | N155: 0 | O155: 0

Sheet PP PFA (hidden)
J3: IR AL MENÚ
C4: Año de cálculo | D4: 2025
C6: INGRESOS | D6: Enero | E6: Febrero | F6: Marzo | G6: Abril | H6: Mayo | I6: Junio | J6: Julio | K6: Agosto | L6: Septiembre | M6: Octubre | N6: Noviembre | O6: Diciembre
C7: Ingresos cobrados del mes | D7: =SUM(D8:D9) -> 0 | E7: =SUM(E8:E9) -> 0 | F7: 0 | G7: 0 | H7: 0 | I7: 0 | J7: 0 | K7: 0 | L7: 0 | M7: 0 | N7: 0 | O7: 0
C8: CFDI con método de pago PUE
C9: CFDI con complemento de pago
C10: (-) Ingresos a disminuir del mes
C11: Ingresos en crédito
C12: Depósitos en garantía
C13: Ingresos facturados pendientes de cancelación con aceptación del receptor
C14: (+) Ingresos adicionales del mes
C15: Ingresos facturados no considerados en el prellenado
C16: Ingresos en crédito
C17: Ingresos por depósitos en garantía
C18: Ingresos de certificados de participación inmobiliaria no amortizables
C19: (=) INGRESOS DEL MES | D19: =IFERROR(SUM(D7,D15:D18)-SUM(D11:D13),0) -> 0 | E19: =IFERROR(SUM(E7,E15:E18)-SUM(E11:E13),0) -> 0 | F19: 0 | G19: 0 | H19: 0 | I19: 0 | J19: 0 | K19: 0 | L19: 0 | M19: 0 | N19: 0 | O19: 0
C21: DEDUCCIONES AUTORIZADAS
C22: ¿Tipo de deducción? | D22: Comprobable
C24: Deducción opcional | D24: =IFERROR(IF(D22="Opcional",ROUND(D7*0.35,2),""),"") ->  | E24: =IFERROR(IF(E22="Opcional",ROUND(E7*0.35,2),""),"") -> 
C25: Impuesto predial | D25: 100000
C26: Total de deducciones autorizadas | D26: =SUMIF(D24:D25,">0") -> 100000 | E26: =SUMIF(E24:E25,">0") -> 0 | F26: 0 | G26: 0 | H26: 0 | I26: 0 | J26: 0 | K26: 0 | L26: 0 | M26: 0 | N26: 0 | O26: 0
C28: Gastos facturados del mes | D28: =IFERROR(D29+D46,0) -> 0 | E28: =IFERROR(E29+E46,0) -> 0 | F28: 0 | G28: 0 | H28: 0 | I28: 0 | J28: 0 | K28: 0 | L28: 0 | M28: 0 | N28: 0 | O28: 0
C29: CFDI recibidos con método de pago PUE bancarizados | D29: =IFERROR(ROUND(D30+D38,2),0) -> 0 | E29: =IFERROR(ROUND(E30+E38,2),0) -> 0 | F29: 0 | G29: 0 | H29: 0 | I29: 0 | J29: 0 | K29: 0 | L29: 0 | M29: 0 | N29: 0 | O29: 0
C30: Con clave de uso G01 (Adquisición de mercancía) | D30: =SUM(D31:D37) -> 0 | E30: =SUM(E31:E37) -> 0 | F30: 0 | G30: 0 | H30: 0 | I30: 0 | J30: 0 | K30: 0 | L30: 0 | M30: 0 | N30: 0 | O30: 0
C31: 02 Cheque nominativo
C32: 03 Transferencia electrónica de fondos
C33: 04 Tarjeta de crédito
C34: 05 Monedero electrónico
C35: 06 Dinero electrónico
C36: 28 Tarjeta de débito
C37: 29 Tarjeta de servicios
C38: Con clave de uso G03 (Gastos en general) | D38: =SUM(D39:D45) -> 0 | E38: =SUM(E39:E45) -> 0 | F38: 0 | G38: 0 | H38: 0 | I38: 0 | J38: 0 | K38: 0 | L38: 0 | M38: 0 | N38: 0 | O38: 0
C39: 02 Cheque nominativo
C40: 03 Transferencia electrónica de fondos
C41: 04 Tarjeta de crédito
C42: 05 Monedero electrónico
C43: 06 Dinero electrónico
C44: 28 Tarjeta de débito
C45: 29 Tarjeta de servicios
C46: CFDI recibidos con complemento de pago | D46: =IFERROR(ROUND(D47+D55,2),0) -> 0 | E46: =IFERROR(ROUND(E47+E55,2),0) -> 0 | F46: 0 | G46: 0 | H46: 0 | I46: 0 | J46: 0 | K46: 0 | L46: 0 | M46: 0 | N46: 0 | O46: 0
C47: Con clave de uso G01 (Adquisición de mercancía) | D47: =SUM(D48:D54) -> 0 | E47: =SUM(E48:E54) -> 0 | F47: 0 | G47: 0 | H47: 0 | I47: 0 | J47: 0 | K47: 0 | L47: 0 | M47: 0 | N47: 0 | O47: 0
C48: 02 Cheque nominativo
C49: 03 Transferencia electrónica de fondos
C50: 04 Tarjeta de crédito
C51: 05 Monedero electrónico
C52: 06 Dinero electrónico
C53: 28 Tarjeta de débito
C54: 29 Tarjeta de servicios
C55: Con clave de uso G03 (Gastos en general) | D55: =SUM(D56:D62) -> 0 | E55: =SUM(E56:E62) -> 0 | F55: 0 | G55: 0 | H55: 0 | I55: 0 | J55: 0 | K55: 0 | L55: 0 | M55: 0 | N55: 0 | O55: 0
C56: 02 Cheque nominativo
C57: 03 Transferencia electrónica de fondos
C58: 04 Tarjeta de crédito
C59: 05 Monedero electrónico
C60: 06 Dinero electrónico
C61: 28 Tarjeta de débito
C62: 29 Tarjeta de servicios
C63: (+) Descuentos facturados del mes
C64: (-) Gastos no deducibles del mes
C65: (+) Gastos del mes no considerados en el pre llenado
C66: (-) Facturas de egresos recibidas por gastos del mes | D66: 0 | E66: 0 | F66: 0 | G66: 0 | H66: 0 | I66: 0 | J66: 0 | K66: 0 | L66: 0 | M66: 0 | N66: 0 | O66: 0
C67: (=) Gastos del periodo | D67: =IFERROR(SUM(D28,D63,D65)-D64-D66,0) -> 0 | E67: =IFERROR(SUM(E28,E63,E65)-E64-E66,0) -> 0 | F67: 0 | G67: 0 | H67: 0 | I67: 0 | J67: 0 | K67: 0 | L67: 0 | M67: 0 | N67: 0 | O67: 0
C69: Deducción de inversiones
C70: Impuesto predial
C71: Estímulos fiscales | D71: =SUM(D72:D73) -> 0 | E71: =SUM(E72:E73) -> 0 | F71: 0 | G71: 0 | H71: 0 | I71: 0 | J71: 0 | K71: 0 | L71: 0 | M71: 0 | N71: 0 | O71: 0
C72: Estímulo por contratar adultos mayores (25% del salario pagado)
C73: Deducción del 25% del salario efectivamente pagado por la contratación de personas que padezcan alguna incapacidad
C74: Total de deducciones autorizadas | D74: =IFERROR(D28+D69+D70+D71,0) -> 0 | E74: =IFERROR(E28+E69+E70+E71,0) -> 0 | F74: 0 | G74: 0 | H74: 0 | I74: 0 | J74: 0 | K74: 0 | L74: 0 | M74: 0 | N74: 0 | O74: 0
C76: DETERMINACIÓN
C77: Total de ingresos del periodo | D77: =D7 -> 0 | E77: =E7 -> 0 | F77: 0 | G77: 0 | H77: 0 | I77: 0 | J77: 0 | K77: 0 | L77: 0 | M77: 0 | N77: 0 | O77: 0
C78: (-) Total de deducciones autorizadas | D78: =IF(D22="Opcional",D26,IF(D22="Comprobable",D74,0)) -> 0 | E78: =IF(E22="Opcional",E26,IF(E22="Comprobable",E74,0)) -> 0 | F78: 0 | G78: 0 | H78: 0 | I78: 0 | J78: 0 | K78: 0 | L78: 0 | M78: 0 | N78: 0 | O78: 0
C79: (-) Total de deducciones superiores a los ingreso
C80: (=) Base gravable | D80: =IFERROR(IF(D77>=SUM(D78:D79),ROUND(D77-D78-D79,0),0),0) -> 0 | E80: =IFERROR(IF(E77>=SUM(E78:E79),ROUND(E77-E78-E79,0),0),0) -> 0 | F80: 0 | G80: 0 | H80: 0 | I80: 0 | J80: 0 | K80: 0 | L80: 0 | M80: 0 | N80: 0 | O80: 0
C81: Impuesto causado | D81: =IFERROR(ROUND(((D80-VLOOKUP(D80,TENERO,1))*VLOOKUP(D80,TENERO,4)%)+VLOOKUP(D80,TENERO,3),0),0) -> 0 | E81: 0 | F81: 0 | G81: 0 | H81: 0 | I81: 0 | J81: 0 | K81: 0 | L81: 0 | M81: 0 | N81: 0 | O81: 0
C82: (-) Estímulos al impuesto causado | D82: =SUM(D83:D84) -> 0 | E82: =SUM(E83:E84) -> 0 | F82: 0 | G82: 0 | H82: 0 | I82: 0 | J82: 0 | K82: 0 | L82: 0 | M82: 0 | N82: 0 | O82: 0
C83: Estímulos a proyectos de inversión en las artes gráficas
C84: Producción cenematográfica
C85: (-) Total de ISR retenido
C86: (=) Impuesto a cargo | D86: =IFERROR(IF(D81>=(D82+D85),D81-D82-D85,0),0) -> 0 | E86: =IFERROR(IF(E81>=(E82+E85),E81-E82-E85,0),0) -> 0 | F86: 0 | G86: 0 | H86: 0 | I86: 0 | J86: 0 | K86: 0 | L86: 0 | M86: 0 | N86: 0 | O86: 0
C88: PAGO
C89: A cargo | D89: =D86 -> 0 | E89: =E86 -> 0 | F89: 0 | G89: 0 | H89: 0 | I89: 0 | J89: 0 | K89: 0 | L89: 0 | M89: 0 | N89: 0 | O89: 0
C90: (-) Subsidio para el empleo
C91: (-) Compensaciones
C92: (-) Estímulos al impuesto a cargo
C93: Total de aplicaciones | D93: =IFERROR(D90+D91+D92,0) -> 0 | E93: =IFERROR(E90+E91+E92,0) -> 0 | F93: 0 | G93: 0 | H93: 0 | I93: 0 | J93: 0 | K93: 0 | L93: 0 | M93: 0 | N93: 0 | O93: 0
C95: Total de contribuciones | D95: =D89 -> 0 | E95: =E89 -> 0 | F95: 0 | G95: 0 | H95: 0 | I95: 0 | J95: 0 | K95: 0 | L95: 0 | M95: 0 | N95: 0 | O95: 0
C96: (-) Total de aplicaciones | D96: =D93 -> 0 | E96: =E93 -> 0 | F96: 0 | G96: 0 | H96: 0 | I96: 0 | J96: 0 | K96: 0 | L96: 0 | M96: 0 | N96: 0 | O96: 0
C97: (=) Cantidad a cargo | D97: =IFERROR(IF(D95>=D96,D95-D96,0),0) -> 0 | E97: =IFERROR(IF(E95>=E96,E95-E96,0),0) -> 0 | F97: 0 | G97: 0 | H97: 0 | I97: 0 | J97: 0 | K97: 0 | L97: 0 | M97: 0 | N97: 0 | O97: 0

Sheet PP PLATA (hidden)
B2: Pago provisional servicio de transporte terrestre de personas y entrega de bienes | J2: IR AL MENÚ
D4: Enero | E4: Febrero | F4: Marzo | G4: Abril | H4: Mayo | I4: Junio | J4: Julio | K4: Agosto | L4: Septiembre | M4: Octubre | N4: Noviembre | O4: Diciembre
C5: Ingresos obtenidos mediante intermediarios por servicios terrestres de pasajeros
B6: (+) | C6: Ingresos obtenidos mediante intermediarios por entrega de bienes
B7: (+) | C7: Ingresos obtenidos directamente del usuario por servicios terrestres de pasajeros
B8: (+) | C8: Ingresos obtenidos directamente del usuario por entrega de bienes
B9: (=) | C9: Ingresos totales del mes | D9: =IFERROR(SUM(D5:D8),0) -> 0 | E9: =IFERROR(SUM(E5:E8),0) -> 0 | F9: 0 | G9: 0 | H9: 0 | I9: 0 | J9: 0 | K9: 0 | L9: 0 | M9: 0 | N9: 0 | O9: 0
B10: (x) | C10: Tasa % | D10: 0.021 | E10: 0.021 | F10: 0.021 | G10: 0.021 | H10: 0.021 | I10: 0.021 | J10: 0.021 | K10: 0.021 | L10: 0.021 | M10: 0.021 | N10: 0.021 | O10: 0.021
B11: (=) | C11: ISR causado | D11: =IFERROR(ROUND(D9*D10,0),0) -> 0 | E11: =IFERROR(ROUND(E9*E10,0),0) -> 0 | F11: 0 | G11: 0 | H11: 0 | I11: 0 | J11: 0 | K11: 0 | L11: 0 | M11: 0 | N11: 0 | O11: 0
B12: (-) | C12: Retenciones por platafomras tecnológicas
B13: (=) | C13: ISR a cargo | D13: =IFERROR(IF(D11>=D12,ROUND(D11-D12,0),0),0) -> 0 | E13: =IFERROR(IF(E11>=E12,ROUND(E11-E12,0),0),0) -> 0 | F13: 0 | G13: 0 | H13: 0 | I13: 0 | J13: 0 | K13: 0 | L13: 0 | M13: 0 | N13: 0 | O13: 0
B16: Servicio de hospedaje
D17: Enero | E17: Febrero | F17: Marzo | G17: Abril | H17: Mayo | I17: Junio | J17: Julio | K17: Agosto | L17: Septiembre | M17: Octubre | N17: Noviembre | O17: Diciembre
C18: Ingresos obtenidos mediante intermediarios
B19: (+) | C19: Ingresos obtenidos directamente del usuario
B20: (=) | C20: Ingresos totales del mes | D20: =IFERROR(SUM(D18:D19),0) -> 0 | E20: =IFERROR(SUM(E18:E19),0) -> 0 | F20: 0 | G20: 0 | H20: 0 | I20: 0 | J20: 0 | K20: 0 | L20: 0 | M20: 0 | N20: 0 | O20: 0
B21: (x) | C21: Tasa % | D21: 0.04 | E21: 0.04 | F21: 0.04 | G21: 0.04 | H21: 0.04 | I21: 0.04 | J21: 0.04 | K21: 0.04 | L21: 0.04 | M21: 0.04 | N21: 0.04 | O21: 0.04
B22: (=) | C22: ISR causado | D22: =IFERROR(ROUND(D20*D21,0),0) -> 0 | E22: =IFERROR(ROUND(E20*E21,0),0) -> 0 | F22: 0 | G22: 0 | H22: 0 | I22: 0 | J22: 0 | K22: 0 | L22: 0 | M22: 0 | N22: 0 | O22: 0
B23: (-) | C23: Retenciones por platafomras tecnológicas
B24: (=) | C24: ISR a cargo | D24: =IFERROR(IF(D22>=D23,ROUND(D22-D23,0),0),0) -> 0
B27: Enajenación de bienes y/o prestación de servicios
D28: Enero | E28: Febrero | F28: Marzo | G28: Abril | H28: Mayo | I28: Junio | J28: Julio | K28: Agosto | L28: Septiembre | M28: Octubre | N28: Noviembre | O28: Diciembre
C29: Ingresos obtenidos mediante intermediarios por enajenación de bienes
B30: (+) | C30: Ingresos obtenidos mediante intermediarios por prestación de servicios
B31: (+) | C31: Ingresos obtenidos directamente del usuario por enajenación de bienes
B32: (+) | C32: Ingresos obtenidos directamente del usuario por prestación de servicios
B33: (=) | C33: Ingresos totales del mes | D33: =IFERROR(SUM(D29:D32),0) -> 0 | E33: =IFERROR(SUM(E29:E32),0) -> 0 | F33: 0 | G33: 0 | H33: 0 | I33: 0 | J33: 0 | K33: 0 | L33: 0 | M33: 0 | N33: 0 | O33: 0
B34: (x) | C34: Tasa % | D34: 0.01 | E34: 0.01 | F34: 0.01 | G34: 0.01 | H34: 0.01 | I34: 0.01 | J34: 0.01 | K34: 0.01 | L34: 0.01 | M34: 0.01 | N34: 0.01 | O34: 0.01
B35: (=) | C35: ISR causado | D35: =IFERROR(ROUND(D33*D34,0),0) -> 0 | E35: =IFERROR(ROUND(E33*E34,0),0) -> 0 | F35: 0 | G35: 0 | H35: 0 | I35: 0 | J35: 0 | K35: 0 | L35: 0 | M35: 0 | N35: 0 | O35: 0
B36: (-) | C36: Retenciones por platafomras tecnológicas
B37: (=) | C37: ISR a cargo | D37: =IFERROR(IF(D35>=D36,ROUND(D35-D36,0),0),0) -> 0 | E37: =IFERROR(IF(E35>=E36,ROUND(E35-E36,0),0),0) -> 0 | F37: 0 | G37: 0 | H37: 0 | I37: 0 | J37: 0 | K37: 0 | L37: 0 | M37: 0 | N37: 0 | O37: 0

Sheet PP RESICO (hidden)
B2: Determinación del ISR persona física RESICO | H2: IR AL MENÚ
C4: Enero | D4: Febrero | E4: Marzo | F4: Abril | G4: Mayo | H4: Junio | I4: Julio | J4: Agosto | K4: Septiembre | L4: Octubre | M4: Noviembre | N4: Diciembre
B5: Ingresos cobrados del mes | C5: =SUM(C6:C7) -> 0 | D5: =SUM(D6:D7) -> 0 | E5: 0 | F5: 0 | G5: 0 | H5: 0 | I5: 0 | J5: 0 | K5: 0 | L5: 0 | M5: 0 | N5: 0
B6: CFDI emitidos con método de pago PUE
B7: Con complemento de pago
B8: (-) Descuentos, devoluciones y bonificaciones | C8: =IFERROR(C9-C10,0) -> 0 | D8: =IFERROR(D9-D10,0) -> 0 | E8: 0 | F8: 0 | G8: 0 | H8: 0 | I8: 0 | J8: 0 | K8: 0 | L8: 0 | M8: 0 | N8: 0
B9: CFDI emitidos de tipo egreso con método de pago PUE
B10: (-) Descuentos, devoluciones y bonificaciones de integrantes por copropiedad
B11: (-) Ingresos a disminuir | C11: =SUM(C12:C16) -> 0 | D11: =SUM(D12:D16) -> 0 | E11: 0 | F11: 0 | G11: 0 | H11: 0 | I11: 0 | J11: 0 | K11: 0 | L11: 0 | M11: 0 | N11: 0
B12: IEPS/ISAN cobrado no trasladado d emanera expresa y por separado
B13: Ingresos facturados pendientes de cancelación con aceptación del receptor
B14: Ingresos facturados acumulados en periodos anteriores
B15: Apoyos gubernamentales
B16: Ingresos facturados a cuenta de terceros
B17: (+) Ingresos a adicionar | C17: =SUM(C18) -> 0 | D17: =SUM(D18) -> 0 | E17: 0 | F17: 0 | G17: 0 | H17: 0 | I17: 0 | J17: 0 | K17: 0 | L17: 0 | M17: 0 | N17: 0
B18: Ingresos facturados no considerados en el prellenado
B19: (=) Total de ingresos percibidos por la actividad | C19: =IFERROR(C5-C8-C11+C17,0) -> 0 | D19: =IFERROR(D5-D8-D11+D17,0) -> 0 | E19: 0 | F19: 0 | G19: 0 | H19: 0 | I19: 0 | J19: 0 | K19: 0 | L19: 0 | M19: 0 | N19: 0
B20: (x) Tasa aplicable | C20: =IFERROR(VLOOKUP(C19,TABLAR,3),"") -> 0.01 | D20: 0.01 | E20: 0.01 | F20: 0.01 | G20: 0.01 | H20: 0.01 | I20: 0.01 | J20: 0.01 | K20: 0.01 | L20: 0.01 | M20: 0.01 | N20: 0.01
B21: (=) Impuesto mensual | C21: =IFERROR(ROUND(C19*C20,0),0) -> 0 | D21: =IFERROR(ROUND(D19*D20,0),0) -> 0 | E21: 0 | F21: 0 | G21: 0 | H21: 0 | I21: 0 | J21: 0 | K21: 0 | L21: 0 | M21: 0 | N21: 0
B22: (-) ISR retenido personas morales | C22: =IFERROR(C23+C25-C26,0) -> 0 | D22: =IFERROR(D23+D25-D26,0) -> 0 | E22: 0 | F22: 0 | G22: 0 | H22: 0 | I22: 0 | J22: 0 | K22: 0 | L22: 0 | M22: 0 | N22: 0
B23: ISR retenido de facturas emitidas de tipo ingreso con método de pago PUE
B24: ISR retenido de facturas emitidas con complemento de pago
B25: (+) ISR retenido a adicionar
B26: (-) ISR retenido no acreditable
B27: (=) Impuesto a cargo | C27: =IFERROR(IF(C21>=C22,C21-C22,0),0) -> 0 | D27: =IFERROR(IF(D21>=D22,D21-D22,0),0) -> 0 | E27: 0 | F27: 0 | G27: 0 | H27: 0 | I27: 0 | J27: 0 | K27: 0 | L27: 0 | M27: 0 | N27: 0
B30: Pagos mensuales del Régimen Simplificado de Confianza de personas físicas 3.13.7. Para los efectos del artículo 113-E, quinto párrafo de la Ley del ISR, las personas físicas que tributen en el Régimen Simplificado de Confianza, deberán presentar el pago mensual a través de la declaración “ISR simplificado de confianza. Personas físicas”, a más tardar el día 17 del mes inmediato posterior al que corresponda el pago, conforme a lo establecido en la regla 2.8.3.1. Dicha declaración estará prellenada con la información de los CFDI de tipo ingreso, de egreso y de pago emitidos por las personas físicas en el periodo de pago. Los contribuyentes a que se refiere el primer párrafo de la presente regla, considerarán que el pago mensual que realicen en términos del artículo 113-E, cuarto y quinto párrafos de la Ley del ISR, será definitivo, por lo que quedarán relevados de presentar la declaración anual a que se refieren los artículos 113-E, cuarto párrafo, 113-F y 113-G, fracción VII de dicha Ley, únicamente por los ingresos que correspondan al Régimen Simplificado de Confianza. Lo establecido en el presente párrafo, no exime a los contribuyentes de determinar la renta gravable en términos del artículo 113-G, último párrafo de la Ley del ISR, cuando así les corresponda. Los contribuyentes que apliquen lo establecido en las reglas 3.13.20. y 3.13.21., podrán optar por presentar su declaración anual. Para tal efecto, los copropietarios considerarán los ingresos que perciban por las actividades a que se refiere el primer párrafo del artículo 113-E de la Ley del ISR en el ejercicio y que estén amparados por los CFDI efectivamente cobrados, en la parte proporcional que de los mismos les correspondan y acreditarán, en esa misma proporción, el monto del ISR pagado en los pagos mensuales efectuados por el representante común y, en su caso, el que les retuvieron conforme al artículo 113-J de la referida Ley. LISR 113-E, 113-J, CFF 31, RMF 2.8.3.1., 3.13.20., 3.13.21.

Sheet PF RESICO (hidden)
B2: Solo capture información en las celdas de color verde | G2: IR AL MENÚ
B4: Ejercicio | C4: 2025
B5: Mes en el que ya no puede tributar en el RESICO | C5: Junio
B7: Los contribuyentes que en el ejercicio inmediato anterior, a aquél en el que se dé el supuesto de salida a que se refiere esta regla, hayan cumplido con sus obligaciones fiscales en términos del Título IV, Capítulo II, Sección IV, podrán optar por presentar los pagos provisionales a que se refiere el párrafo anterior, únicamente por los meses que restan del ejercicio fiscal de que se trate, así como presentar la declaración anual por los ingresos obtenidos en dichos meses, para lo cual no se requiere presentar las declaraciones de los meses anteriores, cuyos pagos efectuados en el Régimen Simplificado de Confianza, se hayan considerado como definitivos. Fundamento: Regla 3.13.5 fracción I RMF 2025
B10: Ingresos | C10: Enero | D10: Febrero | E10: Marzo | F10: Abril | G10: Mayo | H10: Junio | I10: Julio | J10: Agosto | K10: Septiembre | L10: Octubre | M10: Noviembre | N10: Diciembre
B11: Actividades empresariales | C11: 900000 | D11: 1200000 | E11: 900000 | F11: 250000 | G11: 255000
B12: Servicios profesionales
B13: Arrendamiento de inmuebles
B14: (=) Ingresos del mes | C14: =SUM(C11:C13) -> 900000 | D14: =SUM(D11:D13) -> 1200000 | E14: 900000 | F14: 250000 | G14: 255000 | H14: 0 | I14: 0 | J14: 0 | K14: 0 | L14: 0 | M14: 0 | N14: 0
B15: (x) Tasa de ISR | C15: =IFERROR(IF(VLOOKUP(C$10,PERIODO,2,FALSE)<VLOOKUP($C$5,PERIODO,2,FALSE),VLOOKUP(C14,TABLAR,3),""),"") -> 0.025 | D15: 0.025 | E15: 0.025 | F15: 0.025 | G15: 0.025
B16: (=) ISR causado | C16: =IFERROR(IF(VLOOKUP(C$10,PERIODO,2,FALSE)<VLOOKUP($C$5,PERIODO,2,FALSE),ROUND(C14*C15,2),""),"") -> 22500 | D16: 30000 | E16: 22500 | F16: 6250 | G16: 6375
B18: (=) Ingresos del mes | C18: =IFERROR(IF(VLOOKUP(C$10,PERIODO,2,FALSE)>=VLOOKUP($C$5,PERIODO,2,FALSE),C14,""),"") ->  | H18: 0 | I18: 0 | J18: 0 | K18: 0 | L18: 0 | M18: 0 | N18: 0
B19: (=) Ingresos del periodo | C19: =IFERROR(IF(VLOOKUP(C$10,PERIODO,2,FALSE)>=VLOOKUP($C$5,PERIODO,2,FALSE),SUMIF($C$18:C18,">0"),""),"") ->  | D19: =IFERROR(IF(VLOOKUP(D$10,PERIODO,2,FALSE)>=VLOOKUP($C$5,PERIODO,2,FALSE),SUMIF($C$18:D18,">0"),""),"") ->  | E19: =IFERROR(IF(VLOOKUP(E$10,PERIODO,2,FALSE)>=VLOOKUP($C$5,PERIODO,2,FALSE),SUMIF($C$18:E18,">0"),""),"") ->  | F19: =IFERROR(IF(VLOOKUP(F$10,PERIODO,2,FALSE)>=VLOOKUP($C$5,PERIODO,2,FALSE),SUMIF($C$18:F18,">0"),""),"") ->  | G19: =IFERROR(IF(VLOOKUP(G$10,PERIODO,2,FALSE)>=VLOOKUP($C$5,PERIODO,2,FALSE),SUMIF($C$18:G18,">0"),""),"") ->  | H19: =IFERROR(IF(VLOOKUP(H$10,PERIODO,2,FALSE)>=VLOOKUP($C$5,PERIODO,2,FALSE),SUMIF($C$18:H18,">0"),""),"") -> 0 | I19: =IFERROR(IF(VLOOKUP(I$10,PERIODO,2,FALSE)>=VLOOKUP($C$5,PERIODO,2,FALSE),SUMIF($C$18:I18,">0"),""),"") -> 0 | J19: =IFERROR(IF(VLOOKUP(J$10,PERIODO,2,FALSE)>=VLOOKUP($C$5,PERIODO,2,FALSE),SUMIF($C$18:J18,">0"),""),"") -> 0 | K19: =IFERROR(IF(VLOOKUP(K$10,PERIODO,2,FALSE)>=VLOOKUP($C$5,PERIODO,2,FALSE),SUMIF($C$18:K18,">0"),""),"") -> 0 | L19: =IFERROR(IF(VLOOKUP(L$10,PERIODO,2,FALSE)>=VLOOKUP($C$5,PERIODO,2,FALSE),SUMIF($C$18:L18,">0"),""),"") -> 0 | M19: =IFERROR(IF(VLOOKUP(M$10,PERIODO,2,FALSE)>=VLOOKUP($C$5,PERIODO,2,FALSE),SUMIF($C$18:M18,">0"),""),"") -> 0 | N19: =IFERROR(IF(VLOOKUP(N$10,PERIODO,2,FALSE)>=VLOOKUP($C$5,PERIODO,2,FALSE),SUMIF($C$18:N18,">0"),""),"") -> 0
B21: (-) Deducciones autorizadas
B22: Compras
B23: Gastos
B24: Depreciación fiscal
B25: Salarios deducibles
B26: Pérdida en venta de activo fijo
B27: Otros
B28: (=) Deducciones del mes | C28: =IFERROR(IF(VLOOKUP(C$10,PERIODO,2,FALSE)>=VLOOKUP($C$5,PERIODO,2,FALSE),SUM(C22:C27),""),"") ->  | H28: 0 | I28: 0 | J28: 0 | K28: 0 | L28: 0 | M28: 0 | N28: 0
B29: (=) Deducciones del periodo | C29: =IFERROR(IF(VLOOKUP(C$10,PERIODO,2,FALSE)>=VLOOKUP($C$5,PERIODO,2,FALSE),SUMIF($C$28:C28,">0"),""),"") ->  | D29: =IFERROR(IF(VLOOKUP(D$10,PERIODO,2,FALSE)>=VLOOKUP($C$5,PERIODO,2,FALSE),SUMIF($C$28:D28,">0"),""),"") ->  | E29: =IFERROR(IF(VLOOKUP(E$10,PERIODO,2,FALSE)>=VLOOKUP($C$5,PERIODO,2,FALSE),SUMIF($C$28:E28,">0"),""),"") ->  | F29: =IFERROR(IF(VLOOKUP(F$10,PERIODO,2,FALSE)>=VLOOKUP($C$5,PERIODO,2,FALSE),SUMIF($C$28:F28,">0"),""),"") ->  | G29: =IFERROR(IF(VLOOKUP(G$10,PERIODO,2,FALSE)>=VLOOKUP($C$5,PERIODO,2,FALSE),SUMIF($C$28:G28,">0"),""),"") ->  | H29: =IFERROR(IF(VLOOKUP(H$10,PERIODO,2,FALSE)>=VLOOKUP($C$5,PERIODO,2,FALSE),SUMIF($C$28:H28,">0"),""),"") -> 0 | I29: =IFERROR(IF(VLOOKUP(I$10,PERIODO,2,FALSE)>=VLOOKUP($C$5,PERIODO,2,FALSE),SUMIF($C$28:I28,">0"),""),"") -> 0 | J29: =IFERROR(IF(VLOOKUP(J$10,PERIODO,2,FALSE)>=VLOOKUP($C$5,PERIODO,2,FALSE),SUMIF($C$28:J28,">0"),""),"") -> 0 | K29: =IFERROR(IF(VLOOKUP(K$10,PERIODO,2,FALSE)>=VLOOKUP($C$5,PERIODO,2,FALSE),SUMIF($C$28:K28,">0"),""),"") -> 0 | L29: =IFERROR(IF(VLOOKUP(L$10,PERIODO,2,FALSE)>=VLOOKUP($C$5,PERIODO,2,FALSE),SUMIF($C$28:L28,">0"),""),"") -> 0 | M29: =IFERROR(IF(VLOOKUP(M$10,PERIODO,2,FALSE)>=VLOOKUP($C$5,PERIODO,2,FALSE),SUMIF($C$28:M28,">0"),""),"") -> 0 | N29: =IFERROR(IF(VLOOKUP(N$10,PERIODO,2,FALSE)>=VLOOKUP($C$5,PERIODO,2,FALSE),SUMIF($C$28:N28,">0"),""),"") -> 0
B31: (=) Utilidad fiscal | C31: =IFERROR(IF(VLOOKUP(C$10,PERIODO,2,FALSE)>=VLOOKUP($C$5,PERIODO,2,FALSE),IF(C13>0,IF(C18>=C28,C18-C28,0),IF(C19>=C29,C19-C29,0)),""),"") ->  | H31: 0 | I31: 0 | J31: 0 | K31: 0 | L31: 0 | M31: 0 | N31: 0
B32: (-) PTU pagada
B33: (-) Pérdidas fiscales
B34: (=) Base gravable
B35: ISR causado | C35: =IFERROR(IF(VLOOKUP(C$10,PERIODO,2,FALSE)>=VLOOKUP($C$5,PERIODO,2,FALSE),ROUND(((C31-VLOOKUP(C31,IF(C13="",INDIRECT("T"&C$10),TENERO),1))*VLOOKUP(C31,IF(C13="",INDIRECT("T"&C$10),TENERO),4)%)+VLOOKUP(C31,IF(C13="",INDIRECT("T"&C$10),TENERO),3),0),""),"") -> 
B36: (-) Retención de ISR
B37: (-) Pagos provisionales pagados con ant.
B38: (=) ISR por pagar | C38: =IFERROR(IF(C19="",IF(C16>=C36,C16-C36,0),IF(C35>=(C36+C37),C35-C36-C37,0)),"") -> 22500 | D38: =IFERROR(IF(D19="",IF(D16>=D36,D16-D36,0),IF(D35>=(D36+D37),D35-D36-D37,0)),"") -> 30000 | E38: 22500 | F38: 6250 | G38: 6375
B41: Los contribuyentes que no consideren como definitivos los pagos efectuados en el Régimen Simplificado de Confianza, deberán pagar el impuesto aplicando la tarifa establecida en el artículo 106, tercer párrafo de la Ley del ISR, a la diferencia que resulte de disminuir los ingresos obtenidos en el período comprendido desde el inicio del ejercicio y hasta el mes por el que se presenta la declaración, con las deducciones autorizadas correspondientes al mismo período, pudiendo disminuir los pagos efectuados en los meses del ejercicio en que se aplicaron las disposiciones del Régimen Simplificado de Confianza. En los meses subsecuentes, los contribuyentes deben pagar el impuesto respectivo de conformidad con las disposiciones del Título IV, Capítulo II, Sección I o Capítulo III de la Ley del ISR, según se trate. Fundamento: Regla 3.13.5 fracción II RMF 2025
B44: Ingresos | C44: Enero | D44: Febrero | E44: Marzo | F44: Abril | G44: Mayo | H44: Junio | I44: Julio | J44: Agosto | K44: Septiembre | L44: Octubre | M44: Noviembre | N44: Diciembre
B45: Actividades empresariales | H45: 300000
B46: Servicios profesionales
B47: Arrendamiento de inmuebles
B48: (-) Ingresos de los meses que se declaro en RESICO
B49: (=) Ingresos del mes | C49: =SUM(C45:C47)-C48 -> 0 | D49: =SUM(D45:D47)-D48 -> 0 | E49: 0 | F49: 0 | G49: 0 | H49: 300000 | I49: 0 | J49: 0 | K49: 0 | L49: 0 | M49: 0 | N49: 0
B50: (=) Ingresos del periodo | C50: =IFERROR(SUM($C$49:C49),0) -> 0 | D50: =IFERROR(SUM($C$49:D49),0) -> 0 | E50: =IFERROR(SUM($C$49:E49),0) -> 0 | F50: =IFERROR(SUM($C$49:F49),0) -> 0 | G50: =IFERROR(SUM($C$49:G49),0) -> 0 | H50: =IFERROR(SUM($C$49:H49),0) -> 300000 | I50: =IFERROR(SUM($C$49:I49),0) -> 300000 | J50: =IFERROR(SUM($C$49:J49),0) -> 300000 | K50: =IFERROR(SUM($C$49:K49),0) -> 300000 | L50: =IFERROR(SUM($C$49:L49),0) -> 300000 | M50: =IFERROR(SUM($C$49:M49),0) -> 300000 | N50: =IFERROR(SUM($C$49:N49),0) -> 300000
B52: (-) Deducciones autorizadas
B53: Compras
B54: Gastos
B55: Depreciación fiscal
B56: Salarios deducibles
B57: Pérdida en venta de activo fijo
B58: Otros
B59: (=) Deducciones del mes | C59: =SUM(C53:C58) -> 0 | D59: =SUM(D53:D58) -> 0 | E59: 0 | F59: 0 | G59: 0 | H59: 0 | I59: 0 | J59: 0 | K59: 0 | L59: 0 | M59: 0 | N59: 0
B60: (=) Deducciones del periodo | C60: =IFERROR(SUM($C$59:C59),0) -> 0 | D60: =IFERROR(SUM($C$59:D59),0) -> 0 | E60: =IFERROR(SUM($C$59:E59),0) -> 0 | F60: =IFERROR(SUM($C$59:F59),0) -> 0 | G60: =IFERROR(SUM($C$59:G59),0) -> 0 | H60: =IFERROR(SUM($C$59:H59),0) -> 0 | I60: =IFERROR(SUM($C$59:I59),0) -> 0 | J60: =IFERROR(SUM($C$59:J59),0) -> 0 | K60: =IFERROR(SUM($C$59:K59),0) -> 0 | L60: =IFERROR(SUM($C$59:L59),0) -> 0 | M60: =IFERROR(SUM($C$59:M59),0) -> 0 | N60: =IFERROR(SUM($C$59:N59),0) -> 0
B61: (=) Utilidad fiscal | C61: =IFERROR(IF(VLOOKUP(C$10,PERIODO,2,FALSE)>=VLOOKUP($C$5,PERIODO,2,FALSE),IF(C47>0,IF(C49>=C59,C49-C59,0),IF(C50>=C60,C50-C60,0)),""),"") ->  | H61: 300000 | I61: 300000 | J61: 300000 | K61: 300000 | L61: 300000 | M61: 300000 | N61: 300000
B62: (-) PTU pagada
B63: (-) Pérdidas fiscales
B64: (=) Base gravable | C64: =IFERROR(IF(C61>=(C62+C63),C61-C62-C63),0) -> 0 | D64: =IFERROR(IF(D61>=(D62+D63),D61-D62-D63),0) -> 0 | E64: 0 | F64: 0 | G64: 0 | H64: 300000 | I64: 300000 | J64: 300000 | K64: 300000 | L64: 300000 | M64: 300000 | N64: 300000
B65: ISR causado | C65: =IFERROR(IF(VLOOKUP(C$10,PERIODO,2,FALSE)>=VLOOKUP($C$5,PERIODO,2,FALSE),ROUND(((C64-VLOOKUP(C64,IF(C47="",INDIRECT("T"&C$10),TENERO),1))*VLOOKUP(C64,IF(C47="",INDIRECT("T"&C$10),TENERO),4)%)+VLOOKUP(C64,IF(C47="",INDIRECT("T"&C$10),TENERO),3),0),""),"") ->  | H65: 56802 | I65: 54161 | J65: 51818 | K65: 49476 | L65: 47400 | M65: 45732 | N65: 44064
B66: (-) Retención de ISR
B67: (-) Pagos provisionales
B68: (=) ISR por pagar | C68: =IFERROR(IF(C65>=(C66+C67),C65-C66-C67,0),"") ->  | D68: =IFERROR(IF(D65>=(D66+D67),D65-D66-D67,0),"") ->  | H68: 56802 | I68: 54161 | J68: 51818 | K68: 49476 | L68: 47400 | M68: 45732 | N68: 44064

Sheet IVA (hidden)
B2: Determinación del pago mensual de IVA persona física actividad empresarial y profesional, arrendamiento de inmuebles
C4: Año de cálculo | D4: 2025 | I4: IR AL MENÚ
C6: IVA A CARGO | D6: Enero | E6: Febrero | F6: Marzo | G6: Abril | H6: Mayo | I6: Junio | J6: Julio | K6: Agosto | L6: Septiembre | M6: Octubre | N6: Noviembre | O6: Diciembre
C7: Valor de los actos o actividades gravados a la tasa del 8% | D7: =IFERROR(D12,0) -> 0 | E7: =IFERROR(E12,0) -> 0 | F7: 0 | G7: 0 | H7: 0 | I7: 0 | J7: 0 | K7: 0 | L7: 0 | M7: 0 | N7: 0 | O7: 0
C8: CFDI emitidos de tipo ingreso con método de pago PUE règimen 606
C9: CFDI emitidos con complemento de pago règimen 606
C10: CFDI emitidos de tipo ingreso con método de pago PUE règimen 612
C11: CFDI emitidos con complemento de pago règimen 612
C12: Monto por detallar | D12: =IFERROR(ROUND(SUMIF(D8:D9,">0"),0),0) -> 0 | E12: =IFERROR(ROUND(SUMIF(E8:E9,">0"),0),0) -> 0 | F12: 0 | G12: 0 | H12: 0 | I12: 0 | J12: 0 | K12: 0 | L12: 0 | M12: 0 | N12: 0 | O12: 0
C13: Intereses cobrados a la tasa del 8%
C14: Regalías entre partes relacionadas a la tasa del 8%
C15: Otros actos o actividades gravados a la tasa del 8%
C17: Valor de los actos o actividades gravados a la tasa del 16% | D17: =IFERROR(D22,0) -> 0 | E17: =IFERROR(E22,0) -> 0 | F17: 0 | G17: 0 | H17: 0 | I17: 0 | J17: 0 | K17: 0 | L17: 0 | M17: 0 | N17: 0 | O17: 0
C18: CFDI emitidos de tipo ingreso con método de pago PUE règimen 606
C19: CFDI emitidos con complemento de pago règimen 606
C20: CFDI emitidos de tipo ingreso con método de pago PUE règimen 612
C21: CFDI emitidos con complemento de pago règimen 612
C22: Monto por detallar | D22: =IFERROR(ROUND(SUMIF(D18:D21,">0"),0),0) -> 0 | E22: =IFERROR(ROUND(SUMIF(E18:E21,">0"),0),0) -> 0 | F22: 0 | G22: 0 | H22: 0 | I22: 0 | J22: 0 | K22: 0 | L22: 0 | M22: 0 | N22: 0 | O22: 0
C23: Intereses cobrados a la tasa del 16%
C24: Regalías entre partes relacionadas a la tasa del 16%
C25: Otros actos o actividades gravados a la tasa del 16%
C27: Valor de los actos o actividades gravados a la tasa del 0% exportación
C29: Valor de los actos o actividades gravados a la tasa del 0% otros | D29: =SUM(D30:D31) -> 0 | E29: =SUM(E30:E31) -> 0 | F29: 0 | G29: 0 | H29: 0 | I29: 0 | J29: 0 | K29: 0 | L29: 0 | M29: 0 | N29: 0 | O29: 0
C30: CFDI emitidos de tipo ingreso con método de pago PUE règimen 606
C31: CFDI emitidos con complemento de pago règimen 606
C32: CFDI emitidos de tipo ingreso con método de pago PUE règimen 612
C33: CFDI emitidos con complemento de pago règimen 612
C34: Monto por detallar | D34: =IFERROR(ROUND(SUMIF(D30:D33,">0"),0),0) -> 0 | E34: =IFERROR(ROUND(SUMIF(E30:E33,">0"),0),0) -> 0 | F34: 0 | G34: 0 | H34: 0 | I34: 0 | J34: 0 | K34: 0 | L34: 0 | M34: 0 | N34: 0 | O34: 0
C35: Actividades agrícolas, ganaderas, silvícola o pesqueras a la tasa del 0%
C36: Otros actos o actividades gravados a la tasa del 0%
C38: Suma de los actos o actividades gravados | D38: =IFERROR(D7+D17+D27+D29,0) -> 0 | E38: =IFERROR(E7+E17+E27+E29,0) -> 0 | F38: 0 | G38: 0 | H38: 0 | I38: 0 | J38: 0 | K38: 0 | L38: 0 | M38: 0 | N38: 0 | O38: 0
C40: Valor de los actos o actividades por los que no se deba pagar el impuesto (exentos) | D40: =SUM(D41:D42) -> 0 | E40: =SUM(E41:E42) -> 0 | F40: 0 | G40: 0 | H40: 0 | I40: 0 | J40: 0 | K40: 0 | L40: 0 | M40: 0 | N40: 0 | O40: 0
C41: CFDI emitidos de tipo ingreso con método de pago PUE règimen 606
C42: CFDI emitidos con complemento de pago règimen 606
C43: CFDI emitidos de tipo ingreso con método de pago PUE règimen 612
C44: CFDI emitidos con complemento de pago règimen 612
C45: Monto por detallar | D45: =IFERROR(ROUND(SUMIF(D41:D44,">0"),0),0) -> 0 | E45: =IFERROR(ROUND(SUMIF(E41:E44,">0"),0),0) -> 0 | F45: 0 | G45: 0 | H45: 0 | I45: 0 | J45: 0 | K45: 0 | L45: 0 | M45: 0 | N45: 0 | O45: 0
C46: Enajenación de suelo y construcciones adheridas al suelo, destinadas o utilizadas para casa habitación
C47: Enajenación de libros, periódicos y revistas (no editados por el contribuyente)
C48: Regalías cobradas por autores
C49: Enajenación de bienes muebles usados, excepto los enajenados por empresas
C50: Enajenación de billetes y demás comprobantes de loterías, rifas, sorteos o juegos con apuestas y concursos de toda clase
C51: Servicios de enseñanza
C52: Servicio de transporte público terrestre de personas
C53: Operaciones financieras derivadas
C54: Venta de boletos para espectáculos públicos
C55: Servicios profesionales de medicina
C56: Uso o goce temporal de inmuebles para casa habitación y por fincas para fines agrícolas o ganaderos
C57: Otros ingresos exentos de IVA
C59: Valor de los actos o actividades no objeto del impuesto
C61: IVA a cargo a la tasa del 8% | D61: =IFERROR(ROUND(D7*0.08,2),0) -> 0 | E61: =IFERROR(ROUND(E7*0.08,2),0) -> 0 | F61: 0 | G61: 0 | H61: 0 | I61: 0 | J61: 0 | K61: 0 | L61: 0 | M61: 0 | N61: 0 | O61: 0
C62: IVA a cargo a la tasa del 16% | D62: =IFERROR(ROUND(D17*0.16,2),0) -> 0 | E62: =IFERROR(ROUND(E17*0.16,2),0) -> 0 | F62: 0 | G62: 0 | H62: 0 | I62: 0 | J62: 0 | K62: 0 | L62: 0 | M62: 0 | N62: 0 | O62: 0
C63: Cantidad actualizada a reintegrarse derivada del ajuste
C64: Total de IVA a cargo | D64: =IFERROR(D61+D62+D63,0) -> 0 | E64: =IFERROR(E61+E62+E63,0) -> 0 | F64: 0 | G64: 0 | H64: 0 | I64: 0 | J64: 0 | K64: 0 | L64: 0 | M64: 0 | N64: 0 | O64: 0
C66: IVA ACREDITABLE
C67: Monto de los actos o actividades pagadas
C68: Valor de los actos o actividades pagados a la tasa del 8% | D68: =IFERROR(ROUND(D70+D78+D87+D95,0),0) -> 0 | E68: =IFERROR(ROUND(E70+E78+E87+E95,0),0) -> 0 | F68: 0 | G68: 0 | H68: 0 | I68: 0 | J68: 0 | K68: 0 | L68: 0 | M68: 0 | N68: 0 | O68: 0
C69: CFDI recibidos con método de pago PUE bancarizados
C70: Con clave de uso G01 (Adquisición de mercancía) | D70: =SUM(D71:D77) -> 0 | E70: =SUM(E71:E77) -> 0 | F70: 0 | G70: 0 | H70: 0 | I70: 0 | J70: 0 | K70: 0 | L70: 0 | M70: 0 | N70: 0 | O70: 0
C71: 02 Cheque nominativo
C72: 03 Transferencia electrónica de fondos
C73: 04 Tarjeta de crédito
C74: 05 Monedero electrónico
C75: 06 Dinero electrónico
C76: 28 Tarjeta de débito
C77: 29 Tarjeta de servicios
C78: Con clave de uso G03 (Gastos en general) | D78: =SUM(D79:D85) -> 0 | E78: =SUM(E79:E85) -> 0 | F78: 0 | G78: 0 | H78: 0 | I78: 0 | J78: 0 | K78: 0 | L78: 0 | M78: 0 | N78: 0 | O78: 0
C79: 02 Cheque nominativo
C80: 03 Transferencia electrónica de fondos
C81: 04 Tarjeta de crédito
C82: 05 Monedero electrónico
C83: 06 Dinero electrónico
C84: 28 Tarjeta de débito
C85: 29 Tarjeta de servicios
C86: CFDI recibidos con complemento de pago
C87: Con clave de uso G01 (Adquisición de mercancía) | D87: =SUM(D88:D94) -> 0 | E87: =SUM(E88:E94) -> 0 | F87: 0 | G87: 0 | H87: 0 | I87: 0 | J87: 0 | K87: 0 | L87: 0 | M87: 0 | N87: 0 | O87: 0
C88: 02 Cheque nominativo
C89: 03 Transferencia electrónica de fondos
C90: 04 Tarjeta de crédito
C91: 05 Monedero electrónico
C92: 06 Dinero electrónico
C93: 28 Tarjeta de débito
C94: 29 Tarjeta de servicios
C95: Con clave de uso G03 (Gastos en general) | D95: 0 | E95: 0 | F95: 0 | G95: 0 | H95: 0 | I95: 0 | J95: 0 | K95: 0 | L95: 0 | M95: 0 | N95: 0 | O95: 0
C96: 02 Cheque nominativo
C97: 03 Transferencia electrónica de fondos
C98: 04 Tarjeta de crédito
C99: 05 Monedero electrónico
C100: 06 Dinero electrónico
C101: 28 Tarjeta de débito
C102: 29 Tarjeta de servicios
C103: Detalle del valor de los actos o catividades pagados a la tasa del 16%
C104: Monto a detallar | D104: =IFERROR(ROUND(D69+D78+D87+D95,0),0) -> 0 | E104: =IFERROR(ROUND(E69+E78+E87+E95,0),0) -> 0 | F104: 0 | G104: 0 | H104: 0 | I104: 0 | J104: 0 | K104: 0 | L104: 0 | M104: 0 | N104: 0 | O104: 0
C105: Intereses pagados a la tasa del 8%
C106: Regalias pagadas entre partes relacionadas a la tasa del 8%
C107: Otros actos o actividades pagados a la tasa del 8%
C108: Valor de los actos o actividades pagados a la tasa del 16% | D108: =IFERROR(ROUND(D110+D118+D127+D135,0),0) -> 0 | E108: =IFERROR(ROUND(E110+E118+E127+E135,0),0) -> 0 | F108: 0 | G108: 0 | H108: 0 | I108: 0 | J108: 0 | K108: 0 | L108: 0 | M108: 0 | N108: 0 | O108: 0
C109: CFDI recibidos con método de pago PUE bancarizados
C110: Con clave de uso G01 (Adquisición de mercancía) | D110: =SUM(D111:D117) -> 0 | E110: =SUM(E111:E117) -> 0 | F110: 0 | G110: 0 | H110: 0 | I110: 0 | J110: 0 | K110: 0 | L110: 0 | M110: 0 | N110: 0 | O110: 0
C111: 02 Cheque nominativo
C112: 03 Transferencia electrónica de fondos
C113: 04 Tarjeta de crédito
C114: 05 Monedero electrónico
C115: 06 Dinero electrónico
C116: 28 Tarjeta de débito
C117: 29 Tarjeta de servicios
C118: Con clave de uso G03 (Gastos en general) | D118: =SUM(D119:D125) -> 0 | E118: =SUM(E119:E125) -> 0 | F118: 0 | G118: 0 | H118: 0 | I118: 0 | J118: 0 | K118: 0 | L118: 0 | M118: 0 | N118: 0 | O118: 0
C119: 02 Cheque nominativo
C120: 03 Transferencia electrónica de fondos
C121: 04 Tarjeta de crédito
C122: 05 Monedero electrónico
C123: 06 Dinero electrónico
C124: 28 Tarjeta de débito
C125: 29 Tarjeta de servicios
C126: CFDI recibidos con complemento de pago
C127: Con clave de uso G01 (Adquisición de mercancía) | D127: =SUM(D128:D134) -> 0 | E127: =SUM(E128:E134) -> 0 | F127: 0 | G127: 0 | H127: 0 | I127: 0 | J127: 0 | K127: 0 | L127: 0 | M127: 0 | N127: 0 | O127: 0
C128: 02 Cheque nominativo
C129: 03 Transferencia electrónica de fondos
C130: 04 Tarjeta de crédito
C131: 05 Monedero electrónico
C132: 06 Dinero electrónico
C133: 28 Tarjeta de débito
C134: 29 Tarjeta de servicios
C135: Con clave de uso G03 (Gastos en general) | D135: =SUM(D136:D142) -> 0 | E135: =SUM(E136:E142) -> 0 | F135: 0 | G135: 0 | H135: 0 | I135: 0 | J135: 0 | K135: 0 | L135: 0 | M135: 0 | N135: 0 | O135: 0
C136: 02 Cheque nominativo
C137: 03 Transferencia electrónica de fondos
C138: 04 Tarjeta de crédito
C139: 05 Monedero electrónico
C140: 06 Dinero electrónico
C141: 28 Tarjeta de débito
C142: 29 Tarjeta de servicios
C143: Detalle del valor de los actos o catividades pagados a la tasa del 16%
C144: Monto a detallar | D144: =IFERROR(ROUND(D108+D118+D127+D135,0),0) -> 0 | E144: =IFERROR(ROUND(E108+E118+E127+E135,0),0) -> 0 | F144: 0 | G144: 0 | H144: 0 | I144: 0 | J144: 0 | K144: 0 | L144: 0 | M144: 0 | N144: 0 | O144: 0
C145: Intereses pagados a la tasa del 8%
C146: Regalias pagadas entre partes relacionadas a la tasa del 8%
C147: Otros actos o actividades pagados a la tasa del 8%
C148: Valor de los actos o actividades pagados en la importación de bienes y servicios a la tasa del 16% de IVA
C149: Monto por detallar | D149: =D148 -> 0 | E149: =E148 -> 0 | F149: 0 | G149: 0 | H149: 0 | I149: 0 | J149: 0 | K149: 0 | L149: 0 | M149: 0 | N149: 0 | O149: 0
C150: Importación de bienes intangibles a la tasa del 16%
C151: Importación de uso o goce temporal de bienes intangibles a la tasa del 16%
C152: Importación de servicios a la tasa del 16%
C153: Otros actos o actividades pagados en la importación de bienes y servicios a la tasa del 16%
C154: Valor de los demás actos o actividades pagados a la tasa del 0% de IVA
C155: Valor de los actos o actividades pagados por los que no se pagará el IVA (exentos)
C156: Monto por detallar | D156: =SUM(D157:D166) -> 0 | E156: =SUM(E157:E166) -> 0 | F156: 0 | G156: 0 | H156: 0 | I156: 0 | J156: 0 | K156: 0 | L156: 0 | M156: 0 | N156: 0 | O156: 0
C157: Adquisición de suelo y construcciones adheridas al suelo, destinadas o utilizadas para casa habitación
C158: Adquisición de libros, periódicos o revistas (No editados por el contribuyente)
C159: Regalías pagadas a los autores
C160: Adquisición de bienes muebles usados excepto los adquiridos de empresas
C161: Servicio de transporte público terrestre de personas
C162: Servicios profesionales de medicina
C163: Aseguramiento contra riesgos agropecuarios
C164: Uso o goce temporal de fincas para fines agrícolas o ganaderos
C165: Actos o actividades pagados en la importación de bienes y servicios exentos
C166: Otros actos o actividades pagados exentos
C168: Determinación del Impuesto al Valor Agregado acreditable
C169: IVA de actos o actividades pagados a la tasa del 8% | D169: =IFERROR(ROUND(D68*0.08,0),0) -> 0 | E169: =IFERROR(ROUND(E68*0.08,0),0) -> 0 | F169: 0 | G169: 0 | H169: 0 | I169: 0 | J169: 0 | K169: 0 | L169: 0 | M169: 0 | N169: 0 | O169: 0
C170: IVA de actos o actividades pagados a la tasa del 16% | D170: =IFERROR(ROUND(D108*0.16,0),0) -> 0 | E170: =IFERROR(ROUND(E108*0.16,0),0) -> 0 | F170: 0 | G170: 0 | H170: 0 | I170: 0 | J170: 0 | K170: 0 | L170: 0 | M170: 0 | N170: 0 | O170: 0
C171: IVA de actos o actividades pagados en la importación de bienes y servicios a la tasa del 16% | D171: =IFERROR(ROUND(D154*0.16,0),0) -> 0 | E171: =IFERROR(ROUND(E154*0.16,0),0) -> 0 | F171: 0 | G171: 0 | H171: 0 | I171: 0 | J171: 0 | K171: 0 | L171: 0 | M171: 0 | N171: 0 | O171: 0
C172: IVA trasladado al contribuyente (efectivamente pagado) | D172: =SUM(D169:D171) -> 0 | E172: =SUM(E169:E171) -> 0 | F172: 0 | G172: 0 | H172: 0 | I172: 0 | J172: 0 | K172: 0 | L172: 0 | M172: 0 | N172: 0 | O172: 0
C173: Total de IVA acreditable por actividades gravadas a la tasa del 16%, 8% y 0%
C174: Total de iva trasladado al contribuyente (efectivamente pagado) | D174: =D172 -> 0 | E174: =E172 -> 0 | F174: 0 | G174: 0 | H174: 0 | I174: 0 | J174: 0 | K174: 0 | L174: 0 | M174: 0 | N174: 0 | O174: 0
C175: Total de IVA acreditable por importación para realizar actos o actividades por los que no están obligados al pago del impuesto
C176: IVA correspondiente a actos o actividades por los que no se está obligado al pago del impuesto
C177: IVA pagado utilizado indistintamente para realizar actos o actividades gravados y actos o actividades por los que no se está obligado al pago del impuesto | D177: =IFERROR(D174-D176,0) -> 0 | E177: =IFERROR(E174-E176,0) -> 0 | F177: 0 | G177: 0 | H177: 0 | I177: 0 | J177: 0 | K177: 0 | L177: 0 | M177: 0 | N177: 0 | O177: 0
C178: Selecciona la proporción de IVA que aplicarás
C179: Proporción de IVA
C180: IVA acreditable de bienes utilizados indistintamente para realizar actos o actividades gravados y actos o actividades por los que no se está obligado al pago del impuesto | D180: =IFERROR(ROUND(D177*D179,0),0) -> 0 | E180: =IFERROR(ROUND(E177*E179,0),0) -> 0 | F180: 0 | G180: 0 | H180: 0 | I180: 0 | J180: 0 | K180: 0 | L180: 0 | M180: 0 | N180: 0 | O180: 0
C181: IVA acreditable | D181: =D180 -> 0 | E181: =E180 -> 0 | F181: 0 | G181: 0 | H181: 0 | I181: 0 | J181: 0 | K181: 0 | L181: 0 | M181: 0 | N181: 0 | O181: 0
C182: Monto acreditable actualizado a incrementar derivado del ajuste
C183: Total de IVA acreditable | D183: =SUM(D181:D182) -> 0 | E183: =SUM(E181:E182) -> 0 | F183: 0 | G183: 0 | H183: 0 | I183: 0 | J183: 0 | K183: 0 | L183: 0 | M183: 0 | N183: 0 | O183: 0
C185: DETERMINACIÓN
C186: Total de IVA a cargo | D186: =IFERROR(ROUND(D64,0),0) -> 0 | E186: =IFERROR(ROUND(E64,0),0) -> 0 | F186: 0 | G186: 0 | H186: 0 | I186: 0 | J186: 0 | K186: 0 | L186: 0 | M186: 0 | N186: 0 | O186: 0
C187: (-) IVA retenido
C188: Monto por detallar | D188: =D187 -> 0 | E188: =E187 -> 0 | F188: 0 | G188: 0 | H188: 0 | I188: 0 | J188: 0 | K188: 0 | L188: 0 | M188: 0 | N188: 0 | O188: 0
C189: Por enajenación de bienes
C190: Por otras operaciones
C191: Total de IVA acreditable | D191: =IFERROR(ROUND(D183,0),0) -> 0 | E191: =IFERROR(ROUND(E183,0),0) -> 0 | F191: 0 | G191: 0 | H191: 0 | I191: 0 | J191: 0 | K191: 0 | L191: 0 | M191: 0 | N191: 0 | O191: 0
C192: Otras cantidades a cargo del contribuyente
C193: Otras cantidades a favor del contribuyente
C194: Cantidad a cargo | D194: =IFERROR(IF((D186+D192)>=(D191+D193),ROUND(D186+D192-D191-D193,0),""),"") -> 0 | E194: =IFERROR(IF((E186+E192)>=(E191+E193),ROUND(E186+E192-E191-E193,0),""),"") -> 0 | F194: 0 | G194: 0 | H194: 0 | I194: 0 | J194: 0 | K194: 0 | L194: 0 | M194: 0 | N194: 0 | O194: 0
C195: Acreditamiento del saldo a favor de periodos anteriores (Sin exceder de la cantidad a cargo)
C196: Impuesto a cargo | D196: =IFERROR(IF((D186+D192)>=(D191+D193+D195),ROUND(D186+D192-D191-D193-D195,0),""),"") -> 0 | E196: =IFERROR(IF((E186+E192)>=(E191+E193+E195),ROUND(E186+E192-E191-E193-E195,0),""),"") -> 0 | F196: 0 | G196: 0 | H196: 0 | I196: 0 | J196: 0 | K196: 0 | L196: 0 | M196: 0 | N196: 0 | O196: 0
C197: Saldo a favor | D197: =IFERROR(IF((D191+D193)>(D186+D192),ROUND(D191+D193-D186-D192,0),""),"") ->  | E197: =IFERROR(IF((E191+E193)>(E186+E192),ROUND(E191+E193-E186-E192,0),""),"") -> 
C198: Devolución inmediata obtenida
C199: Impuesto a favor | D199: =IFERROR(ROUND(D197-D198,0),"") ->  | E199: =IFERROR(ROUND(E197-E198,0),"") -> 
C201: PAGO
C202: A cargo | D202: =D196 -> 0 | E202: =E196 -> 0 | F202: 0 | G202: 0 | H202: 0 | I202: 0 | J202: 0 | K202: 0 | L202: 0 | M202: 0 | N202: 0 | O202: 0
C203: (-) Subsidio para el empleo
C204: (-) Compensaciones
C205: (-) Estímulos al impuesto a cargo | D205: =SUM(D206:D211) -> 0 | E205: =SUM(E206:E211) -> 0 | F205: 0 | G205: 0 | H205: 0 | I205: 0 | J205: 0 | K205: 0 | L205: 0 | M205: 0 | N205: 0 | O205: 0
C206: Estímulo a gasolinas en zona fronteriza
C207: Estímulo a gasolinas en regiones cercanas a zona fronteriza
C208: Estímulo complementario combustibles
C209: Estímulo fiscal por la importación o enajenación de jugos, néctares, concentrados de frutas o de verduras y de productos para beber
C210: Estímulo fiscal por la prestación de servicios de hotelería y conexos a turistas extranjeros
C211: Estímulo fiscal por el uso temporal de centros de convenciones y de exposiciones a residentes en el extranjero
C212: Total de aplicaciones | D212: =IFERROR(ROUND(D203+D204+D205,0),0) -> 0 | E212: =IFERROR(ROUND(E203+E204+E205,0),0) -> 0 | F212: 0 | G212: 0 | H212: 0 | I212: 0 | J212: 0 | K212: 0 | L212: 0 | M212: 0 | N212: 0 | O212: 0
C214: Total de contribuciones | D214: =D202 -> 0 | E214: =E202 -> 0 | F214: 0 | G214: 0 | H214: 0 | I214: 0 | J214: 0 | K214: 0 | L214: 0 | M214: 0 | N214: 0 | O214: 0
C215: (-) Total de aplicaciones | D215: =D212 -> 0 | E215: =E212 -> 0 | F215: 0 | G215: 0 | H215: 0 | I215: 0 | J215: 0 | K215: 0 | L215: 0 | M215: 0 | N215: 0 | O215: 0
... 2 more rows

Sheet IVAP (hidden)
H2: IR AL MENÚ
B3: Determinación del pago mensual de IVA plataformas tecnológicas
C5: Enero | D5: Febrero | E5: Marzo | F5: Abril | G5: Mayo | H5: Junio | I5: Julio | J5: Agosto | K5: Septiembre | L5: Octubre | M5: Noviembre | N5: Diciembre
B6: Ingreos obtenidos mediante intermediarios
B7: (+) Ingresos obtenidos directamente del usuario
B8: (=) Ingresos totales del mes | C8: =SUM(C6:C7) -> 0 | D8: =SUM(D6:D7) -> 0 | E8: 0 | F8: 0 | G8: 0 | H8: 0 | I8: 0 | J8: 0 | K8: 0 | L8: 0 | M8: 0 | N8: 0
B9: (x) Tasa % | C9: 0.16 | D9: 0.16 | E9: 0.16 | F9: 0.16 | G9: 0.16 | H9: 0.16 | I9: 0.16 | J9: 0.16 | K9: 0.16 | L9: 0.16 | M9: 0.16 | N9: 0.16
B10: (=) IVA a cargo a la tasa del 16% | C10: =IFERROR(ROUND(C8*C9,0),0) -> 0 | D10: =IFERROR(ROUND(D8*D9,0),0) -> 0 | E10: 0 | F10: 0 | G10: 0 | H10: 0 | I10: 0 | J10: 0 | K10: 0 | L10: 0 | M10: 0 | N10: 0
B11: (-) IVA acreditable
B12: (-) IVA retenido
B13: (=) Cantidad a cargo | C13: =IFERROR(IF(C10>=(C11+C12),ROUND(C10-C11-C12,0),""),"") -> 0 | D13: =IFERROR(IF(D10>=(D11+D12),ROUND(D10-D11-D12,0),""),"") -> 0 | E13: 0 | F13: 0 | G13: 0 | H13: 0 | I13: 0 | J13: 0 | K13: 0 | L13: 0 | M13: 0 | N13: 0
B14: (-) Acreditamiento de saldo a favor de periodos anteriores (sin exceder de cantidad a cargo)
B15: (=) Impuesto a cargo | C15: =IFERROR(IF(C13>=C14,C13-C14,""),"") -> 0 | D15: =IFERROR(IF(D13>=D14,D13-D14,""),"") -> 0 | E15: 0 | F15: 0 | G15: 0 | H15: 0 | I15: 0 | J15: 0 | K15: 0 | L15: 0 | M15: 0 | N15: 0
B17: (=) Impuesto a favor | C17: =IFERROR(IF((C11+C12)>C10,C11+C12-C10,""),"") ->  | D17: =IFERROR(IF((D11+D12)>D10,D11+D12-D10,""),"") -> 
B21: Determinación del pago mensual de IVA (pago definitivo)
B23: Servicio de transporte terrestre de personas y entrega de bienes | C23: Enero | D23: Febrero | E23: Marzo | F23: Abril | G23: Mayo | H23: Junio | I23: Julio | J23: Agosto | K23: Septiembre | L23: Octubre | M23: Noviembre | N23: Diciembre
B24: Ingresos obtenidos directamente del usuario por servicios terrestres de pasajeros
B25: (+) Ingresos obtenidos directamente del usuario por entrega de bienes
B26: (=) Ingresos totales del mes | C26: =SUM(C24:C25) -> 0 | D26: =SUM(D24:D25) -> 0 | E26: 0 | F26: 0 | G26: 0 | H26: 0 | I26: 0 | J26: 0 | K26: 0 | L26: 0 | M26: 0 | N26: 0
B27: (x) Tasa % | C27: 0.08 | D27: 0.08 | E27: 0.08 | F27: 0.08 | G27: 0.08 | H27: 0.08 | I27: 0.08 | J27: 0.08 | K27: 0.08 | L27: 0.08 | M27: 0.08 | N27: 0.08
B28: (=) IVA a cargo | C28: =IFERROR(ROUND(C26*C27,0),0) -> 0 | D28: =IFERROR(ROUND(D26*D27,0),0) -> 0 | E28: 0 | F28: 0 | G28: 0 | H28: 0 | I28: 0 | J28: 0 | K28: 0 | L28: 0 | M28: 0 | N28: 0
B31: Servicio de hospedaje | C31: Enero | D31: Febrero | E31: Marzo | F31: Abril | G31: Mayo | H31: Junio | I31: Julio | J31: Agosto | K31: Septiembre | L31: Octubre | M31: Noviembre | N31: Diciembre
B32: Ingresos obtenidos directamente del usuario
B33: (=) Ingresos totales del mes | C33: =SUM(C32) -> 0 | D33: =SUM(D32) -> 0 | E33: 0 | F33: 0 | G33: 0 | H33: 0 | I33: 0 | J33: 0 | K33: 0 | L33: 0 | M33: 0 | N33: 0
B34: (x) Tasa % | C34: 0.08 | D34: 0.08 | E34: 0.08 | F34: 0.08 | G34: 0.08 | H34: 0.08 | I34: 0.08 | J34: 0.08 | K34: 0.08 | L34: 0.08 | M34: 0.08 | N34: 0.08
B35: (=) IVA a cargo | C35: =IFERROR(ROUND(C33*C34,0),0) -> 0 | D35: =IFERROR(ROUND(D33*D34,0),0) -> 0 | E35: =IFERROR(ROUND(E33*E34,0),0) -> 0 | F35: =IFERROR(ROUND(F33*F34,0),0) -> 0 | G35: =IFERROR(ROUND(G33*G34,0),0) -> 0 | H35: =IFERROR(ROUND(H33*H34,0),0) -> 0 | I35: =IFERROR(ROUND(I33*I34,0),0) -> 0 | J35: =IFERROR(ROUND(J33*J34,0),0) -> 0 | K35: =IFERROR(ROUND(K33*K34,0),0) -> 0 | L35: =IFERROR(ROUND(L33*L34,0),0) -> 0 | M35: =IFERROR(ROUND(M33*M34,0),0) -> 0 | N35: =IFERROR(ROUND(N33*N34,0),0) -> 0
B39: Enajenación de bienes y/o prestación de servicios | C39: Enero | D39: Febrero | E39: Marzo | F39: Abril | G39: Mayo | H39: Junio | I39: Julio | J39: Agosto | K39: Septiembre | L39: Octubre | M39: Noviembre | N39: Diciembre
B40: Ingresos obtenidos directamente del usuario por enajenación de bienes
B41: (+) Ingresos obtenidos directamente del usuario por prestación de servicios
B42: (=) Ingresos totales del mes | C42: =SUM(C41) -> 0 | D42: =SUM(D41) -> 0 | E42: =SUM(E41) -> 0 | F42: =SUM(F41) -> 0 | G42: =SUM(G41) -> 0 | H42: =SUM(H41) -> 0 | I42: =SUM(I41) -> 0 | J42: =SUM(J41) -> 0 | K42: =SUM(K41) -> 0 | L42: =SUM(L41) -> 0 | M42: =SUM(M41) -> 0 | N42: =SUM(N41) -> 0
B43: (x) Tasa % | C43: 0.08 | D43: 0.08 | E43: 0.08 | F43: 0.08 | G43: 0.08 | H43: 0.08 | I43: 0.08 | J43: 0.08 | K43: 0.08 | L43: 0.08 | M43: 0.08 | N43: 0.08
B44: (=) IVA a cargo | C44: =IFERROR(ROUND(C42*C43,0),0) -> 0 | D44: =IFERROR(ROUND(D42*D43,0),0) -> 0 | E44: =IFERROR(ROUND(E42*E43,0),0) -> 0 | F44: =IFERROR(ROUND(F42*F43,0),0) -> 0 | G44: =IFERROR(ROUND(G42*G43,0),0) -> 0 | H44: =IFERROR(ROUND(H42*H43,0),0) -> 0 | I44: =IFERROR(ROUND(I42*I43,0),0) -> 0 | J44: =IFERROR(ROUND(J42*J43,0),0) -> 0 | K44: =IFERROR(ROUND(K42*K43,0),0) -> 0 | L44: =IFERROR(ROUND(L42*L43,0),0) -> 0 | M44: =IFERROR(ROUND(M42*M43,0),0) -> 0 | N44: =IFERROR(ROUND(N42*N43,0),0) -> 0

Sheet IVAR (hidden)
F4: IR AL MENÚ
C7: Enero | D7: Febrero | E7: Marzo | F7: Abril | G7: Mayo | H7: Junio | I7: Julio | J7: Agosto | K7: Septiembre | L7: Octubre | M7: Noviembre | N7: Diciembre
B8: IVA A CARGO
B9: Actividades gravadas a la tasa del 16% | C9: =SUM(C10:C11) -> 0 | D9: =SUM(D10:D11) -> 0 | E9: 0 | F9: 0 | G9: 0 | H9: 0 | I9: 0 | J9: 0 | K9: 0 | L9: 0 | M9: 0 | N9: 0
B10: CFDI emitidos de tipo ingreso con método de pago PUE
B11: CFDI emitidos con complemento de pago
B13: Actividades gravadas a la tasa del 0% | C13: =SUM(C14:C15) -> 0 | D13: =SUM(D14:D15) -> 0 | E13: 0 | F13: 0 | G13: 0 | H13: 0 | I13: 0 | J13: 0 | K13: 0 | L13: 0 | M13: 0 | N13: 0
B14: CFDI emitidos de tipo ingreso con método de pago PUE
B15: CFDI emitidos con complemento de pago
B16: Monto por detallar
B17: Actividades nacionales gravadas a la tasa del 0%
B18: Actividades de exportación gravadas a la tasa del 0%
B20: Actividades exentas | C20: =SUM(C21:C22) -> 0 | D20: =SUM(D21:D22) -> 0 | E20: 0 | F20: 0 | G20: 0 | H20: 0 | I20: 0 | J20: 0 | K20: 0 | L20: 0 | M20: 0 | N20: 0
B21: CFDI emitidos de tipo ingreso con método de pago PUE
B22: CFDI emitidos con complemento de pago
B24: Valor de los actos o actividades no objeto del impuesto | C24: =SUM(C25:C26) -> 0 | D24: =SUM(D25:D26) -> 0 | E24: 0 | F24: 0 | G24: 0 | H24: 0 | I24: 0 | J24: 0 | K24: 0 | L24: 0 | M24: 0 | N24: 0
B25: CFDI emitidos de tipo ingreso con método de pago PUE
B26: Complementos de pago
B28: IVA a cargo a la tasa del 16% | C28: =IFERROR(ROUND(C9*0.16,0),0) -> 0 | D28: 0 | E28: 0 | F28: 0 | G28: 0 | H28: 0 | I28: 0 | J28: 0 | K28: 0 | L28: 0 | M28: 0 | N28: 0
B29: Total de IVA a cargo | C29: =SUM(C28:C28) -> 0 | D29: 0 | E29: 0 | F29: 0 | G29: 0 | H29: 0 | I29: 0 | J29: 0 | K29: 0 | L29: 0 | M29: 0 | N29: 0
B30: IVA no cobrado por devoluciones, descuentos y bonificaciones de ventas | C30: =C31 -> 0 | D30: =D31 -> 0 | E30: 0 | F30: 0 | G30: 0 | H30: 0 | I30: 0 | J30: 0 | K30: 0 | L30: 0 | M30: 0 | N30: 0
B31: CFDI emitidos de tipo egreso con método de pago PUE
B32: IVA retenido | C32: =IFERROR(C33+C34,0) -> 0 | D32: =IFERROR(D33+D34,0) -> 0 | E32: 0 | F32: 0 | G32: 0 | H32: 0 | I32: 0 | J32: 0 | K32: 0 | L32: 0 | M32: 0 | N32: 0
B33: CFDI emitidos de tipo ingreso con método de pago PUE
B34: Complementos de pago
B35: IVA acreditable del periodo | C35: =C83 -> 0 | D35: =D83 -> 0 | E35: 0 | F35: 0 | G35: 0 | H35: 0 | I35: 0 | J35: 0 | K35: 0 | L35: 0 | M35: 0 | N35: 0
B36: IVA pagado en gastos y adquisiciones | C36: =IFERROR(ROUND(SUM(C37:C37,C59:C59),0),0) -> 0 | D36: 0 | E36: 0 | F36: 0 | G36: 0 | H36: 0 | I36: 0 | J36: 0 | K36: 0 | L36: 0 | M36: 0 | N36: 0
B37: CFDI emitidos de tipo ingreso con método de pago PUE, uso G01, G03 y bancarizado (IVA 16%)
B38: 1 Efectivo (No)
B39: 2 Cheque nominativo (Sí)
B40: 3 Transferencia electrónica de fondos (Sí)
B41: 4 Tarjeta de crédito (Sí)
B42: 5 Monedero electrónico (Sí)
B43: 6 Dinero electrónico (Sí)
B44: 8 Vales de despensa (No)
B45: 12 Dación en pago (No)
B46: 13 Pago por subrogación (No)
B47: 14 Pago por consignación (No)
B48: 15 Condonación (No)
B49: 17 Compensación (No)
B50: 23 Novación (No)
B51: 24 Confusión (No)
B52: 25 Remisión de deuda (No)
B53: 26 Prescripción o caducidad (No)
B54: 27 A satisfacción del acreedor (No)
B55: 28 Tarjeta de débito (Sí)
B56: 29 Tarjeta de servicios (Sí)
B57: 30 Aplicación de anticipos (No)
B58: 31 Intermediario pagos (No)
B59: CFDI emitidos con complemento de pago, uso G01, G03 y bancarizado (IVA 8%)
B60: 1 Efectivo (No)
B61: 2 Cheque nominativo (Sí)
B62: 3 Transferencia electrónica de fondos (Sí)
B63: 4 Tarjeta de crédito (Sí)
B64: 5 Monedero electrónico (Sí)
B65: 6 Dinero electrónico (Sí)
B66: 8 Vales de despensa (No)
B67: 12 Dación en pago (No)
B68: 13 Pago por subrogación (No)
B69: 14 Pago por consignación (No)
B70: 15 Condonación (No)
B71: 17 Compensación (No)
B72: 23 Novación (No)
B73: 24 Confusión (No)
B74: 25 Remisión de deuda (No)
B75: 26 Prescripción o caducidad (No)
B76: 27 A satisfacción del acreedor (No)
B77: 28 Tarjeta de débito (Sí)
B78: 29 Tarjeta de servicios (Sí)
B79: 30 Aplicación de anticipos (No)
B80: 31 Intermediario pagos (No)
B81: IVA acreditable por actividades gravadas a tasa 16% u 8% y tasa 0%
B82: IVA acreditable por actividades mixtas
B83: IVA acreditable del periodo | C83: =SUM(C81:C82) -> 0 | D83: =SUM(D81:D82) -> 0 | E83: 0 | F83: 0 | G83: 0 | H83: 0 | I83: 0 | J83: 0 | K83: 0 | L83: 0 | M83: 0 | N83: 0
B85: IVA por devoluciones, descuentos y bonificaciones en gastos | C85: =C86 -> 0 | D85: =D86 -> 0 | E85: 0 | F85: 0 | G85: 0 | H85: 0 | I85: 0 | J85: 0 | K85: 0 | L85: 0 | M85: 0 | N85: 0
B86: CFDI recibidos de tipo egreso con método de pago PUE
B87: Cantidad a cargo | C87: =IFERROR(IF(C29>=(C83-C85),C29-C83+C85,""),"") -> 0 | D87: =IFERROR(IF(D29>=(D83-D85),D29-D83+D85,""),"") -> 0 | E87: 0 | F87: 0 | G87: 0 | H87: 0 | I87: 0 | J87: 0 | K87: 0 | L87: 0 | M87: 0 | N87: 0
B88: (-) Acreditamiento del saldo a favor de periodos anteriores (Sin exceder de la cantidad a cargo)
B89: (=) Impuestos a cargo | C89: =IFERROR(IF(C87>=C88,C87-C88,""),"") -> 0 | D89: =IFERROR(IF(D87>=D88,D87-D88,""),"") -> 0 | E89: 0 | F89: 0 | G89: 0 | H89: 0 | I89: 0 | J89: 0 | K89: 0 | L89: 0 | M89: 0 | N89: 0
B90: (-) Compensaciones
B91: (-) Estímulos al impuesto a cargo | C91: =SUM(C92:C97) -> 0 | D91: =SUM(D92:D97) -> 0 | E91: 0 | F91: 0 | G91: 0 | H91: 0 | I91: 0 | J91: 0 | K91: 0 | L91: 0 | M91: 0 | N91: 0
B92: Estímulo a gasolinas en regiones cercanas a zona fronteriza
B93: Estímulo a gasolinas en zona fronteriza
B94: Estímulo complementario conbustibles
B95: Estímulo fiscal por el uso temporal de centros de convenciones y de exposiciones a residentes en el extranjero
B96: Estímulo fiscal por la importación oenajenación de jugos, néctares, concentrados de frutas o de verduras y de productos para beber
B97: Estímulo fiscal por la prestación de servicios de hoteleria y comercio a turistas extanjeros
B98: (=) Cantidad a pagar | C98: =IFERROR(IF(C89>=SUM(C90:C91),C89-C90-C91,""),"") -> 0 | D98: =IFERROR(IF(D89>=SUM(D90:D91),D89-D90-D91,""),"") -> 0 | E98: 0 | F98: 0 | G98: 0 | H98: 0 | I98: 0 | J98: 0 | K98: 0 | L98: 0 | M98: 0 | N98: 0
B100: (=) Impuesto a favor | C100: =IFERROR(IF((C83-C85)>C29,C83-C85-C29,""),"") ->  | D100: =IFERROR(IF((D83-D85)>D29,D83-D85-D29,""),"") -> 

Sheet FCFDI (hidden)
B4: Nodo comprobante | E4: Nodo emisor | H4: Nodo receptor
B6: Fecha de expedición * | E6: RFC * | H6: RFC *
B7: Serie ** | E7: Nombre * | H7: Nombre *
B8: Folio ** | E8: Régimen fiscal * | H8: Domicilio fiscal del receptor *
E9: FacAtrAdquirente *** | H9: Residencia fiscal ***
H10: No. de registro tributario ***
B11: Forma de pago *** | H11: Régimen fiscal *
B12: Método de pago *** | H12: Uso del CFDI *
B13: Moneda *
B14: Tipo de cambio ***
B15: Tipo de comprobante *
B16: Exportación *
B17: Lugar de expedición *
B18: Confirmación ***
B20: CFDI relacionados **
B22: Tipo de relación | H22: UUID
B24: Nodo factura global **
B26: Periodicidad * | E26: Meses * | H26: Año *
B28: Nodo conceptos
B30: Clave producto/ servicio * | E30: No. de identificación ** | H30: Cantidad *
B32: Clave de unidad * | E32: Unidad ** | H32: Descripción *
B34: Valor unitario * | E34: Importe * | H34: Descuento **
B36: Objeto de impuesto * | C36: 02 | E36: Pedimento *** | H36: Número ***
B38: Nodo de impuestos trasladados **
B39: Base * | E39: Impuesto * | H39: Tipo factor *
B41: Tasa o cuota ** | E41: Importe **
B44: Nodo de impuestos retenidos **
B45: Base * | E45: Impuesto * | H45: Tipo factor *
B47: Tasa o cuota ** | E47: Importe **
H50: Subtotal *
H51: (-) Descuento **
H52: (+) Impuestos trasladados **
H53: (-) Impuestos retenidos **
H54: (=) Total *
B56: * Campo obligatorio
B57: ** Campo opcional
B58: *** Campo condicional

Sheet DEPRECIACIONF (hidden)
F2: IR AL MENÚ
B3: Determinación de la depreciación fiscal
B5: El monto original de la inversión comprende, además del precio del bien, los impuestos efectivamente pagados con motivo de la adquisición o importación del mismo a excepción del impuesto al valor agregado, así como las erogaciones por concepto de derechos, cuotas compensatorias, preparación del emplazamiento físico, instalación, montaje, manejo, entrega, fletes, transportes, acarreos, seguros contra riesgos en la transportación, manejo, comisiones sobre compras y honorarios a agentes o agencias aduanales, así como los relativos a los servicios contratados para que la inversión funcione. Tratándose de las inversiones en automóviles el monto original de la inversión también incluye el monto de las inversiones en equipo de blindaje. Fundamento: Artículo 31 segundo párrafo LISR
B7: Las inversiones únicamente se podrán deducir mediante la aplicación, en cada ejercicio, de los por cientos máximos autorizados por esta Ley, sobre el monto original de la inversión, con las limitaciones en deducciones que, en su caso, establezca esta Ley. Tratándose de ejercicios irregulares, la deducción correspondiente se efectuará en el por ciento que represente el número de meses completos del ejercicio en los que el bien haya sido utilizado por el contribuyente, respecto de doce meses. Cuando el bien se comience a utilizar después de iniciado el ejercicio y en el que se termine su deducción, ésta se efectuará con las mismas reglas que se aplican para los ejercicios irregulares. Fundamento: Artículo 31 primer párrafo LISR
B9: Fecha de adquisición | C9: 2021-03-15
B10: Fecha de cálculo | C10: 2025-02-10
B12: Precio del bien | C12: 350000
B13: (+) Impuestos efectivamente pagados (excepto el IVA)
B14: (+) Pago de derechos
B15: (+) Cuotas compensatorias
B16: (+) Preparación del emplazamiento físico
B17: (+) Instalación
B18: (+) Montaje
B19: (+) Manejo
B20: (+) Entrega
B21: (+) Fletes
B22: (+) Transportes
B23: (+) Acareos
B24: (+) Seguro contra riesgos de la transportación
B25: (+) Comisiones sobre compras
B26: (+) Honorarios a agentes o agencias aduanales
B27: (+) Servicios contratados para que la inversión funcione
B28: (+) Equipo de blindaje en caso de automóviles
B29: (=) Monto original de la inversión | C29: =SUMIF(C12:C28,">0") -> 350000
B30: (x) Tasa de depreciación | C30: 0.1
B31: (=) Depreciación fiscal | C31: =IFERROR(ROUND(C29*C30,2),0) -> 35000
B32: (/) Meses del ejercicio | C32: 12
B33: (x) Meses completos de utilización | C33: =IFERROR(IF(YEAR(C9)<YEAR(C10),DATEDIF(DATE(YEAR(C10),1,1),C10,"ym"),IF(DAY(C9)>=1,DATEDIF(DATE(YEAR(C9),MONTH(EOMONTH(C9,1)),1),C10,"ym")+1,DATEDIF(C9,C10,"ym")+1)),"") -> 1
B34: (=) Depreciación fiscal proporcional | C34: =IFERROR(ROUND(C31/C32*C33,2),0) -> 2916.67
B36: Los contribuyentes ajustarán la deducción determinada en los términos de los párrafos primero y sexto de este artículo, multiplicándola por el factor de actualización correspondiente al periodo comprendido desde el mes en el que se adquirió el bien y hasta el último mes de la primera mitad del periodo en el que el bien haya sido utilizado durante el ejercicio por el que se efectúe la deducción. Fundamento: Artículo 31 séptimo párrafo LISR Cuando sea impar el número de meses comprendidos en el periodo en el que el bien haya sido utilizado en el ejercicio, se considerará como último mes de la primera mitad de dicho periodo el mes inmediato anterior al que corresponda la mitad del periodo. Fundamento: Artículo 31 octavo párrafo LISR
B38: Determinación del factor de actualización
B39: ="INPC Último mes de la primera mitadad de utilización en el ejercicio ("&IFERROR(IF(YEAR(C9)<YEAR(C10),PROPER(TEXT(DATE(YEAR(C10),DATEDIF(DATE(YEAR(C10),1,1),EOMONTH(C10,1),"M")/2,1),"MMMM")),PROPER(TEXT(DATE(YEAR(C9),MONTH(C10)-(ROUND(DATEDIF(C9,EOMONTH(C10,1),"M")-(DATEDIF(C9,EOMONTH(C10,1),"M")/2),0)),1),"MMMM"))),"")&" "&IF(IFERROR(IF(YEAR(C9)<YEAR(C10),PROPER(TEXT(DATE(YEAR(C10),DATEDIF(DATE(YEAR(C10),1,1),EOMONTH(C10,1),"M")/2,1),"MMMM")),PROPER(TEXT(DATE(YEAR(C9),MONTH(C10)-(ROUND(DATEDIF(C9,EOMONTH(C10,1),"M")-(DATEDIF(C9,EOMONTH(C10,1),"M")/2),0)),1),"MMMM"))),"")="Diciembre",YEAR(C10)-1,YEAR(C10))&")" -> INPC Último mes de la primera mitadad de utilización en el ejercicio (Enero 2025) | C39: =IFERROR(INDEX(TINPC,MATCH(IF(IFERROR(IF(YEAR(C9)<YEAR(C10),PROPER(TEXT(DATE(YEAR(C10),DATEDIF(DATE(YEAR(C10),1,1),EOMONTH(C10,1),"M")/2,1),"MMMM")),PROPER(TEXT(DATE(YEAR(C9),MONTH(C10)-(ROUND(DATEDIF(C9,EOMONTH(C10,1),"M")-(DATEDIF(C9,EOMONTH(C10,1),"M")/2),0)),1),"MMMM"))),"")="Diciembre",YEAR(C10)-1,YEAR(C10)),INPCA,0),MATCH(IFERROR(IF(YEAR(C9)<YEAR(C10),PROPER(TEXT(DATE(YEAR(C10),DATEDIF(DATE(YEAR(C10),1,1),EOMONTH(C10,1),"M")/2,1),"MMMM")),PROPER(TEXT(DATE(YEAR(C9),MONTH(C10)-(ROUND(DATEDIF(C9,EOMONTH(C10,1),"M")-(DATEDIF(C9,EOMONTH(C10,1),"M")/2),0)),1),"MMMM"))),""),INPCM,0)),0) -> 138.343
B40: ="(/) INPC "&TEXT(C9,"mmmm")&" "&YEAR(C9) -> (/) INPC marzo 2021 | C40: =IFERROR(INDEX(TINPC,MATCH(YEAR(C9),INPCA,0),MATCH(TEXT(C9,"MMMM"),INPCM,0)),"") -> 111.824
B41: (=) Factor de actualización | C41: =IFERROR(IF((C39/C40)<1,1,ROUND(C39/C40,4)),"") -> 1.2371
B44: Fecha de adquisición | C44: =C9 -> 2021-03-15
B45: Fecha de cálculo | C45: =C10 -> 2025-02-10
B47: Precio del bien | C47: =IF(C12<>"",C12,"") -> 350000
B48: (+) Impuestos efectivamente pagados (excepto el IVA)
B49: (+) Pago de derechos
B50: (+) Cuotas compensatorias
B51: (+) Preparación del emplazamiento físico
B52: (+) Instalación
B53: (+) Montaje
B54: (+) Manejo
B55: (+) Entrega
B56: (+) Fletes
B57: (+) Transportes
B58: (+) Acareos
B59: (+) Seguro contra riesgos de la transportación | C59: =IF(C24<>"",C24,"") -> 
B60: (+) Comisiones sobre compras
B61: (+) Honorarios a agentes o agencias aduanales
B62: (+) Servicios contratados para que la inversión funcione
B63: (+) Equipo de blindaje en caso de automóviles
B64: (=) Monto original de la inversión | C64: =SUMIF(C47:C63,">0") -> 350000
B65: (x) Tasa de depreciación | C65: 0.1
B66: (=) Depreciación fiscal | C66: =IFERROR(ROUND(C64*C65,2),0) -> 35000
B67: (/) Meses del ejercicio | C67: 12
B68: (x) Meses completos de utilización | C68: =IF(C33<>"",C33,0) -> 1
B69: (=) Depreciación fiscal proporcional | C69: =IFERROR(ROUND(C66/C67*C68,2),0) -> 2916.67
B70: (x) Factor de actualización | C70: =IF(C41>0,C41,"") -> 1.2371
B71: (=) Depreciación fiscal proporcional actualizada | C71: =IFERROR(ROUND(C69*C70,2),"") -> 3608.21

Sheet FUNDAMENTO (hidden)
B4: Campo | C4: Fiscal | D4: Anexo 20 | E4: Guía del SAT | F4: Miscelánea fiscal
B5: Fecha de expedición | C5: El lugar y fecha de expedición Fundamento: Artículo 29-A fracción III CFF Artículo 39 RCFF.- Para los efectos del artículo 29, segundo párrafo, fracción IV del Código, los contribuyentes deberán remitir al Servicio de Administración Tributaria o al proveedor de certificación de comprobantes fiscales digitales por Internet autorizados por dicho órgano desconcentrado, según sea el caso, el comprobante fiscal digital por Internet, a más tardar dentro de las veinticuatro horas siguientes a que haya tenido lugar la operación, acto o actividad de la que derivó la obligación de expedirlo. | D5: Atributo requerido para la expresión de la fecha y hora de expedición del Comprobante Fiscal Digital por Internet. Se expresa en la forma AAAA MM-DDThh:mm:ss y debe corresponder con la hora local donde se expide el comprobante. | E5: Es la fecha y hora de expedición del comprobante fiscal. Se expresa en la forma AAAA-MM-DDThh:mm:ss y debe corresponder con la hora local donde se expide el comprobante. Este dato lo integra el sistema que utiliza el contribuyente para la emisión del comprobante fiscal. | F5: Obligaciones de los proveedores en el proceso de certificación de CFDI Que el periodo entre la fecha de generación del documento y la fecha en la que se pretende certificar no exceda de 72 horas, o que dicho periodo sea menor a cero horas, esto lo validarán haciendo uso del huso horario correspondiente al Código Postal registrado en el campo LugarExpedicion, conforme al catálogo “CodigoPostal” del Anexo 20. Fundamento: Regla 2.7.2.9 fracción I RMF 2024 Expedición de comprobantes en operaciones con el público en general Para los efectos del CFDI donde consten las operaciones realizadas con el público en general, los contribuyentes podrán remitir al SAT o al PCCDFI, según sea el caso, el CFDI a más tardar dentro de las 24 horas siguientes al cierre de las operaciones realizadas de manera diaria, semanal, mensual o bimestral. Fundamento: Regla 2.7.1.21 quinto párrafo RMF 2024
B6: Otros apectos importantes de la fecha de expedición
B7: Jurisprudencia número IX-J-SS-72 del Pleno Jurisdiccional de la Sala Superior del Tribunal Federal de Justicia Administrativa, en sesión del 14 de junio de 2023 DEVOLUCIÓN DEL IMPUESTO AL VALOR AGREGADO.- LOS COMPROBANTES FISCALES DE INGRESOS DEBEN CUMPLIR CON LOS REQUISITOS QUE REFIEREN LOS ARTÍCULOS 29 Y 29-A DEL CÓDIGO FISCAL DE LA FEDERACIÓN (LEGISLACIONES VIGENTES EN 2016, 2017 y 2018).- El artículo 5o. de la Ley del Impuesto al Valor Agregado no dispone expresamente que los comprobantes fiscales de ingresos en donde conste que el impuesto al valor agregado fue trasladado expresamente y por separado por el contribuyente deban ser emitidos en el periodo en el que se obtuvieron; sin embargo, para reconocer el derecho de un saldo a favor de acuerdo con la mecánica del acreditamiento del impuesto al valor agregado, la autoridad administrativa debe atender lo dispuesto en los artículos 1o., 2o.-A, 5o.-D, 32, fracción III de la Ley del Impuesto al Valor Agregado en relación con los numerales 29, 29-A, fracción IV del Código Fiscal de la Federación, y 39 de su Reglamento, esto es, verificar que los comprobantes fiscales cumplan, entre otros requisitos, el que hayan sido expedidos en el periodo en que se realizó la operación, además de que, se debe sujetar a la época o tiempo de pago del impuesto para que sean considerados como los medios de convicción mediante los cuales se pretenda acreditar el impuesto al valor agregado. En ese orden de ideas, si el comprobante fiscal de ingreso no cumple con lo antes referido resulta inconcuso que la autoridad válidamente podrá negar la devolución de saldo a favor por concepto del impuesto al valor agregado, pues no puede ser utilizado como medio para sustentar el acreditamiento y por consiguiente a la devolución, por esa razón no resulta factible dejar a discreción del contribuyente la fecha de expedición del referido comprobante. Fuente: https://www.tfja.gob.mx/servicios/ix-epoca/
B9: Campo | C9: Fiscal | D9: Anexo 20 | E9: Guía del SAT | F9: Miscelánea fiscal
B10: Forma de pago | C10: Señalar la forma en que se realizó el pago, ya sea en efectivo, transferencias electrónicas de fondos, cheques nominativos o tarjetas de débito, de crédito, de servicio o las denominadas monederos electrónicos que autorice el Servicio de Administración Tributaria. Fundamento: Artículo 29-A fracción VII inciso c) CFF | D10: Atributo condicional para expresar la clave de la forma de pago de los bienes o servicios amparados por el comprobante. | E10: Se debe registrar la clave de la forma de pago de los bienes, la prestación de los servicios, el otorgamiento del uso o goce, o la forma en que se recibe el donativo contenidos en el comprobante. | F10: Forma en que se realizó el pago, se señalará conforme al catálogo “c_FormaPago” que señala el Anexo 20, con la opción de indicar la clave 99 “Por definir” en el caso de no haberse recibido el pago de la contraprestación, siempre que una vez que se reciba el pago o pagos se emita por cada uno de ellos un CFDI al que se le incorpore el “Complemento para recepción de pagos” a que se refiere la regla 2.7.1.32. Lo señalado en esta fracción no será aplicable en los casos siguientes: a) En las operaciones a que se refiere la regla 3.3.1.34. b) Cuando la contraprestación se pague en una sola exhibición en el momento en el que se expida el CFDI o haya sido pagada antes de la expedición del mismo. Tratándose de los supuestos establecidos en los incisos antes señalados, los contribuyentes deberán consignar en el CFDI la clave correspondiente a la forma de pago, de conformidad con el catálogo “c_FormaPago” que señala el Anexo 20. Fundamento: Regla 2.7.1.29 fracción II RMF 2024
B12: Campo | C12: Fiscal | D12: Anexo 20 | E12: Guía del SAT | F12: Miscelánea fiscal
B13: Método de pago | C13: Los contenidos en las disposiciones fiscales, que sean requeridos y dé a conocer el Servicio de Administración Tributaria, mediante reglas de carácter general. Fundamento: Artículo 29-A fracción IX CFF | D13: Atributo condicional para precisar la clave del método de pago que aplica para este comprobante fiscal digital por Internet, conforme al Artículo 29 A fracción VII incisos a y b del CFF. | E13: Se debe registrar la clave que corresponda depende si se paga en una sola exhibición o en parcialidades, las distintas claves de método de pago se encuentran incluidas en el catálogo c_MetodoPago. Ejemplo: Si un contribuyente realiza el pago en una sola exhibición debe registrar en el campo de método de pago lo siguiente: MetodoPago = PUE | F13: Opción para que en el CFDI se establezca como método de pago “Pago en una sola exhibición” 2.7.1.39. Para los efectos de los artículos 29, párrafos primero, segundo, fracción VI y penúltimo, 29-A, primer párrafo, fracción VII, inciso b) del CFF, y las reglas 2.7.1.29., fracción II y 2.7.1.32., los contribuyentes que no reciban el pago del monto total del CFDI al momento de su expedición, podrán considerarlo como pagado en una sola exhibición para efectos de la facturación, siempre que: I. Se haya pactado o se estime que el monto total que ampare el comprobante se recibirá a más tardar el último día del mes de calendario en el cual se expidió el CFDI. II. Señalen en el CFDI como método de pago “PUE” (Pago en una sola exhibición) y cuál será la forma en que se recibirá dicho pago. III. Se realice efectivamente el pago de la totalidad de la contraprestación a más tardar en el plazo señalado en la fracción I de esta regla. En aquellos casos en que el pago se realice en una forma distinta a la que se señaló en el CFDI, el contribuyente cancelará el CFDI emitido por la operación y emitirá uno nuevo señalando como forma de pago la que efectivamente corresponda. En el caso de que la totalidad del pago de la operación que ampara el CFDI no se realice a más tardar el último día del mes en que se expidió este comprobante, el contribuyente cancelará el CFDI emitido por la operación y emitirá uno nuevo señalando como forma de pago “99” por definir y como método de pago “PPD” pago en parcialidades o diferido, relacionando el nuevo CFDI con el emitido originalmente como “Sustitución de los CFDI previos”, debiendo adicionalmente emitir por el pago o los pagos que efectivamente le realicen, el CFDI con complemento para recepción de pagos que corresponda de conformidad con las reglas 2.7.1.29. y 2.7.1.32. Tratándose de los integrantes del sector financiero que apliquen la facilidad contenida en esta regla, estos podrán considerar para efectos de lo señalado en la fracción I de la misma, incluso los pagos que reciban a más tardar el día 17 del mes inmediato siguiente a aquel en que se emitió el CFDI por el total de la operación, debiendo, en todo caso el receptor del CFDI realizar el acreditamiento del IVA e IEPS en el mes en que el impuesto trasladado haya sido efectivamente pagado. CFF 29, 29-A, RMF 2024 2.7.1.29., 2.7.1.32.
B15: Campo | C15: Fiscal | D15: Anexo 20 | E15: Guía del SAT | F15: Miscelánea fiscal
B16: Moneda | C16: Artículo 20 primer párrafo CFF.- Las contribuciones y sus accesorios se causarán y pagarán en moneda nacional. Los pagos que deban efectuarse en el extranjero se podrán realizar en la moneda del país de que se trate. | D16: Atributo requerido para identificar la clave de la moneda utilizada para expresar los montos, cuando se usa moneda nacional se registra MXN. Conforme con la especificación ISO 4217. | E16: Se debe registrar la clave de la moneda utilizada para expresar los montos, cuando se usa moneda nacional se registra “MXN”, conforme con la especificación ISO 4217. Las distintas claves de moneda se encuentran incluidas en el catálogo c_Moneda. Ejemplo: Moneda= MXN
B18: Campo | C18: Fiscal | D18: Anexo 20 | E18: Guía del SAT | F18: Miscelánea fiscal
B19: Tipo de cambio | C19: Artículo 20 CFF. Tercer párrafo Para determinar las contribuciones y sus accesorios se considerará el tipo de cambio a que se haya adquirido la moneda extranjera de que se trate y no habiendo adquisición, se estará al tipo de cambio que el Banco de México publique en el Diario Oficial de la Federación el día anterior a aquél en que se causen las contribuciones. Los días en que el Banco de México no publique dicho tipo de cambio se aplicará el último tipo de cambio publicado con anterioridad al día en que se causen las contribuciones. Cuarto párrafo Cuando las disposiciones fiscales permitan el acreditamiento de impuestos o de cantidades equivalentes a éstos, pagados en moneda extranjera, se considerará el tipo de cambio que corresponda conforme a lo señalado en el párrafo anterior, referido a la fecha en que se causó el impuesto que se traslada o en su defecto cuando se pague. | D19: Atributo condicional para representar el tipo de cambio FIX conforme con la moneda usada. Es requerido cuando la clave de moneda es distinta de MXN y de XXX. El valor debe reflejar el número de pesos mexicanos que equivalen a una unidad de la divisa señalada en el atributo moneda. Si el valor está fuera del porcentaje aplicable a la moneda tomado del catálogo c_Moneda, el emisor debe obtener del PAC que vaya a timbrar el CFDI, de manera no automática, una clave de confirmación para ratificar que el valor es correcto e integrar dicha clave en el atributo Confirmacion. | E19: Se puede registrar el tipo de cambio FIX conforme a la moneda registrada en el comprobante. Este campo es requerido cuando la clave de moneda es distinta de “MXN” (Peso Mexicano) y a la clave “XXX” (Los códigos asignados para las transacciones en que intervenga ninguna moneda). Si el valor está fuera del porcentaje aplicable a la moneda tomado del catálogo c_Moneda, el emisor debe obtener del proveedor de certificación de CFDI que vaya a timbrar el CFDI de manera no automática, una clave de confirmación para ratificar que el valor es correcto e integrar dicha clave en el campo Confirmacion.El límite superior se obtiene al multiplicar el valor publicado del tipo de cambio FIX por la suma de uno más el porcentaje aplicable a la moneda tomado del catálogo c_Moneda. El límite inferior se obtiene al multiplicar el valor publicado del tipo de cambio FIX por la suma de uno menos el porcentaje aplicable a la moneda tomado del catálogo c_Moneda. Si este límite fuera negativo se toma cero. Nota importante: Esta validación estará vigente únicamente a partir de que el SAT publique en su Portal los procedimientos para generar la clave de confirmación y parametrizar los rangos máximos aplicables. | F19: 22. ¿Qué tipo de cambio pueden utilizar los integrantes del sistema financiero en la emisión del CFDI? Pueden utilizar en tipo de cambio FIX, del último día del mes, de la fecha de emisión o del día del corte del CFDI para operaciones en dólares de los EUA, y en el caso de monedas distintas, el que corresponda conforme a la última tabla de Equivalencias que haya sido publicada por BANXICO Fundamento: Preguntas frecuentes guía de llenado del CFDI SAT.
B21: Campo | C21: Fiscal | D21: Anexo 20 | E21: Guía del SAT | F21: Miscelánea fiscal
B22: Exportación | C22: Artículo 29 segundo párrafo fracción III CFF. Cumplir los requisitos establecidos en el artículo 29-A de este Código, y los que el Servicio de Administración Tributaria establezca al efecto mediante reglas de carácter general, inclusive los complementos del comprobante fiscal digital por Internet, que se publicarán en el Portal de Internet del Servicio de Administración Tributaria. | D22: Atributo requerido para expresar si el comprobante ampara una operación de exportación. | E22: Se debe registrar la clave con la que se identifica si el comprobante ampara una operación de exportación, las distintas claves vigentes se encuentran incluidas en el catálogo c_Exportacion.  Cuando se registre el valor “02”, se debe incluir el “Complemento para Comercio Exterior”. | F22: Complemento de CFDI en exportación definitiva de mercancías 2.7.1.19. Para los efectos del artículo 29, párrafos primero, y penúltimo del CFF en relación con lo dispuesto establecido en la regla 3.1.38., de las RGCE, al CFDI que se emita con motivo de operaciones de exportación definitiva de mercancías con clave de pedimento “A1” del Apéndice 2 del Anexo 22 de las RGCE, deberá incorporársele el complemento que al efecto se publique en el Portal del SAT. En el citado complemento se deberá incluir el identificador fiscal del país de residencia para efectos fiscales del receptor del CFDI y, en su caso, del destinatario de la mercancía, o el identificador específico para cada país, que al efecto determine el SAT en su Portal. CFF 29, RGCE 3.1.38.
B24: Campo | C24: Fiscal | D24: Anexo 20 | E24: Guía del SAT | F24: Miscelánea fiscal
B25: Lugar de expedición | C25: Artículo 29-A CFF. Los comprobantes fiscales digitales a que se refiere el artículo 29 de este Código, deberán contener los siguientes requisitos: I. La clave del Registro Federal de Contribuyentes, nombre o razón social de quien los expida y el régimen fiscal en que tributen conforme a la Ley del Impuesto sobre la Renta. Tratándose de contribuyentes que tengan más de un local o establecimiento, se deberá señalar el domicilio del local o establecimiento en el que se expidan los comprobantes fiscales. | D25: Atributo requerido para incorporar el código postal del lugar de expedición del comprobante (domicilio de la matriz o de la sucursal) | E25: Se debe registrar el código postal del lugar de expedición del comprobante (domicilio de la matriz o de la sucursal), debe corresponder a una clave de código postal vigente incluida en el catálogo c_CodigoPostal. Al ingresar el código postal en este campo se cumple con el requisito de señalar el domicilio y lugar de expedición del comprobante a que se refieren las fracciones I y III del primer párrafo del artículo 29-A del CFF, en los términos de la regla 2.7.1.29., fracción I de la Resolución Miscelánea Fiscal vigente. En el caso de que se emita un comprobante fiscal en una sucursal, en dicho comprobante se debe registrar el código postal de ésta, independientemente de que los sistemas de facturación de la empresa se encuentren en un domicilio distinto al de la sucursal. Los distintos códigos postales se encuentran incluidos en el catálogo c_CodigoPostal. Ejemplo: LugarExpedicion= 01000 | F25: El lugar de expedición, se cumplirá señalando el código postal del domicilio fiscal o domicilio del local o establecimiento conforme al catálogo de códigos postales que señala el Anexo 20. Fundamento: Regla 2.7.1.29 fracción I RMF 17. Si tengo varias sucursales, pero mis sistemas de facturación se encuentran en la matriz ¿qué código postal debo registrar en el campo lugar de expedición en el CFDI? En el caso de que se emita un comprobante fiscal en una sucursal, en dicho comprobante se debe registrar el código postal de esta, independientemente de que los sistemas de facturación de la empresa se encuentren en un domicilio distinto al de la sucursal. Fundamento legal: Artículo 29-A, primer párrafo, fracciones I y III del Código Fiscal de la Federación, “Anexo 20 Guía de llenado de los comprobantes fiscales digitales por Internet” versión 4.0, publicada en el Portal del SAT
B27: Campo | C27: Fiscal | D27: Anexo 20 | E27: Guía del SAT | F27: Miscelánea fiscal
B28: Confirmación | C28: Artículo 29-A CFF. IX. Los contenidos en las disposiciones fiscales, que sean requeridos y dé a conocer el Servicio de Administración Tributaria, mediante reglas de carácter general. | D28: Atributo condicional para registrar la clave de confirmación que entregue el PAC para expedir el comprobante con importes grandes, con un tipo de cambio fuera del rango establecido o con ambos casos. Es requerido cuando se registra un tipo de cambio o un total fuera del rango establecido. | E28: Se debe registrar la clave de confirmación única e irrepetible que entrega el proveedor de certificación de CFDI o el SAT a los emisores (usuarios) para expedir el comprobante con importes o tipo de cambio fuera del rango establecido o en ambos casos. Ejemplo: Confirmacion= ECVH1 Se deben registrar valores alfanuméricos de cinco posiciones. Nota importante: El uso de esta clave estará vigente únicamente a partir de que el SAT publique en su Portal los procedimientos para generar la clave de confirmación y parametrizar los montos y rangos máximos aplicables.
B30: Campo | C30: Fiscal | D30: Anexo 20 | E30: Guía del SAT | F30: Miscelánea fiscal
B31: RFC | C31: Artículo 29-A CFF. Los comprobantes fiscales digitales a que se refiere el artículo 29 de este Código, deberán contener los siguientes requisitos: I. La clave del Registro Federal de Contribuyentes, nombre o razón social de quien los expida y el régimen fiscal en que tributen conforme a la Ley del Impuesto sobre la Renta. Tratándose de contribuyentes que tengan más de un local o establecimiento, se deberá señalar el domicilio del local o establecimiento en el que se expidan los comprobantes fiscales. | D31: Atributo requerido para registrar la Clave del Registro Federal de Contribuyentes correspondiente al contribuyente emisor del comprobante. | E31: Se debe registrar la clave del Registro Federal de Contribuyentes del emisor del comproban En el caso de que el emisor sea una persona física, este campo debe contener una longitud de 13 posiciones, si se trata de personas morales debe contener una longitud de 12 posiciones. Ejemplo: En el caso de una persona física se debe registrar: Rfc= CABL840215RF4 En el caso de una persona moral se debe registrar: Rfc= PAL7202161U0
B33: Campo | C33: Fiscal | D33: Anexo 20 | E33: Guía del SAT | F33: Miscelánea fiscal
B34: Nombre | C34: Artículo 29-A CFF. Los comprobantes fiscales digitales a que se refiere el artículo 29 de este Código, deberán contener los siguientes requisitos: I. La clave del Registro Federal de Contribuyentes, nombre o razón social de quien los expida y el régimen fiscal en que tributen conforme a la Ley del Impuesto sobre la Renta. Tratándose de contribuyentes que tengan más de un local o establecimiento, se deberá señalar el domicilio del local o establecimiento en el que se expidan los comprobantes fiscales. | D34: Atributo requerido para registrar el nombre, denominación o razón social del contribuyente inscrito en el RFC, del emisor del comprobante. | E34: Se debe registrar el nombre, denominación o razón social inscrito en el RFC del emisor del comprobante. El nombre debe corresponder a la clave de RFC registrado en el campo Rfc de este Nodo. Ejemplo: En el caso de una persona física se debe registrar: Nombre = MARTON ALEEJANDRO SANZI FIERROR En el caso de una persona moral se debe registrar: Nombre = LA PALMA AEI0
B36: Campo | C36: Fiscal | D36: Anexo 20 | E36: Guía del SAT | F36: Miscelánea fiscal
B37: Régimen fiscal | C37: Artículo 29-A CFF. Los comprobantes fiscales digitales a que se refiere el artículo 29 de este Código, deberán contener los siguientes requisitos: I. La clave del Registro Federal de Contribuyentes, nombre o razón social de quien los expida y el régimen fiscal en que tributen conforme a la Ley del Impuesto sobre la Renta. Tratándose de contribuyentes que tengan más de un local o establecimiento, se deberá señalar el domicilio del local o establecimiento en el que se expidan los comprobantes fiscales. | D37: Atributo requerido para incorporar la clave del régimen del contribuyente emisor al que aplicará el efecto fiscal de este comprobante. | E37: Se debe especificar la clave vigente del régimen fiscal del contribuyente emisor bajo el cual se está emitiendo el comprobante. Las claves de los diversos regímenes se encuentran incluidas en el catálogo c_RegimenFiscal publicado en el Portal del SAT. Ejemplo: En el caso de que el emisor sea una persona moral inscrita en el Régimen General de Ley de Personas Morales, debe registrar lo siguiente: RegimenFiscal= 601
B39: Campo | C39: Fiscal | D39: Anexo 20 | E39: Guía del SAT | F39: Miscelánea fiscal
B40: Factura atributo adquirente | C40: Artículo 29-A CFF. IX. Los contenidos en las disposiciones fiscales, que sean requeridos y dé a conocer el Servicio de Administración Tributaria, mediante reglas de carácter general. | D40: Atributo condicional para expresar el número de operación proporcionado por el SAT cuando se trate de un comprobante a través de un PCECFDI o un PCGCFDISP. | E40: Se debe registrar el número de operación proporcionado por el SAT cuando se trate de un comprobante a través del adquirente de los productos o servicios siempre que la respuesta del servicio sea en sentido positivo, conforme a la Resolución Miscelánea Fiscal vigente. Cuando el número de operación sea menor a una longitud de 10 posiciones, se deberá completar con ceros a la izquierda hasta completar 10 dígitos. Ejemplo: FacAtrAdquirente=00000012345 | F40: 43. PCCFDI. Proveedor de certificación de Comprobante Fiscal Digital por Internet. 45. PCGCFDISP. Proveedor de certificación y generación de Comprobante Fiscal Digital por Internet para el Sector Primario. Sección 2.7.3. De la expedición de CFDI por las ventas realizadas por personas físicas del sector primario; arrendadores de bienes inmuebles, propietarios o titulares que afecten terrenos, bienes o derechos incluyendo derechos reales, ejidales o comunales; mineros; artesanos; enajenantes de vehículos usados, desperdicios industrializables, obras de artes plásticas y antigüedades, por los adquirentes de sus bienes
B42: Campo | C42: Fiscal | D42: Anexo 20 | E42: Guía del SAT | F42: Miscelánea fiscal
B43: RFC | C43: Artículo 29-A CFF. IV. La clave del Registro Federal de Contribuyentes, nombre o razón social; así como el código postal del domicilio fiscal de la persona a favor de quien se expida, asimismo, se debe indicar la clave del uso fiscal que el receptor le dará al comprobante fiscal. Cuando no se cuente con la clave del registro federal de contribuyentes a que se refiere esta fracción, se señalará la clave genérica que establezca el Servicio de Administración Tributaria mediante reglas de carácter general, considerándose la operación como celebrada con el público en general. Artículo 8o LIEPS.- No se pagará el impuesto establecido en esta Ley: I. Por las enajenaciones siguientes: d) Las de cerveza, bebidas refrescantes, puros y otros tabacos labrados, así como las de los bienes a que se refiere el inciso F) de la fracción I del artículo 2o. de esta Ley, que se efectúen al público en general, salvo que el enajenante sea fabricante, productor, envasador, distribuidor o importador de los bienes que enajene. No gozarán del beneficio establecido en este inciso, las enajenaciones de los citados bienes efectuadas por comerciantes que obtengan la mayor parte del importe de sus ingresos de enajenaciones a personas que no forman parte del público en general. No se consideran enajenaciones efectuadas con el público en general cuando por las mismas se expidan comprobantes que cumplan con los requisitos a que se refiere el artículo 29-A del Código Fiscal de la Federación. | D43: Atributo requerido para registrar la Clave del Registro Federal de Contribuyentes correspondiente al contribuyente receptor del comprobante. | E43: Se debe registrar la clave del Registro Federal de Contribuyentes del receptor del comprobante.  El RFC debe estar contenido en la lista de RFC (l_RFC) inscritos no cancelados en el SAT en caso de que sea diferente del RFC genérico. Ejemplo: En el caso de que el receptor sea una persona física el RFC debe tener una longitud de 13 posiciones, si se trata de personas morales debe tener una longitud de 12 posiciones. Persona física Rfc= FIMA420127R44 Persona moral Rfc= COR391215F4A | F43: Clave en el RFC genérica en CFDI y con residentes en el extranjero 2.7.1.23. Para los efectos del artículo 29-A, fracción IV, segundo párrafo del CFF y 99, fracción III de la Ley del ISR, cuando no se cuente con la clave en el RFC, se consignará la clave genérica en el RFC: XAXX010101000 y cuando se trate de operaciones efectuadas con residentes en el extranjero, que no se encuentren inscritos en el RFC, se señalará la clave genérica en el RFC: XEXX010101000. En el caso de contribuyentes residentes en México, que presten servicios de subcontratación de servicios especializados o de ejecución de obras especializadas a residentes en el extranjero que no están obligados a solicitar su inscripción en el RFC, en los CFDI de nómina que deben emitir por los pagos que realicen y que a su vez sean ingresos para sus trabajadores en términos del Título IV, Capítulo I de la Ley del ISR, podrán señalar en el campo “RfcLabora” del elemento o sección del complemento de nómina denominado “SubContratacion” la clave en el RFC genérica a que se refiere el párrafo anterior. CFF 29-A, LISR 99 Definición de público en general para efectos de expedición de CFDI 2.7.1.46. Para los efectos de los artículos 29 y 29-A fracción IV, segundo párrafo del CFF, se entiende por actividades realizadas con el público en general, cuando se registre la clave en el RFC genérica a que se refiere la regla 2.7.1.23., consistente en: XAXX010101000, en el campo Rfc del nodo Receptor del CFDI. CFF 29, 29-A, RMF 2024 2.7.1.21., 2.7.1.23.
B45: Campo | C45: Fiscal | D45: Anexo 20 | E45: Guía del SAT | F45: Miscelánea fiscal
B46: Nombre | C46: Artículo 29-A CFF. IV. La clave del Registro Federal de Contribuyentes, nombre o razón social; así como el código postal del domicilio fiscal de la persona a favor de quien se expida, asimismo, se debe indicar la clave del uso fiscal que el receptor le dará al comprobante fiscal. Cuando no se cuente con la clave del registro federal de contribuyentes a que se refiere esta fracción, se señalará la clave genérica que establezca el Servicio de Administración Tributaria mediante reglas de carácter general, considerándose la operación como celebrada con el público en general. | D46: Atributo requerido para registrar el nombre(s), primer apellido, segundo apellido, según corresponda, denominación o razón social del contribuyente, inscrito en el RFC, del receptor del comprobante. | E46: Se debe registrar el(los) nombre(s), primer apellido, segundo apellido, según corresponda denominación o razón social registrados en el RFC del contribuyente receptor del comprobante. El Nombre debe corresponder a la clave de RFC registrado en el campo Rfc de este Nodo. Ejemplo: En el caso de una persona física se debe registrar: Nombre = RAFAELI CAMPOSORIO RUÍZO En el caso de una persona moral se debe registrar: Nombre= LA VILLA ESP0
B48: Campo | C48: Fiscal | D48: Anexo 20 | E48: Guía del SAT | F48: Miscelánea fiscal
B49: Domicilio fiscal del receptor | C49: Artículo 29-A CFF. IV. La clave del Registro Federal de Contribuyentes, nombre o razón social; así como el código postal del domicilio fiscal de la persona a favor de quien se expida, asimismo, se debe indicar la clave del uso fiscal que el receptor le dará al comprobante fiscal. | D49: Atributo requerido para registrar el código postal del domicilio fiscal del receptor del comprobante. | E49: Se debe registrar el código postal del domicilio fiscal del receptor del comprobante.  El código postal, en caso de que sea diferente de los RFC genéricos, debe estar asociado a la clave de RFC registrado en el campo Rfc de este Nodo. Ejemplo: DomicilioFiscalReceptor= 01001
B51: Campo | C51: Fiscal | D51: Anexo 20 | E51: Guía del SAT | F51: Miscelánea fiscal
B52: Residencia fiscal | C52: Artículo 29-A CFF. IX. Los contenidos en las disposiciones fiscales, que sean requeridos y dé a conocer el Servicio de Administración Tributaria, mediante reglas de carácter general. | D52: Atributo condicional para registrar la clave del país de residencia para efectos fiscales del receptor del comprobante, cuando se trate de un extranjero, y que es conforme con la especificación ISO 3166-1 alpha-3. Es requerido cuando se incluya el complemento de comercio exterior o se registre el atributo NumRegIdTrib. | E52: Cuando el receptor del comprobante sea un residente en el extranjero, se debe registrar la clave del país de residencia para efectos fiscales del receptor del comprobante. Este campo es obligatorio cuando el RFC del receptor es un RFC genérico extranjero, y se incluya el complemento de comercio exterior o se registre el campo NumRegIdTrib. Ejemplo: Si la residencia fiscal de la empresa extranjera receptora del comprobante fiscal se encuentra en Estados Unidos de América, se debe registrar lo siguiente: ResidenciaFiscal= USA
B54: Campo | C54: Fiscal | D54: Anexo 20 | E54: Guía del SAT | F54: Miscelánea fiscal
B55: Número de registro tributario | C55: Artículo 29-A CFF. IX. Los contenidos en las disposiciones fiscales, que sean requeridos y dé a conocer el Servicio de Administración Tributaria, mediante reglas de carácter general. | D55: Atributo condicional para expresar el número de registro de identidad fiscal del receptor cuando sea residente en el extranjero. Es requerido cuando se incluya el complemento de comercio exterior. | E55: Se captura el número de registro de identidad fiscal del receptor del comprobante fiscal cuando este sea residente en el extranjero.  Este campo es obligatorio cuando se incluya el complemento de comercio exterior.  Puede conformarse desde uno hasta 40 caracteres.  Si no existe el campo ResidenciaFiscal, este campo puede no existir.  La residencia fiscal debe corresponder con el valor especificado en la columna Formato de Registro de Identidad Tributaria del catálogo c_Pais. Ejemplo: En el caso de que el receptor del comprobante fiscal sea residente en el extranjero se debe registrar conforme a lo siguiente: NumRegIdTrib= 121585958
B57: Campo | C57: Fiscal | D57: Anexo 20 | E57: Guía del SAT | F57: Miscelánea fiscal
B58: Régimen fiscal | C58: Artículo 29-A CFF. IX. Los contenidos en las disposiciones fiscales, que sean requeridos y dé a conocer el Servicio de Administración Tributaria, mediante reglas de carácter general. | D58: Atributo requerido para incorporar la clave del régimen fiscal del contribuyente receptor al que aplicará el efecto fiscal de este comprobante. | E58: Se debe registrar la clave vigente del régimen fiscal del contribuyente receptor.  Las claves de los diversos regímenes se encuentran incluidas en el catálogo c_RegimenFiscal publicado en el Portal del SAT.  Cuando se trate de operaciones con residentes en el extranjero y se registre el valor “XEXX010101000” en este campo se debe registrar la clave “616” Sin obligaciones fiscales.
B60: Campo | C60: Fiscal | D60: Anexo 20 | E60: Guía del SAT | F60: Miscelánea fiscal
B61: USO del CFDI | C61: Artículo 29-A CFF. IV. La clave del Registro Federal de Contribuyentes, nombre o razón social; así como el código postal del domicilio fiscal de la persona a favor de quien se expida, asimismo, se debe indicar la clave del uso fiscal que el receptor le dará al comprobante fiscal. | D61: Atributo requerido para expresar la clave del uso que dará a esta factura el receptor del CFDI. | E61: Se debe registrar la clave que corresponda al uso que le dará al comprobante fiscal el receptor. La clave que solicite el receptor (física o moral) se registre en este campo, debe corresponder con los valores indicados en el catálogo c_UsoCFDI y el valor registrado en el campo RegimenFiscalReceptor, debe corresponder a un valor de la columna Régimen Fiscal Receptor de dicho catálogo. Ejemplo: UsoCFDI= D01 En el caso de que se emita un CFDI a un residente en el extranjero con RFC genérico (XEXX010101000), en este campo se debe registrar la clave “S01” (Sin efectos fiscales)
B63: Campo | C63: Fiscal | D63: Anexo 20 | E63: Guía del SAT | F63: Miscelánea fiscal
B64: USO del CFDI | C64: Artículo 29-A CFF. IV. La clave del Registro Federal de Contribuyentes, nombre o razón social; así como el código postal del domicilio fiscal de la persona a favor de quien se expida, asimismo, se debe indicar la clave del uso fiscal que el receptor le dará al comprobante fiscal. | D64: Atributo requerido para expresar la clave del uso que dará a esta factura el receptor del CFDI. | E64: Se debe registrar la clave que corresponda al uso que le dará al comprobante fiscal el receptor. La clave que solicite el receptor (física o moral) se registre en este campo, debe corresponder con los valores indicados en el catálogo c_UsoCFDI y el valor registrado en el campo RegimenFiscalReceptor, debe corresponder a un valor de la columna Régimen Fiscal Receptor de dicho catálogo. Ejemplo: UsoCFDI= D01 En el caso de que se emita un CFDI a un residente en el extranjero con RFC genérico (XEXX010101000), en este campo se debe registrar la clave “S01” (Sin efectos fiscales)
B66: Campo | C66: Fiscal | D66: Anexo 20 | E66: Guía del SAT | F66: Miscelánea fiscal
B67: Tipo de relación | C67: Artículo 29-A CFF. IX. Los contenidos en las disposiciones fiscales, que sean requeridos y dé a conocer el Servicio de Administración Tributaria, mediante reglas de carácter general. | D67: Atributo requerido para indicar la clave de la relación que existe entre éste que se está generando y el o los CFDI previos. | E67: Se debe registrar la clave de la relación que existe entre este comprobante que se está generando y el o los CFDI previos. Las diferentes claves de Tipo de relación se encuentran incluidas en el catálogo c_TipoRelacion publicado en el Portal del SAT.  Cuando el tipo de relación tenga la clave “01” o “02”, no se deben registrar notas de crédito y débito con comprobante de tipo “T” (Traslado), “P” (Pago) o “N” (Nómina).  Cuando el tipo de relación tenga la clave “03”, no se deben registrar devoluciones de mercancías sobre comprobantes de tipo “E” (Egreso), “P” (Pago) o “N” (Nómina).  Cuando el tipo de relación tenga la clave “04”, si este documento que se está generando es de tipo “I” (Ingreso) o “E” (Egreso), puede sustituir a un comprobante de tipo “I” (Ingreso) o “E” (Egreso), en otro caso debe de sustituir a un comprobante del mismo tipo.  Cuando el tipo de relación sea “05”, este documento que se está generando debe ser de tipo “T” (Traslado), y los documentos relacionados deben ser un comprobante de tipo “I” (Ingreso) o “E” (Egreso).  Cuando el tipo de relación sea “06”, este documento que se está generando debe ser de tipo “I” (Ingreso) o “E” (Egreso) y los documentos relacionados deben ser de tipo “T” (Traslado).  Cuando el tipo de relación sea “07”, este documento que se está generando debe ser de tipo “I” (Ingreso) o “E” (Egreso) y los documentos relacionados deben ser de tipo “I” (Ingreso) o “E” (Egreso).
B69: Campo | C69: Fiscal | D69: Anexo 20 | E69: Guía del SAT | F69: Miscelánea fiscal
B70: UUID | C70: Artículo 29-A CFF. IX. Los contenidos en las disposiciones fiscales, que sean requeridos y dé a conocer el Servicio de Administración Tributaria, mediante reglas de carácter general. | D70: Atributo requerido para registrar el folio fiscal (UUID) de un CFDI relacionado con el presente comprobante, por ejemplo: Si el CFDI relacionado es un comprobante de traslado que sirve para registrar el movimiento de la mercancía. Si este comprobante se usa como nota de crédito o nota de débito del comprobante relacionado. Si este comprobante es una devolución sobre el comprobante relacionado. Si éste sustituye a una factura cancelada. | E70: Se debe registrar el folio fiscal (UUID) de un comprobante fiscal relacionado con el presente comprobante. Ejemplo: UUID= 5FB2822E-396D-4725-8521-CDC4BDD20CCF
B72: Campo | C72: Fiscal | D72: Anexo 20 | E72: Guía del SAT | F72: Miscelánea fiscal
B73: Periodicidad | C73: Artículo 29-A CFF. IX. Los contenidos en las disposiciones fiscales, que sean requeridos y dé a conocer el Servicio de Administración Tributaria, mediante reglas de carácter general. Artículo 6 CFF. Último párrafo Cuando las disposiciones fiscales establezcan opciones a los contribuyentes para el cumplimiento de sus obligaciones fiscales o para determinar las contribuciones a su cargo, la elegida por el contribuyente no podrá variarla respecto al mismo ejercicio. | E73: Campo requerido para registrar el período al que corresponde la información del comprobante global. Cuando el valor de este campo sea “05” el campo RegimenFiscal debe ser “621”. | F73: Expedición de comprobantes en operaciones con el público en general 2.7.1.21. Para los efectos de los artículos 29 y 29-A, fracción IV, segundo párrafo del CFF, 39 del Reglamento del CFF y 113-G, fracción V, segundo párrafo de la Ley del ISR, los contribuyentes podrán elaborar un CFDI diario, semanal o mensual donde consten los importes correspondientes a cada una de las operaciones realizadas con el público en general del periodo al que corresponda y el número de folio o de operación de los comprobantes de operaciones con el público en general que se hubieran emitido, utilizando para ello la clave genérica en el RFC a que se refiere la regla 2.7.1.23. Los contribuyentes personas físicas que tributen en el RIF de conformidad con lo establecido en el Título IV, Capítulo II, Sección II de la Ley del ISR vigente hasta el 31 de diciembre de 2021, en relación con lo señalado en el artículo Segundo, fracción IX de las Disposiciones Transitorias de la Ley del Impuesto sobre la Renta, publicada en el DOF el 12 de noviembre de 2021, podrán elaborar el CFDI de referencia de forma bimestral, incluyendo únicamente el monto total de las operaciones del periodo correspondiente. Tratándose de los contribuyentes personas físicas que tributen en el Régimen Simplificado de Confianza de conformidad con lo señalado en el Título IV, Capítulo II, Sección IV de la Ley del ISR, en los CFDI que emitan por las operaciones realizadas durante el mes de que se trate, deberán incluir únicamente el monto total de las operaciones del periodo correspondiente, y deberán cumplir con lo establecido en el quinto párrafo de esta regla. .....................................
B75: Campo | C75: Fiscal | D75: Anexo 20 | E75: Guía del SAT | F75: Miscelánea fiscal
B76: Periodicidad | C76: Artículo 29-A CFF. IX. Los contenidos en las disposiciones fiscales, que sean requeridos y dé a conocer el Servicio de Administración Tributaria, mediante reglas de carácter general. | E76: Se debe registrar la clave del mes o los meses al que corresponde la información de las operaciones celebradas con el público en general, las distintas claves vigentes se encuentran incluidas en el catálogo c_Meses.  Cuando el valor del campo Periodicidad sea “05”(Bimestral), este campo debe contener alguno de los valores “13” (Enero-Febrero), “14” (Marzo-Abril), “15” (Mayo-Junio), “16” (Julio-Agosto), “17” (Septiembre-Octubre) o “18” (Noviembre-Diciembre).  Si el campo Periodicidad contiene un valor diferente de “05”, (Bimestral) este campo debe contener alguno de los valores “01” (Enero), “02”(Febrero), “03” (Marzo), “04”(Abril), “05”(Mayo), “06”(Junio), “07” (Julio), “08”(Agosto), “09”(Septiembre), “10” (Octubre), “11” (Noviembre) o “12” (Diciembre).
B78: Campo | C78: Fiscal | D78: Anexo 20 | E78: Guía del SAT | F78: Miscelánea fiscal
B79: Año | C79: Artículo 29-A CFF. IX. Los contenidos en las disposiciones fiscales, que sean requeridos y dé a conocer el Servicio de Administración Tributaria, mediante reglas de carácter general. | E79: Se debe registrar el año al que corresponde la información del comprobante global. El valor registrado debe ser igual al año en curso o al año inmediato anterior considerando el registrado en la Fecha de emisión del comprobante. Ejemplo: Año=2022
B81: Campo | C81: Fiscal | D81: Anexo 20 | E81: Guía del SAT | F81: Miscelánea fiscal
B82: Clave producto o servicio | C82: Artículo 29-A CFF. V. La cantidad, unidad de medida y clase de los bienes o mercancías o descripción del servicio o del uso o goce que amparen, estos datos se asentarán en los comprobantes fiscales digitales por Internet usando los catálogos incluidos en las especificaciones tecnológicas a que se refiere la fracción VI del artículo 29 de este Código. | D82: Atributo requerido para expresar la clave del producto o del servicio amparado por el presente concepto. Es requerido y deben utilizar las claves del catálogo de productos y servicios, cuando los conceptos que registren por sus actividades correspondan con dichos conceptos. | E82: En este campo se debe registrar una clave que permita clasificar los conceptos del comprobante como productos o servicios; se deben utilizar las claves de los diversos productos o servicios de conformidad con el catálogo c_ClaveProdServ publicado en el Portal del SAT, cuando los conceptos que se registren por sus actividades correspondan a estos. Para una mejor ubicación de los productos y servicios que se facturan, puede consultarse el Apéndice 3 de esta Guía. En el caso de que la clave de un producto o servicio no se encuentre en el catálogo se debe registrar la clave “01010101”. Basta con que se clasifique la descripción del bien o servicio hasta el tercer nivel, es decir hasta la clase, los primeros seis dígitos de la clave del catálogo (Apéndice 3). Es importante señalar que la identificación de la clave de producto o servicio que corresponda conforme al catálogo c_ClaveProdServ, será responsabilidad del emisor de la factura, en razón de ser él quien conoce las características y la naturaleza del producto o servicio que comercializa y amparará el comprobante. En el caso de que el emisor del comprobante comercialice productos que no hayan sido objeto de transformación o industrialización de su parte –es decir lo compra y tal cual lo vende-, el emisor podrá utilizar la clave del producto registrada por su proveedor en el comprobante que ampara la adquisición de los mismos.
B84: Campo | C84: Fiscal | D84: Anexo 20 | E84: Guía del SAT | F84: Miscelánea fiscal
B85: Número de identificación | C85: Artículo 29-A CFF. IX. Los contenidos en las disposiciones fiscales, que sean requeridos y dé a conocer el Servicio de Administración Tributaria, mediante reglas de carácter general. | D85: Atributo opcional para expresar el número de parte, identificador del producto o del servicio, la clave de producto o servicio, SKU o equivalente, propia de la operación del emisor, amparado por el presente concepto. Opcionalmente se puede utilizar claves del estándar GTIN. | E85: En este campo se puede registrar el número de parte, identificador del producto o del servicio, la clave de producto o servicio, SKU (número de referencia) o equivalente, propia de la operación del contribuyente emisor del comprobante fiscal descrito en el presente concepto.  Opcionalmente se pueden utilizar claves del estándar GTIN (número global de artículo comercial).  Puede conformarse desde uno hasta 100 caracteres alfanuméricos. Ejemplo: NoIdentificacion= UT421510
B87: Campo | C87: Fiscal | D87: Anexo 20 | E87: Guía del SAT | F87: Miscelánea fiscal
B88: Cantidad | C88: Artículo 29-A CFF. V. La cantidad, unidad de medida y clase de los bienes o mercancías o descripción del servicio o del uso o goce que amparen, estos datos se asentarán en los comprobantes fiscales digitales por Internet usando los catálogos incluidos en las especificaciones tecnológicas a que se refiere la fracción VI del artículo 29 de este Código. | D88: Atributo requerido para precisar la cantidad de bienes o servicios del tipo particular definido por el presente concepto. | E88: En este campo se debe registrar la cantidad de bienes o servicios que correspondan a cada concepto, puede contener de cero hasta seis decimales. Ejemplo: Cantidad= 5.55555
B90: Campo | C90: Fiscal | D90: Anexo 20 | E90: Guía del SAT | F90: Miscelánea fiscal
B91: Clave de unidad | C91: Artículo 29-A CFF. V. La cantidad, unidad de medida y clase de los bienes o mercancías o descripción del servicio o del uso o goce que amparen, estos datos se asentarán en los comprobantes fiscales digitales por Internet usando los catálogos incluidos en las especificaciones tecnológicas a que se refiere la fracción VI del artículo 29 de este Código. | D91: Atributo requerido para precisar la clave de unidad de medida estandarizada aplicable para la cantidad expresada en el concepto. La unidad debe corresponder con la descripción del concepto. | E91: En este campo se debe registrar la clave de unidad de medida estandarizada de conformidad con el catálogo c_ClaveUnidad publicado en el Portal del SAT, aplicable para la cantidad expresada en cada concepto. La unidad debe corresponder con la descripción del concepto. Ejemplo: ClaveUnidad= KGM
B93: Campo | C93: Fiscal | D93: Anexo 20 | E93: Guía del SAT | F93: Miscelánea fiscal
B94: Unidad | D94: Atributo opcional para precisar la unidad de medida propia de la operación del emisor, aplicable para la cantidad expresada en el concepto. La unidad debe corresponder con la descripción del concepto. | E94: En este campo se puede registrar la unidad de medida del bien o servicio propio de la operación del emisor, aplicable para la cantidad expresada en cada concepto. La unidad debe corresponder con la descripción del concepto. La unidad debe corresponder con la ClaveUnidad del catálogo c_ClaveUnidad. Ejemplo: Unidad= Kilo | F94: Concepto de unidad de medida a utilizar en los CFDI 2.7.1.25. Para los efectos del artículo 29-A, fracción V, primer párrafo del CFF, los contribuyentes podrán señalar en los CFDI que emitan, la unidad de medida que utilicen conforme a los usos mercantiles. Asimismo, se deberá registrar la unidad de medida que corresponda con la Clave Unidad del Catálogo “c_ClaveUnidad” señalada en el Anexo 20, en caso de que no se encuentre la clave específica de la unidad de medida que se utilizó conforme a los usos mercantiles los contribuyentes podrán señalar la clave que más se acerque o se asemeje. CFF 29-A
B96: Campo | C96: Fiscal | D96: Anexo 20 | E96: Guía del SAT | F96: Miscelánea fiscal
B97: Valor unitario | C97: Artículo 29-A CFF. V. La cantidad, unidad de medida y clase de los bienes o mercancías o descripción del servicio o del uso o goce que amparen, estos datos se asentarán en los comprobantes fiscales digitales por Internet usando los catálogos incluidos en las especificaciones tecnológicas a que se refiere la fracción VI del artículo 29 de este Código. | D97: Atributo requerido para precisar el valor o precio unitario del bien o servicio cubierto por el presente concepto. | E97: En este campo se debe registrar el valor o precio unitario del bien o servicio por cada concepto, el cual puede contener de cero hasta seis decimales. Si el tipo de comprobante es de “I” (Ingreso), “E” (Egreso) o “N” (Nómina) este valor debe ser mayor a cero, si es de “T” (Traslado) puede ser mayor o igual a cero y si es de “P” (Pago) debe ser igual a cero. Ejemplo: ValorUnitario= 1230.00
B99: Campo | C99: Fiscal | D99: Anexo 20 | E99: Guía del SAT | F99: Miscelánea fiscal
B100: Importe | C100: Artículo 29-A CFF. IX. Los contenidos en las disposiciones fiscales, que sean requeridos y dé a conocer el Servicio de Administración Tributaria, mediante reglas de carácter general. | D100: Atributo requerido para precisar el importe total de los bienes o servicios del presente concepto. Debe ser equivalente al resultado de multiplicar la cantidad por el valor unitario expresado en el concepto. No se permiten valores negativos. | E100: Se debe registrar el importe total de los bienes o servicios de cada concepto. Debe ser equivalente al resultado de multiplicar la cantidad por el valor unitario expresado en el concepto, el cual debe ser calculado por el sistema que genera el comprobante y considerará los redondeos que tenga registrado este campo en el estándar técnico del Anexo 20. No se permiten valores negativos. Este campo puede contener de cero hasta seis decimales. Ejemplo 1: En este caso se consideró la clave “MXN” (Peso Mexicano). Importe= 6150.00
B102: Campo | C102: Fiscal | D102: Anexo 20 | E102: Guía del SAT | F102: Miscelánea fiscal
B103: Descuento | C103: Artículo 29-A CFF. IX. Los contenidos en las disposiciones fiscales, que sean requeridos y dé a conocer el Servicio de Administración Tributaria, mediante reglas de carácter general. | D103: Atributo opcional para representar el importe de los descuentos aplicables al concepto. No se permiten valores negativos. | E103: Se puede registrar el importe de los descuentos aplicables a cada concepto, debe tener hasta la cantidad de decimales que tenga registrado en el campo importe del concepto y debe ser menor o igual al campo Importe. No se permiten valores negativos. Este campo puede contener de cero hasta seis decimales. Ejemplo: En este caso se consideró la clave “MXN” (Peso Mexicano). Descuento= 864.10 Los descuentos no se deben registrar de manera global, se registran por cada uno de los conceptos contenidos dentro del comprobante.
B105: Campo | C105: Fiscal | D105: Anexo 20 | E105: Guía del SAT | F105: Miscelánea fiscal
B106: Objeto de impuesto | C106: Artículo 29-A CFF. IX. Los contenidos en las disposiciones fiscales, que sean requeridos y dé a conocer el Servicio de Administración Tributaria, mediante reglas de carácter general. | D106: Atributo requerido para expresar si la operación comercial es objeto o no de impuesto. | E106: Se debe registrar la clave correspondiente para indicar si la operación comercial es objeto o no de impuesto.  Las claves vigentes se encuentran incluidas en el catálogo c_ObjetoImp.  Si el valor registrado en este campo es “02” (Sí objeto de impuesto), se deben desglosar los Impuestos a nivel de Concepto.  Si el valor registrado en este campo es “01” (No objeto de impuesto) o “03” (Sí objeto del impuesto y no obligado al desglose) no se desglosan impuestos a nivel Concepto.
B108: Campo | C108: Fiscal | D108: Anexo 20 | E108: Guía del SAT | F108: Miscelánea fiscal
B109: Pedimento | C109: Artículo 29-A CFF. VIII. Tratándose de mercancías de importación: a) El número y fecha del documento aduanero, tratándose de ventas de primera mano. b) En importaciones efectuadas a favor de un tercero, el número y fecha del documentoaduanero, los conceptos y montos pagados por el contribuyente directamente al proveedor extranjero y los importes de las contribuciones pagadas con motivo de la importación. | D109: Atributo requerido para expresar el número del pedimento que ampara la importación del bien que se expresa en el siguiente formato: últimos 2 dígitos del año de validación seguidos por dos espacios, 2 dígitos de la aduana de despacho seguidos por dos espacios, 4 dígitos del número de la patente seguidos por dos espacios, 1 dígito que corresponde al último dígito del año en curso, salvo que se trate de un pedimento consolidado iniciado en el año inmediato anterior o del pedimento original de una rectificación, seguido de 6 dígitos de la numeración progresiva por aduana. | E109: Se debe registrar el número del pedimento correspondiente a la importación del bien, el cual se integra de izquierda a derecha de la siguiente manera: Últimos dos dígitos del año de validación seguidos por dos espacios, dos dígitos de la aduana de despacho seguidos por dos espacios, cuatro dígitos del número de la patente seguidos por dos espacios, un dígito que corresponde al último dígito del año en curso, salvo que se trate de un pedimento consolidado, iniciado en el año inmediato anterior o del pedimento original de una rectificación, seguido de seis dígitos de la numeración progresiva por aduana.  Se debe registrar la información en este campo cuando el CFDI no contenga el complemento de comercio exterior (es una venta de primera mano nacional).  Para validar la estructura de este campo puede consultar la documentación técnica publicada en el Portal del SAT
B111: Campo | C111: Fiscal | D111: Anexo 20 | E111: Guía del SAT | F111: Miscelánea fiscal
B112: Número | C112: Artículo 29-A CFF. V... c) Los que se expidan por la obtención de ingresos por arrendamiento y en general por otorgar el uso o goce temporal de bienes inmuebles, deberán contener el número de cuenta predial del inmueble de que se trate o, en su caso, los datos de identificación del certificado de participación inmobiliaria no amortizable. | D112: Atributo requerido para precisar el número de la cuenta predial del inmueble cubierto por el presente concepto, o bien para incorporar los datos de identificación del certificado de participación inmobiliaria no amortizable, tratándose de arrendamiento. | E112: Se debe registrar el número de la cuenta predial del inmueble cubierto por cada concepto o bien, para incorporar los datos de identificación del certificado de participación inmobiliaria no amortizable, si se trata de arrendamiento. Puede conformarse desde uno hasta 150 dígitos. Ejemplo: Numero= 15956011002

Sheet INPC (hidden)
M2: IR AL MENÚ
C4: Enero | D4: Febrero | E4: Marzo | F4: Abril | G4: Mayo | H4: Junio | I4: Julio | J4: Agosto | K4: Septiembre | L4: Octubre | M4: Noviembre | N4: Diciembre
B5: 2025 | C5: 138.343
B6: 2024 | C6: 133.555 | D6: 133.681 | E6: 134.065 | F6: 134.336 | G6: 134.087 | H6: 134.594 | I6: 136.003 | J6: 136.013 | K6: 136.08 | L6: 136.828 | M6: 137.424 | N6: 137.949
B7: 2023 | C7: 127.336 | D7: 128.046 | E7: 128.389 | F7: 128.363 | G7: 128.084 | H7: 128.214 | I7: 128.832 | J7: 129.545 | K7: 130.12 | L7: 130.609 | M7: 131.445 | N7: 132.373
B8: 2022 | C8: 118.002 | D8: 118.981 | E8: 120.159 | F8: 120.809 | G8: 121.022 | H8: 122.044 | I8: 122.948 | J8: 123.803 | K8: 124.571 | L8: 125.276 | M8: 125.997 | N8: 126.478
B9: 2021 | C9: 110.21 | D9: 110.907 | E9: 111.824 | F9: 112.19 | G9: 112.419 | H9: 113.018 | I9: 113.682 | J9: 113.899 | K9: 114.601 | L9: 115.561 | M9: 116.884 | N9: 117.308
B10: 2020 | C10: 106.447 | D10: 106.889 | E10: 106.838 | F10: 105.755 | G10: 106.162 | H10: 106.743 | I10: 107.444 | J10: 107.867 | K10: 108.114 | L10: 108.774 | M10: 108.856 | N10: 109.271
B11: 2019 | C11: 103.108 | D11: 103.079 | E11: 103.476 | F11: 103.531 | G11: 103.233 | H11: 103.299 | I11: 103.687 | J11: 103.67 | K11: 103.942 | L11: 104.503 | M11: 105.346 | N11: 105.934
B12: 2018 | C12: 98.7949997 | D12: 99.17137448 | E12: 99.49215698 | F12: 99.15484705 | G12: 98.99408017 | H12: 99.37646493 | I12: 99.9090991 | J12: 100.492 | K12: 100.917 | L12: 101.44 | M12: 102.303 | N12: 103.02
B13: 2017 | C13: 93.60388244 | D13: 94.14478034 | E13: 94.72248933 | F13: 94.83893263 | G13: 94.72549432 | H13: 94.96363964 | I13: 95.32273574 | J13: 95.79376765 | K13: 96.09351524 | L13: 96.69826913 | M13: 97.69517399 | N13: 98.27288299
B14: 2016 | C14: 89.38638139 | D14: 89.77778112 | E14: 89.9100006 | F14: 89.62527796 | G14: 89.22561452 | H14: 89.32402789 | I14: 89.55691448 | J14: 89.80933349 | K14: 90.35774385 | L14: 90.90615422 | M14: 91.61683394 | N14: 92.0390348
B15: 2015 | C15: 87.11010277 | D15: 87.27537713 | E15: 87.63071699 | F15: 87.40384038 | G15: 86.96736583 | H15: 87.11310776 | I15: 87.24081976 | J15: 87.42487529 | K15: 87.75241902 | L15: 88.2039185 | M15: 88.68546788 | N15: 89.04681772
B16: 2014 | C16: 84.51905163 | D16: 84.73315704 | E16: 84.96529239 | F16: 84.80677925 | G16: 84.53557906 | H16: 84.68207224 | I16: 84.91495883 | J16: 85.21996514 | K16: 85.59633992 | L16: 86.06962558 | M16: 86.76377787 | N16: 87.18898371
B17: 2013 | C17: 80.89278202 | D17: 81.29094297 | E17: 81.88743314 | F17: 81.94152293 | G17: 81.66882024 | H17: 81.61923793 | I17: 81.59219304 | J17: 81.82432839 | K17: 82.13233968 | L17: 82.52298816 | M17: 83.29226516 | N17: 83.7700583
B18: 2012 | C18: 78.34304946 | D18: 78.50231384 | E18: 78.54738867 | F18: 78.30097963 | G18: 78.05381934 | H18: 78.41366669 | I18: 78.85389747 | J18: 79.0905403 | K18: 79.43911894 | L18: 79.84103612 | M18: 80.3834365 | N18: 80.56824328
B19: 2011 | C19: 75.29599135 | D19: 75.57846024 | E19: 75.72345093 | F19: 75.71744095 | G19: 75.15926438 | H19: 75.15550814 | I19: 75.51610674 | J19: 75.63555502 | K19: 75.82111305 | L19: 76.3327123 | M19: 77.15833283 | N19: 77.79238536
B20: 2010 | C20: 72.55204598 | D20: 72.97167051 | E20: 73.48972549 | F20: 73.25556464 | G20: 72.79397765 | H20: 72.77118323 | I20: 72.92919 | J20: 73.1317495 | K20: 73.51511019 | L20: 73.96892635 | M20: 74.56158125 | N20: 74.93095445
B21: 2009 | C21: 69.45614941 | D21: 69.60949368 | E21: 70.00995018 | F21: 70.25499019 | G21: 70.05035847 | H21: 70.17935416 | I21: 70.37051645 | J21: 70.53888432 | K21: 70.89271587 | L21: 71.10719063 | M21: 71.47604578 | N21: 71.77185517
B22: 2008 | C22: 65.35056368 | D22: 65.5448343 | E22: 66.01989072 | F22: 66.17012666 | G22: 66.09863507 | H22: 66.3721681 | I22: 66.74205936 | J22: 67.12749227 | K22: 67.58493481 | L22: 68.04548569 | M22: 68.81894178 | N22: 69.29555236
B23: 2007 | C23: 63.01620793 | D23: 63.19234663 | E23: 63.32911314 | F23: 63.29129513 | G23: 62.98253436 | H23: 63.05817039 | I23: 63.32600481 | J23: 63.58399619 | K23: 64.07770259 | L23: 64.32740509 | M23: 64.78122126 | N23: 65.04905568
B24: 2006 | C24: 60.60362589 | D24: 60.69635773 | E24: 60.77251181 | F24: 60.86161727 | G24: 60.59067451 | H24: 60.64299806 | I24: 60.80929371 | J24: 61.11960865 | K24: 61.73661213 | L24: 62.00651878 | M24: 62.3318573 | N24: 62.69242357
B25: 2005 | C25: 58.30916037 | D25: 58.50343099 | E25: 58.76712098 | F25: 58.97641519 | G25: 58.82825146 | H25: 58.77178347 | I25: 59.00179988 | J25: 59.07225536 | K25: 59.30900649 | L25: 59.45457994 | M25: 59.88249335 | N25: 60.25031239
B26: 2004 | C26: 55.77431735 | D26: 56.10794476 | E26: 56.29807094 | F26: 56.38303195 | G26: 56.24160294 | H26: 56.33174451 | I26: 56.47939018 | J26: 56.82804118 | K26: 57.29791705 | L26: 57.69474717 | M26: 58.1868994 | N26: 58.30708815
B27: 2003 | C27: 53.52544068 | D27: 53.67412245 | E27: 54.01293041 | F27: 54.1051442 | G27: 53.93055967 | H27: 53.9751124 | I27: 54.0533387 | J27: 54.21548991 | K27: 54.53823816 | L27: 54.73820739 | M27: 55.19254161 | N27: 55.42981079
B28: 2002 | C28: 50.90047201 | D28: 50.86774985 | E28: 51.12794844 | F28: 51.40723497 | G28: 51.51142923 | H28: 51.76258618 | I28: 51.91118135 | J28: 52.1085603 | K28: 52.42198356 | L28: 52.65303609 | M28: 53.07887728 | N28: 53.3099298
B29: 2001 | C29: 48.57547625 | D29: 48.54332816 | E29: 48.85088778 | F29: 49.09730863 | G29: 49.20997046 | H29: 49.32636377 | I29: 49.19820196 | J29: 49.48968755 | K29: 49.95038115 | L29: 50.17613537 | M29: 50.36514891 | N29: 50.43489879
B30: 2000 | C30: 44.93083012 | D30: 45.32938031 | E30: 45.58068078 | F30: 45.84001827 | G30: 46.01137907 | H30: 46.28392024 | I30: 46.46446621 | J30: 46.71978519 | K30: 47.0610716 | L30: 47.38513583 | M30: 47.79028786 | N30: 48.30767118
B31: 1999 | C31: 40.46977028 | D31: 41.01364281 | E31: 41.39468378 | F31: 41.77457661 | G31: 42.02587708 | H31: 42.3020062 | I31: 42.58157977 | J31: 42.82125526 | K31: 43.23501839 | L31: 43.50885123 | M31: 43.89577645 | N31: 44.33551639
B32: 1998 | C32: 34.00392411 | D32: 34.59923784 | E32: 35.0045334 | F32: 35.33204206 | G32: 35.61348136 | H32: 36.03442041 | I32: 36.38187811 | J32: 36.7316321 | K32: 37.32737639 | L32: 37.86226893 | M32: 38.53278623 | N32: 39.47297432
B33: 1997 | C33: 29.49888603 | D33: 29.99459809 | E33: 30.36788907 | F33: 30.69597181 | G33: 30.97611945 | H33: 31.25095691 | I33: 31.52321104 | J33: 31.8035022 | K33: 32.19961259 | L33: 32.45694082 | M33: 32.82004201 | N33: 33.27987451
B34: 1996 | C34: 23.32975376 | D34: 23.87426203 | E34: 24.39982588 | F34: 25.09344962 | G34: 25.5508423 | H34: 25.96690173 | I34: 26.33603069 | J34: 26.68607171 | K34: 27.11275149 | L34: 27.45116754 | M34: 27.86708345 | N34: 28.75933645
B35: 1995 | C35: 15.37699094 | D35: 16.02870735 | E35: 16.9736172 | F35: 18.32613326 | G35: 19.09209019 | H35: 19.69802427 | I35: 20.09958836 | J35: 20.43298127 | K35: 20.85564253 | L35: 21.28476212 | M35: 21.80960838 | N35: 22.52016727
B36: 1994 | C36: 13.95037498 | D36: 14.02212406 | E36: 14.09422476 | F36: 14.1632513 | G36: 14.23168224 | H36: 14.30289457 | I36: 14.36632677 | J36: 14.43328665 | K36: 14.53593664 | L36: 14.6122453 | M36: 14.69036086 | N36: 14.81920437
B37: 1993 | C37: 12.97731976 | D37: 13.08334531 | E37: 13.15959369 | F37: 13.2354804 | G37: 13.31113749 | H37: 13.38579712 | I37: 13.45012344 | J37: 13.52211219 | K37: 13.62226067 | L37: 13.67797303 | M37: 13.73830236 | N37: 13.8430549
B38: 1992 | C38: 11.65777847 | D38: 11.79590044 | E38: 11.91594772 | F38: 12.02217132 | G38: 12.10143789 | H38: 12.18334519 | I38: 12.26027241 | J38: 12.33559223 | K38: 12.44289652 | L38: 12.53249354 | M38: 12.63662034 | N38: 12.81655348
B39: 1991 | C39: 9.883879895 | D39: 10.05642472 | E39: 10.19983964 | F39: 10.30668755 | G39: 10.40744167 | H39: 10.51664758 | I39: 10.60958427 | J39: 10.68342298 | K39: 10.78985037 | L39: 10.91534274 | M39: 11.1863741 | N39: 11.44967987
B40: 1990 | C40: 7.776037302 | D40: 7.952119854 | E40: 8.09230992 | F40: 8.215471549 | G40: 8.358837676 | H40: 8.542938589 | I40: 8.698734834 | J40: 8.846950442 | K40: 8.973061369 | L40: 9.102059888 | M40: 9.343723103 | N40: 9.638213954
B41: 1989 | C41: 6.349023793 | D41: 6.435183543 | E41: 6.504944899 | F41: 6.602224445 | G41: 6.693098769 | H41: 6.774384637 | I41: 6.842148218 | J41: 6.907332776 | K41: 6.973392795 | L41: 7.076525015 | M41: 7.175855437 | N41: 7.418029579
B42: 1988 | C42: 4.718245936 | D42: 5.11178304 | E42: 5.373547426 | F42: 5.538940737 | G42: 5.646108688 | H42: 5.761292137 | I42: 5.857456543 | J42: 5.911343343 | K42: 5.945139022 | L42: 5.990486483 | M42: 6.070654347 | N42: 6.197316386
B43: 1987 | C43: 1.704401293 | D43: 1.82738639 | E43: 1.948152699 | F43: 2.11860646 | G43: 2.278325059 | H43: 2.443145733 | I43: 2.641021527 | J43: 2.856871549 | K43: 3.045081395 | L43: 3.298844634 | M43: 3.560511423 | N43: 4.086392459
B44: 1986 | C44: 0.8340922314 | D44: 0.8711744774 | E44: 0.9116667168 | F44: 0.9592631115 | G44: 1.012570099 | H44: 1.077566644 | I44: 1.131332893 | J44: 1.221531243 | K44: 1.294811669 | L44: 1.368824029 | M44: 1.461304324 | N44: 1.576734626
B45: 1985 | C45: 0.5027114465 | D45: 0.5235962218 | E45: 0.5438853996 | F45: 0.5606210622 | G45: 0.5739022409 | H45: 0.5882755934 | I45: 0.6087628237 | J45: 0.6353768519 | K45: 0.6607523142 | L45: 0.6858522231 | M45: 0.717495125 | N45: 0.7663401306
B46: 1984 | C46: 0.3127277179 | D46: 0.3292323176 | E46: 0.3433042813 | F46: 0.35815555 | G46: 0.3700316859 | H46: 0.383423376 | I46: 0.3959927058 | J46: 0.4072488386 | K46: 0.4193804378 | L46: 0.434033654 | M46: 0.4489294132 | N46: 0.4679958155
B47: 1983 | C47: 0.1803550862 | D47: 0.1900339592 | E47: 0.1992320461 | F47: 0.2118458612 | G47: 0.221033903 | H47: 0.2294038894 | I47: 0.2407461334 | J47: 0.2500906071 | K47: 0.257787495 | L47: 0.2663411785 | M47: 0.2819832374 | N47: 0.2940473806
B48: 1982 | C48: 0.08586553576 | D48: 0.08923965376 | E48: 0.09249895005 | F48: 0.09751204377 | G48: 0.1029930085 | H48: 0.1079544314 | I48: 0.1135172022 | J48: 0.1262558789 | K48: 0.1329954996 | L48: 0.1398901172 | M48: 0.1469626971 | N48: 0.1626564164
B49: 1981 | C49: 0.06561511364 | D49: 0.06722682413 | E49: 0.06866487223 | F49: 0.070213437 | G49: 0.07127547043 | H49: 0.07227148812 | I49: 0.07354449426 | J49: 0.07506004857 | K49: 0.07645648132 | L49: 0.07815286789 | M49: 0.07965693692 | N49: 0.08180109914
B50: 1980 | C50: 0.05134222229 | D50: 0.05252911734 | E50: 0.05360981111 | F50: 0.05454698293 | G50: 0.05543679935 | H50: 0.05653614828 | I50: 0.05811484831 | J50: 0.0593189635 | K50: 0.05997771704 | L50: 0.06088618343 | M50: 0.061942482 | N50: 0.0635671076
B51: 1979 | C51: 0.04223742153 | D51: 0.04284450426 | E51: 0.04342575159 | F51: 0.04381468655 | G51: 0.044388764 | H51: 0.0448810302 | I51: 0.04542496203 | J51: 0.04611241581 | K51: 0.046677878 | L51: 0.04749306342 | M51: 0.04810445118 | N51: 0.04895551191
B52: 1978 | C52: 0.03589248098 | D52: 0.03640771256 | E52: 0.03678659726 | F52: 0.03719562757 | G52: 0.03756016213 | H52: 0.03807682873 | I52: 0.03872266197 | J52: 0.0391087269 | K52: 0.03955506753 | L52: 0.04003441863 | M52: 0.04044631378 | N52: 0.04078932317
B53: 1977 | C53: 0.03002689152 | D53: 0.03068994492 | E53: 0.03122526667 | F53: 0.0316974427 | G53: 0.03197586617 | H53: 0.03236767115 | I53: 0.03273364591 | J53: 0.03340530938 | K53: 0.03399804198 | L53: 0.03425781029 | M53: 0.03463238995 | N53: 0.03511174104
B54: 1976 | C54: 0.02331884624 | D54: 0.02375514178 | E54: 0.02398763968 | F54: 0.02415555684 | G54: 0.02432490901 | H54: 0.02442250021 | I54: 0.02462916788 | J54: 0.0248645358 | K54: 0.02571273168 | L54: 0.02716083005 | M54: 0.02838791062 | N54: 0.02909975961
B55: 1975 | C55: 0.0208158895 | D55: 0.02093070084 | E55: 0.02106273752 | F55: 0.02124069976 | G55: 0.02152486846 | H55: 0.02189083804 | I55: 0.02206593026 | J55: 0.0222568128 | K55: 0.02241898474 | L55: 0.02253380126 | M55: 0.02269167334 | N55: 0.02287681064
B56: 1974 | C56: 0.01765274421 | D56: 0.01805172426 | E56: 0.01819094117 | F56: 0.01843778919 | G56: 0.01858274615 | H56: 0.01876644845 | I56: 0.01903769686 | J56: 0.01923862448 | K56: 0.01945677226 | L56: 0.01984283201 | M56: 0.02039394408 | N56: 0.02055325116
B57: 1973 | C57: 0.01424562093 | D57: 0.01436330748 | E57: 0.01448960411 | F57: 0.01471923198 | G57: 0.01487566904 | H57: 0.01499765545 | I57: 0.01538228537 | J57: 0.01562913857 | K57: 0.0160008482 | L57: 0.01620608086 | M57: 0.01640557347 | N57: 0.01704279146
B58: 1972 | C58: 0.01336154975 | D58: 0.01340317028 | E58: 0.01347636627 | F58: 0.01356104236 | G58: 0.01358830759 | H58: 0.01368876881 | I58: 0.01374043962 | J58: 0.01383085575 | K58: 0.01389400148 | L58: 0.01390404656 | M58: 0.0139944627 | N58: 0.01404182846
B59: 1971 | C59: 0.01279895758 | D59: 0.01285205821 | E59: 0.01290085381 | F59: 0.01296687474 | G59: 0.01299414515 | H59: 0.01305298584 | I59: 0.01304294075 | J59: 0.01316205713 | K59: 0.01320511268 | L59: 0.01321803297 | M59: 0.01323955816 | N59: 0.01330270906
B60: 1970 | C60: 0.0121976149 | D60: 0.01219617989 | E60: 0.01223206037 | F60: 0.01224784551 | G60: 0.01227368091 | H60: 0.01234831191 | I60: 0.01240858761 | J60: 0.01246599328 | K60: 0.01249613372 | L60: 0.01250043876 | M60: 0.01256789469 | N60: 0.01267409597
B61: 1969 | C61: 0.01159484238 | D61: 0.01163645774 | E61: 0.01164794302 | F61: 0.01167951329 | G61: 0.01167951329 | H61: 0.01172113383 | I61: 0.01176562439 | J61: 0.01177854468 | K61: 0.01188905099 | L61: 0.0120139126 | M61: 0.01201534761 | N61: 0.01210576375

Sheet TARIFA (hidden)
I2: IR AL MENÚ
B5: VI. Tarifa del mes de enero de 2025, para efectuar los pagos provisionales mensuales a que se refiere el artículo 106 de la Ley del ISR, aplicable a los ingresos que perciban los contribuyentes a que se refiere el Título IV, Capítulo II, Sección I de la Ley del ISR.
B6: Límite inferior | C6: Límite superior | D6: Cuota fija | E6: Por ciento para aplicarse sobre el excedente del límite inferior | L6: Tabla mensual RESICO
B7: $ | C7: $ | D7: $ | E7: % | L7: 0 | M7: 25000 | N7: 0.01
B8: 0.01 | C8: 746.04 | D8: 0 | E8: 1.92 | L8: =M7+0.01 -> 25000.01 | M8: 50000 | N8: 0.011
B9: 746.05 | C9: 6332.05 | D9: 14.32 | E9: 6.4 | L9: =M8+0.01 -> 50000.01 | M9: 83333 | N9: 0.015
B10: 6332.06 | C10: 11128.01 | D10: 371.83 | E10: 10.88 | L10: 83333.01 | M10: 208333 | N10: 0.02
B11: 11128.02 | C11: 12935.82 | D11: 893.63 | E11: 16 | L11: 208333.01 | M11: 3500000 | N11: 0.025
B12: 12935.83 | C12: 15487.71 | D12: 1182.88 | E12: 17.92
B13: 15487.72 | C13: 31236.49 | D13: 1640.18 | E13: 21.36
B14: 31236.5 | C14: 49233 | D14: 5004.12 | E14: 23.52
B15: 49233.01 | C15: 93993.9 | D15: 9236.89 | E15: 30
B16: 93993.91 | C16: 125325.2 | D16: 22665.17 | E16: 32
B17: 125325.21 | C17: 375975.61 | D17: 32691.18 | E17: 34
B18: 375975.62 | C18: En adelante | D18: 117912.32 | E18: 35
B20: Tarifa del mes de febrero de 2025, para efectuar los pagos provisionales mensuales a que se refiere el artículo 106 de la Ley del ISR, aplicable a los ingresos que perciban los contribuyentes a que se refiere el Título IV, Capítulo II, Sección I de la Ley del ISR.
B21: Límite inferior | C21: Límite superior | D21: Cuota fija | E21: Por ciento para aplicarse sobre el excedente del límite inferior
B22: $ | C22: $ | D22: $ | E22: %
B23: 0.01 | C23: 1492.08 | D23: 0 | E23: 1.92
B24: 1492.09 | C24: 12664.1 | D24: 28.64 | E24: 6.4
B25: 12664.11 | C25: 22256.02 | D25: 743.66 | E25: 10.88
B26: 22256.03 | C26: 25871.64 | D26: 1787.26 | E26: 16
B27: 25871.65 | C27: 30975.42 | D27: 2365.76 | E27: 17.92
B28: 30975.43 | C28: 62472.98 | D28: 3280.36 | E28: 21.36
B29: 62472.99 | C29: 98466 | D29: 10008.24 | E29: 23.52
B30: 98466.01 | C30: 187987.8 | D30: 18473.78 | E30: 30
B31: 187987.81 | C31: 250650.4 | D31: 45330.34 | E31: 32
B32: 250650.41 | C32: 751951.22 | D32: 65382.36 | E32: 34
B33: 751951.23 | C33: En adelante | D33: 235824.64 | E33: 35
B35: Tarifa del mes de marzo de 2025, para efectuar los pagos provisionales mensuales a que se refiere el artículo 106 de la Ley del ISR, aplicable a los ingresos que perciban los contribuyentes a que se refiere el Título IV, Capítulo II, Sección I de la Ley del ISR.
B36: Límite inferior | C36: Límite superior | D36: Cuota fija | E36: Por ciento para aplicarse sobre el excedente del límite inferior
B37: $ | C37: $ | D37: $ | E37: %
B38: 0.01 | C38: 2238.12 | D38: 0 | E38: 1.92
B39: 2238.13 | C39: 18996.15 | D39: 42.96 | E39: 6.4
B40: 18996.16 | C40: 33384.03 | D40: 1115.49 | E40: 10.88
B41: 33384.04 | C41: 38807.46 | D41: 2680.89 | E41: 16
B42: 38807.47 | C42: 46463.13 | D42: 3548.64 | E42: 17.92
B43: 46463.14 | C43: 93709.47 | D43: 4920.54 | E43: 21.36
B44: 93709.48 | C44: 147699 | D44: 15012.36 | E44: 23.52
B45: 147699.01 | C45: 281981.7 | D45: 27710.67 | E45: 30
B46: 281981.71 | C46: 375975.6 | D46: 67995.51 | E46: 32
B47: 375975.61 | C47: 1127926.83 | D47: 98073.54 | E47: 34
B48: 1127926.84 | C48: En adelante | D48: 353736.96 | E48: 35
B50: Tarifa del mes de abril de 2025, para efectuar los pagos provisionales mensuales a que se refiere el artículo 106 de la Ley del ISR, aplicable a los ingresos que perciban los contribuyentes a que se refiere el Título IV, Capítulo II, Sección I de la Ley del ISR.
B51: Límite inferior | C51: Límite superior | D51: Cuota fija | E51: Por ciento para aplicarse sobre el excedente del límite inferior
B52: $ | C52: $ | D52: $ | E52: %
B53: 0.01 | C53: 2984.16 | D53: 0 | E53: 1.92
B54: 2984.17 | C54: 25328.2 | D54: 57.28 | E54: 6.4
B55: 25328.21 | C55: 44512.04 | D55: 1487.32 | E55: 10.88
B56: 44512.05 | C56: 51743.28 | D56: 3574.52 | E56: 16
B57: 51743.29 | C57: 61950.84 | D57: 4731.52 | E57: 17.92
B58: 61950.85 | C58: 124945.96 | D58: 6560.72 | E58: 21.36
B59: 124945.97 | C59: 196932 | D59: 20016.48 | E59: 23.52
B60: 196932.01 | C60: 375975.6 | D60: 36947.56 | E60: 30
B61: 375975.61 | C61: 501300.8 | D61: 90660.68 | E61: 32
B62: 501300.81 | C62: 1503902.44 | D62: 130764.72 | E62: 34
B63: 1503902.45 | C63: En adelante | D63: 471649.28 | E63: 35
B65: Tarifa del mes de mayo de 2025, para efectuar los pagos provisionales mensuales a que se refiere el artículo 106 de la Ley del ISR, aplicable a los ingresos que perciban los contribuyentes a que se refiere el Título IV, Capítulo II, Sección I de la Ley del ISR.
B66: Límite inferior | C66: Límite superior | D66: Cuota fija | E66: Por ciento para aplicarse sobre el excedente del límite inferior
B67: $ | C67: $ | D67: $ | E67: %
B68: 0.01 | C68: 3730.2 | D68: 0 | E68: 1.92
B69: 3730.21 | C69: 31660.25 | D69: 71.6 | E69: 6.4
B70: 31660.26 | C70: 55640.05 | D70: 1859.15 | E70: 10.88
B71: 55640.06 | C71: 64679.1 | D71: 4468.15 | E71: 16
B72: 64679.11 | C72: 77438.55 | D72: 5914.4 | E72: 17.92
B73: 77438.56 | C73: 156182.45 | D73: 8200.9 | E73: 21.36
B74: 156182.46 | C74: 246165 | D74: 25020.6 | E74: 23.52
B75: 246165.01 | C75: 469969.5 | D75: 46184.45 | E75: 30
B76: 469969.51 | C76: 626626 | D76: 113325.85 | E76: 32
B77: 626626.01 | C77: 1879878.05 | D77: 163455.9 | E77: 34
B78: 1879878.06 | C78: En adelante | D78: 589561.6 | E78: 35
B80: Tarifa del mes de junio de 2025, para efectuar los pagos provisionales mensuales a que se refiere el artículo 106 de la Ley del ISR, aplicable a los ingresos que perciban los contribuyentes a que se refiere el Título IV, Capítulo II, Sección I de la Ley del ISR.
B81: Límite inferior | C81: Límite superior | D81: Cuota fija | E81: Por ciento para aplicarse sobre el excedente del límite inferior
B82: $ | C82: $ | D82: $ | E82: %
B83: 0.01 | C83: 4476.24 | D83: 0 | E83: 1.92
B84: 4476.25 | C84: 37992.3 | D84: 85.92 | E84: 6.4
B85: 37992.31 | C85: 66768.06 | D85: 2230.98 | E85: 10.88
B86: 66768.07 | C86: 77614.92 | D86: 5361.78 | E86: 16
B87: 77614.93 | C87: 92926.26 | D87: 7097.28 | E87: 17.92
B88: 92926.27 | C88: 187418.94 | D88: 9841.08 | E88: 21.36
B89: 187418.95 | C89: 295398 | D89: 30024.72 | E89: 23.52
B90: 295398.01 | C90: 563963.4 | D90: 55421.34 | E90: 30
B91: 563963.41 | C91: 751951.2 | D91: 135991.02 | E91: 32
B92: 751951.21 | C92: 2255853.66 | D92: 196147.08 | E92: 34
B93: 2255853.67 | C93: En adelante | D93: 707473.92 | E93: 35
B95: Tarifa del mes de julio de 2025, para efectuar los pagos provisionales mensuales a que se refiere el artículo 106 de la Ley del ISR, aplicable a los ingresos que perciban los contribuyentes a que se refiere el Título IV, Capítulo II, Sección I de la Ley del ISR.
B96: Límite inferior | C96: Límite superior | D96: Cuota fija | E96: Por ciento para aplicarse sobre el excedente del límite inferior
B97: $ | C97: $ | D97: $ | E97: %
B98: 0.01 | C98: 5222.28 | D98: 0 | E98: 1.92
B99: 5222.29 | C99: 44324.35 | D99: 100.24 | E99: 6.4
B100: 44324.36 | C100: 77896.07 | D100: 2602.81 | E100: 10.88
B101: 77896.08 | C101: 90550.74 | D101: 6255.41 | E101: 16
B102: 90550.75 | C102: 108413.97 | D102: 8280.16 | E102: 17.92
B103: 108413.98 | C103: 218655.43 | D103: 11481.26 | E103: 21.36
B104: 218655.44 | C104: 344631 | D104: 35028.84 | E104: 23.52
B105: 344631.01 | C105: 657957.3 | D105: 64658.23 | E105: 30
B106: 657957.31 | C106: 877276.4 | D106: 158656.19 | E106: 32
B107: 877276.41 | C107: 2631829.27 | D107: 228838.26 | E107: 34
B108: 2631829.28 | C108: En adelante | D108: 825386.24 | E108: 35
B110: Tarifa del mes de agosto de 2025, para efectuar los pagos provisionales mensuales a que se refiere el artículo 106 de la Ley del ISR, aplicable a los ingresos que perciban los contribuyentes a que se refiere el Título IV, Capítulo II, Sección I de la Ley del ISR.
B111: Límite inferior | C111: Límite superior | D111: Cuota fija | E111: Por ciento para aplicarse sobre el excedente del límite inferior
B112: $ | C112: $ | D112: $ | E112: %
B113: 0.01 | C113: 5968.32 | D113: 0 | E113: 1.92
B114: 5968.33 | C114: 50656.4 | D114: 114.56 | E114: 6.4
B115: 50656.41 | C115: 89024.08 | D115: 2974.64 | E115: 10.88
B116: 89024.09 | C116: 103486.56 | D116: 7149.04 | E116: 16
B117: 103486.57 | C117: 123901.68 | D117: 9463.04 | E117: 17.92
B118: 123901.69 | C118: 249891.92 | D118: 13121.44 | E118: 21.36
B119: 249891.93 | C119: 393864 | D119: 40032.96 | E119: 23.52
B120: 393864.01 | C120: 751951.2 | D120: 73895.12 | E120: 30
B121: 751951.21 | C121: 1002601.6 | D121: 181321.36 | E121: 32
B122: 1002601.61 | C122: 3007804.88 | D122: 261529.44 | E122: 34
B123: 3007804.89 | C123: En adelante | D123: 943298.56 | E123: 35
B125: Tarifa del mes de septiembre de 2025, para efectuar los pagos provisionales mensuales a que se refiere el artículo 106 de la Ley del ISR, aplicable a los ingresos que perciban los contribuyentes a que se refiere el Título IV, Capítulo II, Sección I de la Ley del ISR.
B126: Límite inferior | C126: Límite superior | D126: Cuota fija | E126: Por ciento para aplicarse sobre el excedente del límite inferior
B127: $ | C127: $ | D127: $ | E127: %
B128: 0.01 | C128: 6714.36 | D128: 0 | E128: 1.92
B129: 6714.37 | C129: 56988.45 | D129: 128.88 | E129: 6.4
B130: 56988.46 | C130: 100152.09 | D130: 3346.47 | E130: 10.88
B131: 100152.1 | C131: 116422.38 | D131: 8042.67 | E131: 16
B132: 116422.39 | C132: 139389.39 | D132: 10645.92 | E132: 17.92
B133: 139389.4 | C133: 281128.41 | D133: 14761.62 | E133: 21.36
B134: 281128.42 | C134: 443097 | D134: 45037.08 | E134: 23.52
B135: 443097.01 | C135: 845945.1 | D135: 83132.01 | E135: 30
B136: 845945.11 | C136: 1127926.8 | D136: 203986.53 | E136: 32
B137: 1127926.81 | C137: 3383780.49 | D137: 294220.62 | E137: 34
B138: 3383780.5 | C138: En adelante | D138: 1061210.88 | E138: 35
B140: Tarifa del mes de octubre de 2025, para efectuar los pagos provisionales mensuales a que se refiere el artículo 106 de la Ley del ISR, aplicable a los ingresos que perciban los contribuyentes a que se refiere el Título IV, Capítulo II, Sección I de la Ley del ISR.
B141: Límite inferior | C141: Límite superior | D141: Cuota fija | E141: Por ciento para aplicarse sobre el excedente del límite inferior
B142: $ | C142: $ | D142: $ | E142: %
B143: 0.01 | C143: 7460.4 | D143: 0 | E143: 1.92
B144: 7460.41 | C144: 63320.5 | D144: 143.2 | E144: 6.4
B145: 63320.51 | C145: 111280.1 | D145: 3718.3 | E145: 10.88
B146: 111280.11 | C146: 129358.2 | D146: 8936.3 | E146: 16
B147: 129358.21 | C147: 154877.1 | D147: 11828.8 | E147: 17.92
B148: 154877.11 | C148: 312364.9 | D148: 16401.8 | E148: 21.36
B149: 312364.91 | C149: 492330 | D149: 50041.2 | E149: 23.52
B150: 492330.01 | C150: 939939 | D150: 92368.9 | E150: 30
B151: 939939.01 | C151: 1253252 | D151: 226651.7 | E151: 32
B152: 1253252.01 | C152: 3759756.1 | D152: 326911.8 | E152: 34
B153: 3759756.11 | C153: En adelante | D153: 1179123.2 | E153: 35
B155: Tarifa del mes de noviembre de 2025, para efectuar los pagos provisionales mensuales a que se refiere el artículo 106 de la Ley del ISR, aplicable a los ingresos que perciban los contribuyentes a que se refiere el Título IV, Capítulo II, Sección I de la Ley del ISR.
B156: Límite inferior | C156: Límite superior | D156: Cuota fija | E156: Por ciento para aplicarse sobre el excedente del límite inferior
B157: $ | C157: $ | D157: $ | E157: %
B158: 0.01 | C158: 8206.44 | D158: 0 | E158: 1.92
B159: 8206.45 | C159: 69652.55 | D159: 157.52 | E159: 6.4
B160: 69652.56 | C160: 122408.11 | D160: 4090.13 | E160: 10.88
B161: 122408.12 | C161: 142294.02 | D161: 9829.93 | E161: 16
B162: 142294.03 | C162: 170364.81 | D162: 13011.68 | E162: 17.92
B163: 170364.82 | C163: 343601.39 | D163: 18041.98 | E163: 21.36
B164: 343601.4 | C164: 541563 | D164: 55045.32 | E164: 23.52
B165: 541563.01 | C165: 1033932.9 | D165: 101605.79 | E165: 30
B166: 1033932.91 | C166: 1378577.2 | D166: 249316.87 | E166: 32
B167: 1378577.21 | C167: 4135731.71 | D167: 359602.98 | E167: 34
B168: 4135731.72 | C168: En adelante | D168: 1297035.52 | E168: 35
B170: Tarifa del mes de diciembre de 2025, para efectuar los pagos provisionales mensuales a que se refiere el artículo 106 de la Ley del ISR, aplicable a los ingresos que perciban los contribuyentes a que se refiere el Título IV, Capítulo II, Sección I de la Ley del ISR.
B171: Límite inferior | C171: Límite superior | D171: Cuota fija | E171: Por ciento para aplicarse sobre el excedente del límite inferior
B172: $ | C172: $ | D172: $ | E172: %
B173: 0.01 | C173: 8952.49 | D173: 0 | E173: 1.92
B174: 8952.5 | C174: 75984.55 | D174: 171.88 | E174: 6.4
B175: 75984.56 | C175: 133536.07 | D175: 4461.94 | E175: 10.88
B176: 133536.08 | C176: 155229.8 | D176: 10723.55 | E176: 16
B177: 155229.81 | C177: 185852.57 | D177: 14194.54 | E177: 17.92
B178: 185852.58 | C178: 374837.88 | D178: 19682.13 | E178: 21.36
B179: 374837.89 | C179: 590795.99 | D179: 60049.4 | E179: 23.52
B180: 590796 | C180: 1127926.84 | D180: 110842.74 | E180: 30
B181: 1127926.85 | C181: 1503902.46 | D181: 271981.99 | E181: 32
B182: 1503902.47 | C182: 4511707.37 | D182: 392294.17 | E182: 34
B183: 4511707.38 | C183: En adelante | D183: 1414947.85 | E183: 35
B292: Enero | C292: 1
B293: Febrero | C293: 2
B294: Marzo | C294: 3
B295: Abril | C295: 4
B296: Mayo | C296: 5
B297: Junio | C297: 6
B298: Julio | C298: 7
B299: Agosto | C299: 8
B300: Septiembre | C300: 9
B301: Octubre | C301: 10
B302: Noviembre | C302: 11
B303: Diciembre | C303: 12

Sheet CATALOGO (hidden)
B4: c_RiesgoPuesto | C4: Descripción | D4: Fecha inicio de vigencia | E4: Fecha fin de vigencia | H4: c_TipoPercepcion | I4: Descripción | J4: Fecha inicio de vigencia | K4: Fecha fin de vigencia
B5: 1 | C5: Clase I | D5: 2017-01-01 | H5: 1 | I5: Sueldos, Salarios Rayas y Jornales | J5: 2016-11-01
B6: 2 | C6: Clase II | D6: 2017-01-01 | H6: 2 | I6: Gratificación Anual (Aguinaldo) | J6: 2016-11-01
B7: 3 | C7: Clase III | D7: 2017-01-01 | H7: 3 | I7: Participación de los Trabajadores en las Utilidades PTU | J7: 2016-11-01
B8: 4 | C8: Clase IV | D8: 2017-01-01 | H8: 4 | I8: Reembolso de Gastos Médicos Dentales y Hospitalarios | J8: 2016-11-01
B9: 5 | C9: Clase V | D9: 2017-01-01 | H9: 5 | I9: Fondo de Ahorro | J9: 2016-11-01
B10: 99 | C10: No aplica | D10: 2017-08-13 | H10: 6 | I10: Caja de ahorro | J10: 2016-11-01
H11: 9 | I11: Contribuciones a Cargo del Trabajador Pagadas por el Patrón | J11: 2016-11-01
H12: 10 | I12: Premios por puntualidad | J12: 2016-11-01
B13: c_TipoRegimen | C13: Descripción | D13: Fecha inicio de vigencia | E13: Fecha fin de vigencia | H13: 11 | I13: Prima de Seguro de vida | J13: 2016-11-01
B14: 2 | C14: Sueldos (Incluye ingresos señalados en la fracción I del artículo 94 de LISR) | D14: 2017-01-01 | H14: 12 | I14: Seguro de Gastos Médicos Mayores | J14: 2016-11-01
B15: 3 | C15: Jubilados | D15: 2017-01-01 | H15: 13 | I15: Cuotas Sindicales Pagadas por el Patrón | J15: 2016-11-01
B16: 4 | C16: Pensionados | D16: 2017-01-01 | H16: 14 | I16: Subsidios por incapacidad | J16: 2016-11-01
B17: 5 | C17: Asimilados Miembros Sociedades Cooperativas Produccion | D17: 2017-01-01 | H17: 15 | I17: Becas para trabajadores y/o hijos | J17: 2016-11-01
B18: 6 | C18: Asimilados Integrantes Sociedades Asociaciones Civiles | D18: 2017-01-01 | H18: 19 | I18: Horas extra | J18: 2016-11-01
B19: 7 | C19: Asimilados Miembros consejos | D19: 2017-01-01 | H19: 20 | I19: Prima dominical | J19: 2016-11-01
B20: 8 | C20: Asimilados comisionistas | D20: 2017-01-01 | H20: 21 | I20: Prima vacacional | J20: 2016-11-01
B21: 9 | C21: Asimilados Honorarios | D21: 2017-01-01 | H21: 22 | I21: Prima por antigüedad | J21: 2016-11-01
B22: 10 | C22: Asimilados acciones | D22: 2017-01-01 | H22: 23 | I22: Pagos por separación | J22: 2016-11-01
B23: 11 | C23: Asimilados otros | D23: 2017-01-01 | H23: 24 | I23: Seguro de retiro | J23: 2016-11-01
B24: 12 | C24: Jubilados o Pensionados | D24: 2017-03-27 | H24: 25 | I24: Indemnizaciones | J24: 2016-11-01
B25: 13 | C25: Indemnización o Separación | D25: 2018-10-15 | H25: 26 | I25: Reembolso por funeral | J25: 2016-11-01
B26: 99 | C26: Otro Regimen | D26: 2017-01-01 | H26: 27 | I26: Cuotas de seguridad social pagadas por el patrón | J26: 2016-11-01
H27: 28 | I27: Comisiones | J27: 2016-11-01
H28: 29 | I28: Vales de despensa | J28: 2016-11-01
B29: c_TipoContrato | C29: Descripción | H29: 30 | I29: Vales de restaurante | J29: 2016-11-01
B30: 1 | C30: Contrato de trabajo por tiempo indeterminado | H30: 31 | I30: Vales de gasolina | J30: 2016-11-01
B31: 2 | C31: Contrato de trabajo para obra determinada | H31: 32 | I31: Vales de ropa | J31: 2016-11-01
B32: 3 | C32: Contrato de trabajo por tiempo determinado | H32: 33 | I32: Ayuda para renta | J32: 2016-11-01
B33: 4 | C33: Contrato de trabajo por temporada | H33: 34 | I33: Ayuda para artículos escolares | J33: 2016-11-01
B34: 5 | C34: Contrato de trabajo sujeto a prueba | H34: 35 | I34: Ayuda para anteojos | J34: 2016-11-01
B35: 6 | C35: Contrato de trabajo con capacitación inicial | H35: 36 | I35: Ayuda para transporte | J35: 2016-11-01
B36: 7 | C36: Modalidad de contratación por pago de hora laborada | H36: 37 | I36: Ayuda para gastos de funeral | J36: 2016-11-01
B37: 8 | C37: Modalidad de trabajo por comisión laboral | H37: 38 | I37: Otros ingresos por salarios | J37: 2016-11-01
B38: 9 | C38: Modalidades de contratación donde no existe relación de trabajo | H38: 39 | I38: Jubilaciones, pensiones o haberes de retiro | J38: 2016-11-01
B39: 10 | C39: Jubilación, pensión, retiro. | H39: 44 | I39: Jubilaciones, pensiones o haberes de retiro en parcialidades | J39: 2016-11-01
B40: 99 | C40: Otro contrato | H40: 45 | I40: Ingresos en acciones o títulos valor que representan bienes | J40: 2016-11-01
H41: 046 | I41: Ingresos asimilados a salarios | J41: 2016-11-01
H42: 047 | I42: Alimentación | J42: 2016-11-01
B43: c_PeriodicidadPago | C43: Descripción | D43: Fecha inicio de vigencia | E43: Fecha fin de vigencia | H43: 48 | I43: Habitación | J43: 2016-11-01
B44: 1 | C44: Diario | D44: 2016-11-01 | H44: 49 | I44: Premios por asistencia | J44: 2016-11-01
B45: 2 | C45: Semanal | D45: 2016-11-01 | H45: 50 | I45: Viáticos | J45: 2017-01-06
B46: 3 | C46: Catorcenal | D46: 2016-11-01 | H46: 51 | I46: Pagos por gratificaciones, primas, compensaciones, recompensas u otros a extrabajadores derivados de jubilación en parcialidades | J46: 2018-10-15
B47: 4 | C47: Quincenal | D47: 2016-11-01 | H47: 52 | I47: Pagos que se realicen a extrabajadores que obtengan una jubilación en parcialidades derivados de la ejecución de resoluciones judicial o de un laudo | J47: 2018-10-15
B48: 5 | C48: Mensual | D48: 2016-11-01 | H48: 53 | I48: Pagos que se realicen a extrabajadores que obtengan una jubilación en una sola exhibición derivados de la ejecución de resoluciones judicial o de un laudo | J48: 2018-10-15
B49: 6 | C49: Bimestral | D49: 2016-11-01
B50: 7 | C50: Unidad obra | D50: 2016-11-01
B51: 8 | C51: Comisión | D51: 2016-11-01 | H51: c_TipoOtroPago | I51: Descripción | J51: Fecha inicio de vigencia | K51: Fecha fin de vigencia
B52: 9 | C52: Precio alzado | D52: 2016-11-01 | H52: 1 | I52: Reintegro de ISR pagado en exceso (siempre que no haya sido enterado al SAT). | J52: 2017-01-01
B53: 10 | C53: Decenal | D53: 2017-01-19 | H53: 2 | I53: Subsidio para el empleo (efectivamente entregado al trabajador). | J53: 2017-01-01
B54: 99 | C54: Otra Periodicidad | D54: 2016-11-01 | H54: 3 | I54: Viáticos (entregados al trabajador). | J54: 2017-01-01
H55: 4 | I55: Aplicación de saldo a favor por compensación anual. | J55: 2017-01-01
H56: 5 | I56: Reintegro de ISR retenido en exceso de ejercicio anterior (siempre que no haya sido enterado al SAT). | J56: 2017-12-05
B57: c_TipoIncapacidad | C57: Descripción | H57: 999 | I57: Pagos distintos a los listados y que no deben considerarse como ingreso por sueldos, salarios o ingresos asimilados. | J57: 2017-01-01
B58: 1 | C58: Riesgo de trabajo.
B59: 2 | C59: Enfermedad en general.
B60: 3 | C60: Maternidad. | H60: c_TipoDeduccion | I60: Descripción | J60: Fecha inicio de vigencia | K60: Fecha fin de vigencia
H61: 1 | I61: Seguridad social | J61: 2016-11-01
H62: 2 | I62: ISR | J62: 2016-11-01
B63: c_TipoJornada | C63: Descripción | H63: 3 | I63: Aportaciones a retiro, cesantía en edad avanzada y vejez. | J63: 2016-11-01
B64: 1 | C64: Diurna | H64: 4 | I64: Otros | J64: 2016-11-01
B65: 2 | C65: Nocturna | H65: 5 | I65: Aportaciones a Fondo de vivienda | J65: 2016-11-01
B66: 3 | C66: Mixta | H66: 6 | I66: Descuento por incapacidad | J66: 2016-11-01
B67: 4 | C67: Por hora | H67: 7 | I67: Pensión alimenticia | J67: 2016-11-01
B68: 5 | C68: Reducida | H68: 8 | I68: Renta | J68: 2016-11-01
B69: 6 | C69: Continuada | H69: 9 | I69: Préstamos provenientes del Fondo Nacional de la Vivienda para los Trabajadores | J69: 2016-11-01
B70: 7 | C70: Partida | H70: 10 | I70: Pago por crédito de vivienda | J70: 2016-11-01
B71: 8 | C71: Por turnos | H71: 11 | I71: Pago de abonos INFONACOT | J71: 2016-11-01
B72: 99 | C72: Otra Jornada | H72: 12 | I72: Anticipo de salarios | J72: 2016-11-01
H73: 13 | I73: Pagos hechos con exceso al trabajador | J73: 2016-11-01
H74: 14 | I74: Errores | J74: 2016-11-01
B75: c_Estado | C75: c_Pais | D75: Nombre del estado | H75: 15 | I75: Pérdidas | J75: 2016-11-01
B76: AGU | C76: MEX | D76: Aguascalientes | H76: 16 | I76: Averías | J76: 2016-11-01
B77: BCN | C77: MEX | D77: Baja California | H77: 17 | I77: Adquisición de artículos producidos por la empresa o establecimiento | J77: 2016-11-01
B78: BCS | C78: MEX | D78: Baja California Sur | H78: 18 | I78: Cuotas para la constitución y fomento de sociedades cooperativas y de cajas de ahorro | J78: 2016-11-01
B79: CAM | C79: MEX | D79: Campeche | H79: 19 | I79: Cuotas sindicales | J79: 2016-11-01
B80: CHP | C80: MEX | D80: Chiapas | H80: 20 | I80: Ausencia (Ausentismo) | J80: 2016-11-01
B81: CHH | C81: MEX | D81: Chihuahua | H81: 21 | I81: Cuotas obrero patronales | J81: 2016-11-01
B82: COA | C82: MEX | D82: Coahuila | H82: 22 | I82: Impuestos Locales | J82: 2016-11-01
B83: COL | C83: MEX | D83: Colima | H83: 23 | I83: Aportaciones voluntarias | J83: 2016-11-01
B84: DIF | C84: MEX | D84: Ciudad de México | H84: 24 | I84: Ajuste en Gratificación Anual (Aguinaldo) Exento | J84: 2017-01-06
B85: DUR | C85: MEX | D85: Durango | H85: 25 | I85: Ajuste en Gratificación Anual (Aguinaldo) Gravado | J85: 2017-01-06
B86: GUA | C86: MEX | D86: Guanajuato | H86: 26 | I86: Ajuste en Participación de los Trabajadores en las Utilidades PTU Exento | J86: 2017-01-06
B87: GRO | C87: MEX | D87: Guerrero | H87: 27 | I87: Ajuste en Participación de los Trabajadores en las Utilidades PTU Gravado | J87: 2017-01-06
B88: HID | C88: MEX | D88: Hidalgo | H88: 28 | I88: Ajuste en Reembolso de Gastos Médicos Dentales y Hospitalarios Exento | J88: 2017-01-06
B89: JAL | C89: MEX | D89: Jalisco | H89: 29 | I89: Ajuste en Fondo de ahorro Exento | J89: 2017-01-06
B90: MEX | C90: MEX | D90: Estado de México | H90: 30 | I90: Ajuste en Caja de ahorro Exento | J90: 2017-01-06
B91: MIC | C91: MEX | D91: Michoacán | H91: 31 | I91: Ajuste en Contribuciones a Cargo del Trabajador Pagadas por el Patrón Exento | J91: 2017-01-06
B92: MOR | C92: MEX | D92: Morelos | H92: 32 | I92: Ajuste en Premios por puntualidad Gravado | J92: 2017-01-06
B93: NAY | C93: MEX | D93: Nayarit | H93: 33 | I93: Ajuste en Prima de Seguro de vida Exento | J93: 2017-01-06
B94: NLE | C94: MEX | D94: Nuevo León | H94: 34 | I94: Ajuste en Seguro de Gastos Médicos Mayores Exento | J94: 2017-01-06
B95: OAX | C95: MEX | D95: Oaxaca | H95: 35 | I95: Ajuste en Cuotas Sindicales Pagadas por el Patrón Exento | J95: 2017-01-06
B96: PUE | C96: MEX | D96: Puebla | H96: 36 | I96: Ajuste en Subsidios por incapacidad Exento | J96: 2017-01-06
B97: QUE | C97: MEX | D97: Querétaro | H97: 37 | I97: Ajuste en Becas para trabajadores y/o hijos Exento | J97: 2017-01-06
B98: ROO | C98: MEX | D98: Quintana Roo | H98: 38 | I98: Ajuste en Horas extra Exento | J98: 2017-01-06
B99: SLP | C99: MEX | D99: San Luis Potosí | H99: 39 | I99: Ajuste en Horas extra Gravado | J99: 2017-01-06
B100: SIN | C100: MEX | D100: Sinaloa | H100: 40 | I100: Ajuste en Prima dominical Exento | J100: 2017-01-06
B101: SON | C101: MEX | D101: Sonora | H101: 41 | I101: Ajuste en Prima dominical Gravado | J101: 2017-01-06
B102: TAB | C102: MEX | D102: Tabasco | H102: 42 | I102: Ajuste en Prima vacacional Exento | J102: 2017-01-06
B103: TAM | C103: MEX | D103: Tamaulipas | H103: 43 | I103: Ajuste en Prima vacacional Gravado | J103: 2017-01-06
B104: TLA | C104: MEX | D104: Tlaxcala | H104: 44 | I104: Ajuste en Prima por antigüedad Exento | J104: 2017-01-06
B105: VER | C105: MEX | D105: Veracruz | H105: 45 | I105: Ajuste en Prima por antigüedad Gravado | J105: 2017-01-06
B106: YUC | C106: MEX | D106: Yucatán | H106: 46 | I106: Ajuste en Pagos por separación Exento | J106: 2017-01-06
B107: ZAC | C107: MEX | D107: Zacatecas | H107: 47 | I107: Ajuste en Pagos por separación Gravado | J107: 2017-01-06
B108: AL | C108: USA | D108: Alabama | H108: 48 | I108: Ajuste en Seguro de retiro Exento | J108: 2017-01-06
B109: AK | C109: USA | D109: Alaska | H109: 49 | I109: Ajuste en Indemnizaciones Exento | J109: 2017-01-06
B110: AZ | C110: USA | D110: Arizona | H110: 50 | I110: Ajuste en Indemnizaciones Gravado | J110: 2017-01-06
B111: AR | C111: USA | D111: Arkansas | H111: 51 | I111: Ajuste en Reembolso por funeral Exento | J111: 2017-01-06
B112: CA | C112: USA | D112: California | H112: 52 | I112: Ajuste en Cuotas de seguridad social pagadas por el patrón Exento | J112: 2017-01-06
B113: NC | C113: USA | D113: Carolina del Norte | H113: 53 | I113: Ajuste en Comisiones Gravado | J113: 2017-01-06
B114: SC | C114: USA | D114: Carolina del Sur | H114: 54 | I114: Ajuste en Vales de despensa Exento | J114: 2017-01-06
B115: CO | C115: USA | D115: Colorado | H115: 55 | I115: Ajuste en Vales de restaurante Exento | J115: 2017-01-06
B116: CT | C116: USA | D116: Connecticut | H116: 56 | I116: Ajuste en Vales de gasolina Exento | J116: 2017-01-06
B117: ND | C117: USA | D117: Dakota del Norte | H117: 57 | I117: Ajuste en Vales de ropa Exento | J117: 2017-01-06
B118: SD | C118: USA | D118: Dakota del Sur | H118: 58 | I118: Ajuste en Ayuda para renta Exento | J118: 2017-01-06
B119: DE | C119: USA | D119: Delaware | H119: 59 | I119: Ajuste en Ayuda para artículos escolares Exento | J119: 2017-01-06
B120: FL | C120: USA | D120: Florida | H120: 60 | I120: Ajuste en Ayuda para anteojos Exento | J120: 2017-01-06
B121: GA | C121: USA | D121: Georgia | H121: 61 | I121: Ajuste en Ayuda para transporte Exento | J121: 2017-01-06
B122: HI | C122: USA | D122: Hawái | H122: 62 | I122: Ajuste en Ayuda para gastos de funeral Exento | J122: 2017-01-06
B123: ID | C123: USA | D123: Idaho | H123: 63 | I123: Ajuste en Otros ingresos por salarios Exento | J123: 2017-01-06
B124: IL | C124: USA | D124: Illinois | H124: 64 | I124: Ajuste en Otros ingresos por salarios Gravado | J124: 2017-01-06
B125: IN | C125: USA | D125: Indiana | H125: 65 | I125: Ajuste en Jubilaciones, pensiones o haberes de retiro en una sola exhibición Exento | J125: 2018-10-15
B126: IA | C126: USA | D126: Iowa | H126: 66 | I126: Ajuste en Jubilaciones, pensiones o haberes de retiro en una sola exhibición Gravado | J126: 2018-10-15
B127: KS | C127: USA | D127: Kansas | H127: 67 | I127: Ajuste en Pagos por separación Acumulable | J127: 2017-01-06
B128: KY | C128: USA | D128: Kentucky | H128: 68 | I128: Ajuste en Pagos por separación No acumulable | J128: 2017-01-06
B129: LA | C129: USA | D129: Luisiana | H129: 69 | I129: Ajuste en Jubilaciones, pensiones o haberes de retiro en parcialidades Exento | J129: 2018-10-15
B130: ME | C130: USA | D130: Maine | H130: 70 | I130: Ajuste en Jubilaciones, pensiones o haberes de retiro en parcialidades Gravado | J130: 2018-10-15
B131: MD | C131: USA | D131: Maryland | H131: 71 | I131: Ajuste en Subsidio para el empleo (efectivamente entregado al trabajador) | J131: 2017-01-06
B132: MA | C132: USA | D132: Massachusetts | H132: 72 | I132: Ajuste en Ingresos en acciones o títulos valor que representan bienes Exento | J132: 2017-01-06 | K132: 2018-10-14
B133: MI | C133: USA | D133: Míchigan | H133: 73 | I133: Ajuste en Ingresos en acciones o títulos valor que representan bienes Gravado | J133: 2017-01-06
B134: MN | C134: USA | D134: Minnesota | H134: 74 | I134: Ajuste en Alimentación Exento | J134: 2017-01-06
B135: MS | C135: USA | D135: Misisipi | H135: 75 | I135: Ajuste en Alimentación Gravado | J135: 2017-01-06
B136: MO | C136: USA | D136: Misuri | H136: 76 | I136: Ajuste en Habitación Exento | J136: 2017-01-06
B137: MT | C137: USA | D137: Montana | H137: 77 | I137: Ajuste en Habitación Gravado | J137: 2017-01-06
B138: NE | C138: USA | D138: Nebraska | H138: 78 | I138: Ajuste en Premios por asistencia | J138: 2017-01-06
B139: NV | C139: USA | D139: Nevada | H139: 79 | I139: Ajuste en Pagos distintos a los listados y que no deben considerarse como ingreso por sueldos, salarios o ingresos asimilados. | J139: 2017-01-06
B140: NJ | C140: USA | D140: Nueva Jersey | H140: 80 | I140: Ajuste en Viáticos gravados | J140: 2017-01-06
B141: NY | C141: USA | D141: Nueva York | H141: 81 | I141: Ajuste en Viáticos (entregados al trabajador) | J141: 2017-01-06
B142: NH | C142: USA | D142: Nuevo Hampshire | H142: 082 | I142: Ajuste en Fondo de ahorro Gravado | J142: 2017-01-06
B143: NM | C143: USA | D143: Nuevo México | H143: 083 | I143: Ajuste en Caja de ahorro Gravado | J143: 2017-01-06
B144: OH | C144: USA | D144: Ohio | H144: 084 | I144: Ajuste en Prima de Seguro de vida Gravado | J144: 2017-01-06
B145: OK | C145: USA | D145: Oklahoma | H145: 085 | I145: Ajuste en Seguro de Gastos Médicos Mayores Gravado | J145: 2017-01-06
B146: OR | C146: USA | D146: Oregón | H146: 086 | I146: Ajuste en Subsidios por incapacidad Gravado | J146: 2017-01-06
B147: PA | C147: USA | D147: Pensilvania | H147: 087 | I147: Ajuste en Becas para trabajadores y/o hijos Gravado | J147: 2017-01-06
B148: RI | C148: USA | D148: Rhode Island | H148: 088 | I148: Ajuste en Seguro de retiro Gravado | J148: 2017-01-06
B149: TN | C149: USA | D149: Tennessee | H149: 089 | I149: Ajuste en Vales de despensa Gravado | J149: 2017-01-06
B150: TX | C150: USA | D150: Texas | H150: 090 | I150: Ajuste en Vales de restaurante Gravado | J150: 2017-01-06
B151: UT | C151: USA | D151: Utah | H151: 091 | I151: Ajuste en Vales de gasolina Gravado | J151: 2017-01-06
B152: VT | C152: USA | D152: Vermont | H152: 092 | I152: Ajuste en Vales de ropa Gravado | J152: 2017-01-06
B153: VA | C153: USA | D153: Virginia | H153: 093 | I153: Ajuste en Ayuda para renta Gravado | J153: 2017-01-06
B154: WV | C154: USA | D154: Virginia Occidental | H154: 094 | I154: Ajuste en Ayuda para artículos escolares Gravado | J154: 2017-01-06
B155: WA | C155: USA | D155: Washington | H155: 095 | I155: Ajuste en Ayuda para anteojos Gravado | J155: 2017-01-06
B156: WI | C156: USA | D156: Wisconsin | H156: 096 | I156: Ajuste en Ayuda para transporte Gravado | J156: 2017-01-06
B157: WY | C157: USA | D157: Wyoming | H157: 097 | I157: Ajuste en Ayuda para gastos de funeral Gravado | J157: 2017-01-06
B158: ON | C158: CAN | D158: Ontario | H158: 098 | I158: Ajuste a ingresos asimilados a salarios gravados | J158: 2017-01-06
B159: QC | C159: CAN | D159: Quebec | H159: 099 | I159: Ajuste a ingresos por sueldos y salarios gravados | J159: 2017-01-06
B160: NS | C160: CAN | D160: Nueva Escocia | H160: 100 | I160: Ajuste en Viáticos exentos | J160: 2017-01-06
B161: NB | C161: CAN | D161: Nuevo Brunswick | H161: 101 | I161: ISR Retenido de ejercicio anterior | J161: 2017-12-05
B162: MB | C162: CAN | D162: Manitoba | H162: 102 | I162: Ajuste a pagos por gratificaciones, primas, compensaciones, recompensas u otros a extrabajadores derivados de jubilación en parcialidades, gravados | J162: 2018-10-15
B163: BC | C163: CAN | D163: Columbia Británica | H163: 103 | I163: Ajuste a pagos que se realicen a extrabajadores que obtengan una jubilación en parcialidades derivados de la ejecución de una resolución judicial o de un laudo gravados | J163: 2018-10-15
B164: PE | C164: CAN | D164: Isla del Príncipe Eduardo | H164: 104 | I164: Ajuste a pagos que se realicen a extrabajadores que obtengan una jubilación en parcialidades derivados de la ejecución de una resolución judicial o de un laudo exentos | J164: 2018-10-15
B165: SK | C165: CAN | D165: Saskatchewan | H165: 105 | I165: Ajuste a pagos que se realicen a extrabajadores que obtengan una jubilación en una sola exhibición derivados de la ejecución de una resolución judicial o de un laudo gravados | J165: 2018-10-15
B166: AB | C166: CAN | D166: Alberta | H166: 106 | I166: Ajuste a pagos que se realicen a extrabajadores que obtengan una jubilación en una sola exhibición derivados de la ejecución de una resolución judicial o de un laudo exentos | J166: 2018-10-15
B167: NL | C167: CAN | D167: Terranova y Labrador
B168: NT | C168: CAN | D168: Territorios del Noroeste
B169: YT | C169: CAN | D169: Yukón
B170: UN | C170: CAN | D170: Nunavut
B185: c_TipoPercepcion | C185: Descripción | D185: Gravado | E185: Exento | F185: Régimen | G185: Régimen consula | H185: c_TipoRegimen | I185: Descripción
B186: 1 | C186: Sueldos, Salarios Rayas y Jornales | D186: a | E186: r | F186: 2 | G186: =F186-B186 -> 1 | H186: 2 | I186: Sueldos (Incluye ingresos señalados en la fracción I del artículo 94 de LISR) | J186: 2
B187: 2 | C187: Gratificación Anual (Aguinaldo) | D187: a | E187: a | F187: 2 | G187: =F187-B187 -> 0 | H187: 3 | I187: Jubilados | J187: 3412
B188: 3 | C188: Participación de los Trabajadores en las Utilidades PTU | D188: a | E188: a | F188: 2 | G188: -1 | H188: 4 | I188: Pensionados | J188: 3412
B189: 4 | C189: Reembolso de Gastos Médicos Dentales y Hospitalarios | D189: a | E189: a | F189: 2 | G189: -2 | H189: 5 | I189: Asimilados Miembros Sociedades Cooperativas Produccion | J189: 567891011
B190: 5 | C190: Fondo de Ahorro | D190: a | E190: a | F190: 2 | G190: -3 | H190: 6 | I190: Asimilados Integrantes Sociedades Asociaciones Civiles | J190: 567891011
B191: 6 | C191: Caja de ahorro | D191: a | E191: a | F191: 2 | G191: -4 | H191: 7 | I191: Asimilados Miembros consejos | J191: 567891011
B192: 9 | C192: Contribuciones a Cargo del Trabajador Pagadas por el Patrón | D192: a | E192: r | F192: 2 | G192: -7 | H192: 8 | I192: Asimilados comisionistas | J192: 567891011
B193: 10 | C193: Premios por puntualidad | D193: a | E193: r | F193: 2 | G193: -8 | H193: 9 | I193: Asimilados Honorarios | J193: 567891011
B194: 11 | C194: Prima de Seguro de vida | D194: a | E194: a | F194: 2 | G194: -9 | H194: 10 | I194: Asimilados acciones | J194: 567891011
B195: 12 | C195: Seguro de Gastos Médicos Mayores | D195: a | E195: a | F195: 2 | G195: -10 | H195: 11 | I195: Asimilados otros | J195: 567891011
B196: 13 | C196: Cuotas Sindicales Pagadas por el Patrón | D196: a | E196: a | F196: 2 | G196: -11 | H196: 12 | I196: Jubilados o Pensionados | J196: 3412
B197: 14 | C197: Subsidios por incapacidad | D197: a | E197: a | F197: 2 | G197: -12 | H197: 13 | I197: Indemnización o Separación | J197: 13
B198: 15 | C198: Becas para trabajadores y/o hijos | D198: a | E198: a | F198: 2 | G198: -13 | H198: 99 | I198: Otro Regimen | J198: 99
B199: 19 | C199: Horas extra | D199: a | E199: a | F199: 2 | G199: -17
B200: 20 | C200: Prima dominical | D200: a | E200: a | F200: 2 | G200: -18
B201: 21 | C201: Prima vacacional | D201: a | E201: a | F201: 2 | G201: -19
B202: 24 | C202: Seguro de retiro | D202: a | E202: a | F202: 2 | G202: -22
B203: 26 | C203: Reembolso por funeral | D203: a | E203: a | F203: 2 | G203: -24
B204: 27 | C204: Cuotas de seguridad social pagadas por el patrón | D204: r | E204: a | F204: 2 | G204: -25
B205: 28 | C205: Comisiones | D205: a | E205: r | F205: 2 | G205: -26
B206: 29 | C206: Vales de despensa | D206: a | E206: a | F206: 2 | G206: -27
B207: 30 | C207: Vales de restaurante | D207: a | E207: a | F207: 2 | G207: -28
B208: 31 | C208: Vales de gasolina | D208: a | E208: a | F208: 2 | G208: -29
B209: 32 | C209: Vales de ropa | D209: a | E209: a | F209: 2 | G209: -30
B210: 33 | C210: Ayuda para renta | D210: a | E210: a | F210: 2 | G210: -31
B211: 34 | C211: Ayuda para artículos escolares | D211: a | E211: a | F211: 2 | G211: -32
B212: 35 | C212: Ayuda para anteojos | D212: a | E212: a | F212: 2 | G212: -33
B213: 36 | C213: Ayuda para transporte | D213: a | E213: a | F213: 2 | G213: -34
B214: 37 | C214: Ayuda para gastos de funeral | D214: a | E214: a | F214: 2 | G214: -35
B215: 38 | C215: Otros ingresos por salarios | D215: a | E215: a | F215: 2 | G215: -36
B216: 47 | C216: Alimentación diferentes a los establecidos en el Art 94 último párrafo LISR | D216: a | E216: a | F216: 2 | G216: -45
B217: 48 | C217: Habitación | D217: a | E217: a | F217: 2 | G217: -46
... 12 more rows

Sheet c_Estado (hidden)
A1: Catálogo de estados.
A2: Versión CFDI | B2: Versión catálogo | C2: Revisión catálogo | D2: Fecha publicación de catálogo | E2: Fecha inicio de vigencia del catálogo | F2: Fecha fin de vigencia del catálogo
A3: 4 | B3: 1 | C3: 0 | D3: 0 | E3: 2022-01-01
A5: c_Estado | B5: c_Pais | C5: Nombre del estado | D5: Fecha inicio de vigencia | E5: Fecha fin de vigencia
A6: AGU | B6: MEX | C6: Aguascalientes | D6: 2022-01-01
A7: BCN | B7: MEX | C7: Baja California | D7: 2022-01-01
A8: BCS | B8: MEX | C8: Baja California Sur | D8: 2022-01-01
A9: CAM | B9: MEX | C9: Campeche | D9: 2022-01-01
A10: CHP | B10: MEX | C10: Chiapas | D10: 2022-01-01
A11: CHH | B11: MEX | C11: Chihuahua | D11: 2022-01-01
A12: COA | B12: MEX | C12: Coahuila | D12: 2022-01-01
A13: COL | B13: MEX | C13: Colima | D13: 2022-01-01
A14: CMX | B14: MEX | C14: Ciudad de México | D14: 2022-01-01
A15: DUR | B15: MEX | C15: Durango | D15: 2022-01-01
A16: GUA | B16: MEX | C16: Guanajuato | D16: 2022-01-01
A17: GRO | B17: MEX | C17: Guerrero | D17: 2022-01-01
A18: HID | B18: MEX | C18: Hidalgo | D18: 2022-01-01
A19: JAL | B19: MEX | C19: Jalisco | D19: 2022-01-01
A20: MEX | B20: MEX | C20: Estado de México | D20: 2022-01-01
A21: MIC | B21: MEX | C21: Michoacán | D21: 2022-01-01
A22: MOR | B22: MEX | C22: Morelos | D22: 2022-01-01
A23: NAY | B23: MEX | C23: Nayarit | D23: 2022-01-01
A24: NLE | B24: MEX | C24: Nuevo León | D24: 2022-01-01
A25: OAX | B25: MEX | C25: Oaxaca | D25: 2022-01-01
A26: PUE | B26: MEX | C26: Puebla | D26: 2022-01-01
A27: QUE | B27: MEX | C27: Querétaro | D27: 2022-01-01
A28: ROO | B28: MEX | C28: Quintana Roo | D28: 2022-01-01
A29: SLP | B29: MEX | C29: San Luis Potosí | D29: 2022-01-01
A30: SIN | B30: MEX | C30: Sinaloa | D30: 2022-01-01
A31: SON | B31: MEX | C31: Sonora | D31: 2022-01-01
A32: TAB | B32: MEX | C32: Tabasco | D32: 2022-01-01
A33: TAM | B33: MEX | C33: Tamaulipas | D33: 2022-01-01
A34: TLA | B34: MEX | C34: Tlaxcala | D34: 2022-01-01
A35: VER | B35: MEX | C35: Veracruz | D35: 2022-01-01
A36: YUC | B36: MEX | C36: Yucatán | D36: 2022-01-01
A37: ZAC | B37: MEX | C37: Zacatecas | D37: 2022-01-01
A38: AL | B38: USA | C38: Alabama | D38: 2022-01-01
A39: AK | B39: USA | C39: Alaska | D39: 2022-01-01
A40: AZ | B40: USA | C40: Arizona | D40: 2022-01-01
A41: AR | B41: USA | C41: Arkansas | D41: 2022-01-01
A42: CA | B42: USA | C42: California | D42: 2022-01-01
A43: NC | B43: USA | C43: Carolina del Norte | D43: 2022-01-01
A44: SC | B44: USA | C44: Carolina del Sur | D44: 2022-01-01
A45: CO | B45: USA | C45: Colorado | D45: 2022-01-01
A46: CT | B46: USA | C46: Connecticut | D46: 2022-01-01
A47: ND | B47: USA | C47: Dakota del Norte | D47: 2022-01-01
A48: SD | B48: USA | C48: Dakota del Sur | D48: 2022-01-01
A49: DE | B49: USA | C49: Delaware | D49: 2022-01-01
A50: FL | B50: USA | C50: Florida | D50: 2022-01-01
A51: GA | B51: USA | C51: Georgia | D51: 2022-01-01
A52: HI | B52: USA | C52: Hawái | D52: 2022-01-01
A53: ID | B53: USA | C53: Idaho | D53: 2022-01-01
A54: IL | B54: USA | C54: Illinois | D54: 2022-01-01
A55: IN | B55: USA | C55: Indiana | D55: 2022-01-01
A56: IA | B56: USA | C56: Iowa | D56: 2022-01-01
A57: KS | B57: USA | C57: Kansas | D57: 2022-01-01
A58: KY | B58: USA | C58: Kentucky | D58: 2022-01-01
A59: LA | B59: USA | C59: Luisiana | D59: 2022-01-01
A60: ME | B60: USA | C60: Maine | D60: 2022-01-01
A61: MD | B61: USA | C61: Maryland | D61: 2022-01-01
A62: MA | B62: USA | C62: Massachusetts | D62: 2022-01-01
A63: MI | B63: USA | C63: Míchigan | D63: 2022-01-01
A64: MN | B64: USA | C64: Minnesota | D64: 2022-01-01
A65: MS | B65: USA | C65: Misisipi | D65: 2022-01-01
A66: MO | B66: USA | C66: Misuri | D66: 2022-01-01
A67: MT | B67: USA | C67: Montana | D67: 2022-01-01
A68: NE | B68: USA | C68: Nebraska | D68: 2022-01-01
A69: NV | B69: USA | C69: Nevada | D69: 2022-01-01
A70: NJ | B70: USA | C70: Nueva Jersey | D70: 2022-01-01
A71: NY | B71: USA | C71: Nueva York | D71: 2022-01-01
A72: NH | B72: USA | C72: Nuevo Hampshire | D72: 2022-01-01
A73: NM | B73: USA | C73: Nuevo México | D73: 2022-01-01
A74: OH | B74: USA | C74: Ohio | D74: 2022-01-01
A75: OK | B75: USA | C75: Oklahoma | D75: 2022-01-01
A76: OR | B76: USA | C76: Oregón | D76: 2022-01-01
A77: PA | B77: USA | C77: Pensilvania | D77: 2022-01-01
A78: RI | B78: USA | C78: Rhode Island | D78: 2022-01-01
A79: TN | B79: USA | C79: Tennessee | D79: 2022-01-01
A80: TX | B80: USA | C80: Texas | D80: 2022-01-01
A81: UT | B81: USA | C81: Utah | D81: 2022-01-01
A82: VT | B82: USA | C82: Vermont | D82: 2022-01-01
A83: VA | B83: USA | C83: Virginia | D83: 2022-01-01
A84: WV | B84: USA | C84: Virginia Occidental | D84: 2022-01-01
A85: WA | B85: USA | C85: Washington | D85: 2022-01-01
A86: WI | B86: USA | C86: Wisconsin | D86: 2022-01-01
A87: WY | B87: USA | C87: Wyoming | D87: 2022-01-01
A88: ON | B88: CAN | C88: Ontario | D88: 2022-01-01
A89: QC | B89: CAN | C89: Quebec | D89: 2022-01-01
A90: NS | B90: CAN | C90: Nueva Escocia | D90: 2022-01-01
A91: NB | B91: CAN | C91: Nuevo Brunswick | D91: 2022-01-01
A92: MB | B92: CAN | C92: Manitoba | D92: 2022-01-01
A93: BC | B93: CAN | C93: Columbia Británica | D93: 2022-01-01
A94: PE | B94: CAN | C94: Isla del Príncipe Eduardo | D94: 2022-01-01
A95: SK | B95: CAN | C95: Saskatchewan | D95: 2022-01-01
A96: AB | B96: CAN | C96: Alberta | D96: 2022-01-01
A97: NL | B97: CAN | C97: Terranova y Labrador | D97: 2022-01-01
A98: NT | B98: CAN | C98: Territorios del Noroeste | D98: 2022-01-01
A99: YT | B99: CAN | C99: Yukón | D99: 2022-01-01
A100: UN | B100: CAN | C100: Nunavut | D100: 2022-01-01
